Body,Body Name,Date Paid,Transaction Number,Amount,Supplier Name,Supplier ID,Supplier post code (first 4 digits),Directorate,Service Area,General Ledger code Description,BVACOP class,Revenue/ Capital Spend
http://statistics.data.gov.uk/id/local-authority/00HY,Wiltshire Council,29/10/2010,1900390975,900.00,REDACTED PERSONAL DATA,112254,REDACTED PERSONAL DATA,Children & Education,YDSStrategicMgt,Grants provided by WC - Other,Supplies and Services,REVENUE
http://statistics.data.gov.uk/id/local-authority/00HY,Wiltshire Council,04/10/2010,1900401212,5000.00,Circular Arts ,114775,SP2 ,Community Services,Area Board Salisbury,Area Board Grants,Supplies and Services,REVENUE
http://statistics.data.gov.uk/id/local-authority/00HY,Wiltshire Council,01/10/2010,1900401587,1228.77,Liquid Personnel Ltd ,122987,M1 6,Community Services,Hosp Grt Westn,Agency Staff,Employee Related,REVENUE
http://statistics.data.gov.uk/id/local-authority/00HY,Wiltshire Council,01/10/2010,1900401713,3000.00,Presentation Media ,101643,BH23,Wiltshire Council,Wiltshire Council,Buildings Minor Alterations,Premises Related,CAPITAL
http://statistics.data.gov.uk/id/local-authority/00HY,Wiltshire Council,01/10/2010,1900401959,875.60,Salisbury City Guides ,112362,SN9 ,Neighbourhood & Planning,InformationCentreSal,Salisbury TIC Tkt Holding,Balance Sheet Accounts,REVENUE
http://statistics.data.gov.uk/id/local-authority/00HY,Wiltshire Council,04/10/2010,1900401968,833.28,Bertram Library Services ,101283,BD19,Community Services,Lib Book Fund,Library Service,Supplies and Services,REVENUE
http://statistics.data.gov.uk/id/local-authority/00HY,Wiltshire Council,01/10/2010,1900402170,967.59,Bertram Library Services ,101283,BD19,Community Services,Lib Book Fund,Library Service,Supplies and Services,REVENUE
http://statistics.data.gov.uk/id/local-authority/00HY,Wiltshire Council,01/10/2010,1900402173,573.36,Bertram Library Services ,101283,BD19,Community Services,Lib Book Fund,Library Service,Supplies and Services,REVENUE
http://statistics.data.gov.uk/id/local-authority/00HY,Wiltshire Council,01/10/2010,1900402826,566.80,S A TRUCKS ,117786,BA13,Community Services,Lib Trans & Prop,Vehicle Repairs & Maintenance,Transport Related,REVENUE
http://statistics.data.gov.uk/id/local-authority/00HY,Wiltshire Council,05/10/2010,1900402989,1200.00,Max Fordham LLP ,111560,NW1 ,Wiltshire Council,Wiltshire Council,Buildings Minor Alterations,Premises Related,CAPITAL
http://statistics.data.gov.uk/id/local-authority/00HY,Wiltshire Council,08/10/2010,1900402993,1330.00,Andrew Bumphrey ,100915,SN8 ,Wiltshire Council,Wiltshire Council,Buildings Minor Alterations,Premises Related,CAPITAL
http://statistics.data.gov.uk/id/local-authority/00HY,Wiltshire Council,12/10/2010,1900403006,565.20,Bertram Library Services ,101283,BD19,Community Services,Lib Book Fund,Library Service,Supplies and Services,REVENUE
http://statistics.data.gov.uk/id/local-authority/00HY,Wiltshire Council,12/10/2010,1900403028,901.32,Bertram Library Services ,101283,BD19,Community Services,Lib Book Fund,Library Service,Supplies and Services,REVENUE
http://statistics.data.gov.uk/id/local-authority/00HY,Wiltshire Council,12/10/2010,1900403150,746.36,Bertram Library Services ,101283,BD19,Community Services,Lib Book Fund,Library Service,Supplies and Services,REVENUE
http://statistics.data.gov.uk/id/local-authority/00HY,Wiltshire Council,05/10/2010,1900403198,1095.31,Royal Mail Group ,120705,PE4 ,Resources,Despatch,Postage,Supplies and Services,REVENUE
http://statistics.data.gov.uk/id/local-authority/00HY,Wiltshire Council,12/10/2010,1900403236,2003.02,B P Estates Ltd ,113821,BA14,Resources,Commercial Props,Supplies & services related provisions,Supplies and Services,REVENUE
http://statistics.data.gov.uk/id/local-authority/00HY,Wiltshire Council,05/10/2010,1900408728,715.00,Vanguard  Consulting Limited ,122260,MK18,Resources,BusinsTransformLean,Miscellaneous Costs,Supplies and Services,REVENUE
http://statistics.data.gov.uk/id/local-authority/00HY,Wiltshire Council,05/10/2010,1900408729,17144.50,REDACTED PERSONAL DATA,112198,REDACTED PERSONAL DATA,Children & Education,QES,Licences - TV & Other,Supplies and Services,REVENUE
http://statistics.data.gov.uk/id/local-authority/00HY,Wiltshire Council,05/10/2010,1900408733,683.40,W F Howes Ltd ,100948,LE7 ,Community Services,Lib Book Fund,Library Service,Supplies and Services,REVENUE
http://statistics.data.gov.uk/id/local-authority/00HY,Wiltshire Council,11/10/2010,1900408740,1895.00,Wootton Rivers Village Hall ,122719,SN8 ,Community Services,Area Board Pewsey,Area Board Grants,Supplies and Services,REVENUE
http://statistics.data.gov.uk/id/local-authority/00HY,Wiltshire Council,05/10/2010,1900409203,878.72,Ulverscroft Large Print Books Ltd ,100233,LE7 ,Community Services,Lib Book Fund,Library Service,Supplies and Services,REVENUE
http://statistics.data.gov.uk/id/local-authority/00HY,Wiltshire Council,11/10/2010,1900409204,1026.18,Bertram Library Services ,101283,BD19,Community Services,Lib Book Fund,Library Service,Supplies and Services,REVENUE
http://statistics.data.gov.uk/id/local-authority/00HY,Wiltshire Council,12/10/2010,1900409486,1209.68,Fairweathers Surveyors Limited ,115821,RG6 ,Community Services,Boscombe Down,Premises insurance,Premises Related,REVENUE
http://statistics.data.gov.uk/id/local-authority/00HY,Wiltshire Council,11/10/2010,1900409507,989.20,Blaze Fire Protection Ltd ,101649,SN14,Resources,Wkplc Trnsfrm Prprty,Preventative Property Maintenance,Premises Related,REVENUE
http://statistics.data.gov.uk/id/local-authority/00HY,Wiltshire Council,06/10/2010,1900409689,633.54,AudioGO Limited ,101157,BA2 ,Community Services,Lib Book Fund,Library Service,Supplies and Services,REVENUE
http://statistics.data.gov.uk/id/local-authority/00HY,Wiltshire Council,05/10/2010,1900409693,651.20,W F Howes Ltd ,100948,LE7 ,Community Services,Lib Book Fund,Library Service,Supplies and Services,REVENUE
http://statistics.data.gov.uk/id/local-authority/00HY,Wiltshire Council,01/10/2010,1900409953,543.45,British Gas Business ,114213,GU15,Resources,Waste Collection,Electricity,Premises Related,REVENUE
http://statistics.data.gov.uk/id/local-authority/00HY,Wiltshire Council,12/10/2010,1900409961,2738.03,Daisy Communications Ltd ,127760,BB9 ,Resources,WTP Admin Buildings,Telephones - Landlines (incl fax),Supplies and Services,REVENUE
http://statistics.data.gov.uk/id/local-authority/00HY,Wiltshire Council,05/10/2010,1900409991,1500.00,Practicus Ltd ,112161,RG9 ,Neighbourhood & Planning,Fleet Gen Management,Consultants� Fees,Supplies and Services,REVENUE
http://statistics.data.gov.uk/id/local-authority/00HY,Wiltshire Council,04/10/2010,1900410000,7449.41,Salisbury Diocesan Board Of Finance ,120879,SP2 ,Wiltshire Council,Wiltshire Council,Buildings Minor Alterations,Premises Related,CAPITAL
http://statistics.data.gov.uk/id/local-authority/00HY,Wiltshire Council,07/10/2010,1900410003,661.00,Tormax Automatic ,112766,KT12,Resources,Commercial Props,Preventative Property Maintenance,Premises Related,REVENUE
http://statistics.data.gov.uk/id/local-authority/00HY,Wiltshire Council,12/10/2010,1900410052,33935.66,Royal Mail Group ,120705,PE4 ,Resources,RegistrationofElectr,Postage,Supplies and Services,REVENUE
http://statistics.data.gov.uk/id/local-authority/00HY,Wiltshire Council,12/10/2010,1900410055,1000.00,Duchy Of Cornwall ,115546,BA2 ,Children & Education,UnoccupiedSiteSec,Premises Rental / Hire Charges,Premises Related,REVENUE
http://statistics.data.gov.uk/id/local-authority/00HY,Wiltshire Council,11/10/2010,1900410057,753.18,Royal Mail Group ,120705,PE4 ,Neighbourhood & Planning,DevControlSouth,Postage,Supplies and Services,REVENUE
http://statistics.data.gov.uk/id/local-authority/00HY,Wiltshire Council,06/10/2010,1900410236,805.80,Canon  Uk  Ltd ,110444,RH2 ,Resources,SharedServHRother,Photocopier Rental,Supplies and Services,REVENUE
http://statistics.data.gov.uk/id/local-authority/00HY,Wiltshire Council,07/10/2010,1900410264,3240.50,Haven Fire Security Consultants Ltd ,101062,BA14,Neighbourhood & Planning,Primary Sch Pooling,Preventative Property Maintenance,Premises Related,REVENUE
http://statistics.data.gov.uk/id/local-authority/00HY,Wiltshire Council,04/10/2010,1900410331,505.86,British Gas Business ,114213,GU15,Resources,WTP Braeside,Electricity,Premises Related,REVENUE
http://statistics.data.gov.uk/id/local-authority/00HY,Wiltshire Council,04/10/2010,1900410338,929.81,EDF Energy Limited ,110837,PL3 ,Neighbourhood & Planning,SH Edgers Close,Electricity,Premises Related,REVENUE
http://statistics.data.gov.uk/id/local-authority/00HY,Wiltshire Council,04/10/2010,1900410339,753.67,EDF Energy Limited ,110837,PL3 ,Neighbourhood & Planning,SH Crane Lodge,Electricity,Premises Related,REVENUE
http://statistics.data.gov.uk/id/local-authority/00HY,Wiltshire Council,08/10/2010,1900410344,5599.14,The Great Dorset Steam Fair Ltd ,121793,DT11,Neighbourhood & Planning,InformationCentreSal,Salisbury TIC Tkt Holding,Balance Sheet Accounts,REVENUE
http://statistics.data.gov.uk/id/local-authority/00HY,Wiltshire Council,12/10/2010,1900410345,724.42,British Gas Business ,114212,LE19,Neighbourhood & Planning,SH Westwood House,Gas,Premises Related,REVENUE
http://statistics.data.gov.uk/id/local-authority/00HY,Wiltshire Council,07/10/2010,1900410406,610.82,Haven Fire Security Consultants Ltd ,101062,BA14,Resources,Childrens Centres,Preventative Property Maintenance,Premises Related,REVENUE
http://statistics.data.gov.uk/id/local-authority/00HY,Wiltshire Council,07/10/2010,1900410412,682.76,Haven Fire Security Consultants Ltd ,101062,BA14,Resources,Wkplc Trnsfrm Prprty,Preventative Property Maintenance,Premises Related,REVENUE
http://statistics.data.gov.uk/id/local-authority/00HY,Wiltshire Council,07/10/2010,1900410426,658.19,Haven Fire Security Consultants Ltd ,101062,BA14,Resources,Childrens Centres,Preventative Property Maintenance,Premises Related,REVENUE
http://statistics.data.gov.uk/id/local-authority/00HY,Wiltshire Council,07/10/2010,1900410434,4693.83,Haven Fire Security Consultants Ltd ,101062,BA14,Neighbourhood & Planning,Primary Sch Pooling,Preventative Property Maintenance,Premises Related,REVENUE
http://statistics.data.gov.uk/id/local-authority/00HY,Wiltshire Council,05/10/2010,1900410438,2084.40,Watson Petroleum Limited ,122950,SN15,Neighbourhood & Planning,SH Nadder Close,Fuel Oil,Premises Related,REVENUE
http://statistics.data.gov.uk/id/local-authority/00HY,Wiltshire Council,06/10/2010,1900410483,940.13,Capita Resourcing Ltd ,110450,SE10,Community Services,Hosp RUH,Agency Staff,Employee Related,REVENUE
http://statistics.data.gov.uk/id/local-authority/00HY,Wiltshire Council,19/10/2010,1900410491,5656.25,EIC Facilities Management ,127844,SO41,Resources,Wkplc Trnsfrm Prprty,Preventative Property Maintenance,Premises Related,REVENUE
http://statistics.data.gov.uk/id/local-authority/00HY,Wiltshire Council,05/10/2010,1900410505,523.00,Swimco  A R Penny  Ltd ,100140,BA3 ,Resources,Leisure Centres,Preventative Property Maintenance,Premises Related,REVENUE
http://statistics.data.gov.uk/id/local-authority/00HY,Wiltshire Council,04/10/2010,1900410507,500.00,A E Martin Ltd ,100148,BA14,Resources,Wkplc Trnsfrm Prprty,Preventative Property Maintenance,Premises Related,REVENUE
http://statistics.data.gov.uk/id/local-authority/00HY,Wiltshire Council,08/10/2010,1900410508,656.99,A Wilson ,100241,BA14,Resources,Wkplc Trnsfrm Prprty,Preventative Property Maintenance,Premises Related,REVENUE
http://statistics.data.gov.uk/id/local-authority/00HY,Wiltshire Council,06/10/2010,1900410647,4485.00,Catch Up ,114555,IP24,Children & Education,10/11SFTargtdSupPrim,Stationery,Supplies and Services,REVENUE
http://statistics.data.gov.uk/id/local-authority/00HY,Wiltshire Council,06/10/2010,1900410649,4485.00,Catch Up ,114555,IP24,Children & Education,10/11SFTargtdSupPrim,Stationery,Supplies and Services,REVENUE
http://statistics.data.gov.uk/id/local-authority/00HY,Wiltshire Council,06/10/2010,1900410653,4485.00,Catch Up ,114555,IP24,Children & Education,10/11SFTargtdSupPrim,Stationery,Supplies and Services,REVENUE
http://statistics.data.gov.uk/id/local-authority/00HY,Wiltshire Council,08/10/2010,1900410741,26360.00,Wilts Dorset Bus Co Ltd ,100218,BH15,Neighbourhood & Planning,InformationCentreSal,Salisbury TIC Tkt Holding,Balance Sheet Accounts,REVENUE
http://statistics.data.gov.uk/id/local-authority/00HY,Wiltshire Council,12/10/2010,1900410748,9103.02,Defence Support Group ,110704,SP11,Neighbourhood & Planning,WinterFleet Costs,Vehicle Repairs & Maintenance,Transport Related,REVENUE
http://statistics.data.gov.uk/id/local-authority/00HY,Wiltshire Council,01/10/2010,1900410749,39503.07,Defence Support Group ,110704,SP11,Neighbourhood & Planning,WinterFleet Costs,Vehicle Repairs & Maintenance,Transport Related,REVENUE
http://statistics.data.gov.uk/id/local-authority/00HY,Wiltshire Council,04/10/2010,1900413611,585.00,Solagen Ltd ,121195,BS37,Neighbourhood & Planning,Traffic Signal Mtc,Highways Contracts - Other,Third Party Payments,REVENUE
http://statistics.data.gov.uk/id/local-authority/00HY,Wiltshire Council,12/10/2010,1900413626,600.00,Youth Action Wiltshire ,113033,SN10,Neighbourhood & Planning,WASP,Other Professional Fees,Supplies and Services,REVENUE
http://statistics.data.gov.uk/id/local-authority/00HY,Wiltshire Council,18/10/2010,1900413630,820.12,Marlborough Tennis Club ,117851,SN8 ,Neighbourhood & Planning,Marlborough,Supplies & services related provisions,Supplies and Services,REVENUE
http://statistics.data.gov.uk/id/local-authority/00HY,Wiltshire Council,12/10/2010,1900413650,1020.10,Bertram Library Services ,101283,BD19,Community Services,Lib Book Fund,Library Service,Supplies and Services,REVENUE
http://statistics.data.gov.uk/id/local-authority/00HY,Wiltshire Council,12/10/2010,1900413652,655.98,AudioGO Limited ,101157,BA2 ,Community Services,Lib Book Fund,Library Service,Supplies and Services,REVENUE
http://statistics.data.gov.uk/id/local-authority/00HY,Wiltshire Council,12/10/2010,1900413665,1273.80,Watson Petroleum Limited ,122950,SN15,Neighbourhood & Planning,SH Parsons Green,Fuel Oil,Premises Related,REVENUE
http://statistics.data.gov.uk/id/local-authority/00HY,Wiltshire Council,12/10/2010,1900413668,770.81,Bertram Library Services ,101283,BD19,Community Services,Lib Book Fund,Library Service,Supplies and Services,REVENUE
http://statistics.data.gov.uk/id/local-authority/00HY,Wiltshire Council,08/10/2010,1900414775,646.28,R Moulding & Co (Salisbury) Ltd ,100200,SP2 ,Resources,Leisure Centres,Preventative Property Maintenance,Premises Related,REVENUE
http://statistics.data.gov.uk/id/local-authority/00HY,Wiltshire Council,08/10/2010,1900414785,560.33,R Moulding & Co (Salisbury) Ltd ,100200,SP2 ,Resources,Amenities,Preventative Property Maintenance,Premises Related,REVENUE
http://statistics.data.gov.uk/id/local-authority/00HY,Wiltshire Council,12/10/2010,1900414874,535.09,Bertram Library Services ,101283,BD19,Community Services,Lib Book Fund,Library Service,Supplies and Services,REVENUE
http://statistics.data.gov.uk/id/local-authority/00HY,Wiltshire Council,12/10/2010,1900414907,635.12,Ulverscroft Large Print Books Ltd ,100233,LE7 ,Community Services,Lib Book Fund,Library Service,Supplies and Services,REVENUE
http://statistics.data.gov.uk/id/local-authority/00HY,Wiltshire Council,12/10/2010,1900414909,1035.17,Bertram Library Services ,101283,BD19,Community Services,Lib Book Fund,Library Service,Supplies and Services,REVENUE
http://statistics.data.gov.uk/id/local-authority/00HY,Wiltshire Council,15/10/2010,1900415052,1437.50,Toogoods Property Co Ltd ,112764,SP4 ,Community Services,Lib South Mobile,Premises Rental / Hire Charges,Premises Related,REVENUE
http://statistics.data.gov.uk/id/local-authority/00HY,Wiltshire Council,12/10/2010,1900415054,1524.00,Spectra Specialist Engineering Ltd ,112533,BA13,Community Services,Lib North Mobile,Vehicle Repairs & Maintenance,Transport Related,REVENUE
http://statistics.data.gov.uk/id/local-authority/00HY,Wiltshire Council,15/10/2010,1900415059,750.00,Sodexo Services Ltd ,112482,.,Children & Education,Oxenwood,Catering,Supplies and Services,REVENUE
http://statistics.data.gov.uk/id/local-authority/00HY,Wiltshire Council,01/10/2010,1900415061,510.29,S J Aplin Playgrounds Ltd ,120800,SN11,Neighbourhood & Planning,Section 106 Work,Materials & Consumables (Non-Educational),Supplies and Services,REVENUE
http://statistics.data.gov.uk/id/local-authority/00HY,Wiltshire Council,05/10/2010,1900415080,633.00,Ashwell Engineering Services Limite ,125458,LE4 ,Neighbourhood & Planning,Primary Sch Pooling,Preventative Property Maintenance,Premises Related,REVENUE
http://statistics.data.gov.uk/id/local-authority/00HY,Wiltshire Council,05/10/2010,1900415081,871.00,Advanced Fire Systems Ltd ,110062,BS7 ,Resources,WTP Waste Disposal,Preventative Property Maintenance,Premises Related,REVENUE
http://statistics.data.gov.uk/id/local-authority/00HY,Wiltshire Council,12/10/2010,1900415082,663.00,AC  and  MS Ltd ,101175,SS6 ,Resources,Commercial Props,Preventative Property Maintenance,Premises Related,REVENUE
http://statistics.data.gov.uk/id/local-authority/00HY,Wiltshire Council,11/10/2010,1900415099,913.00,C & C General Maintenance & Fabrica ,101699,SP2 ,Resources,Wkplc Trnsfrm Prprty,Preventative Property Maintenance,Premises Related,REVENUE
http://statistics.data.gov.uk/id/local-authority/00HY,Wiltshire Council,11/10/2010,1900415100,836.00,C & C General Maintenance & Fabrica ,101699,SP2 ,Neighbourhood & Planning,Other Rechable Works,Preventative Property Maintenance,Premises Related,REVENUE
http://statistics.data.gov.uk/id/local-authority/00HY,Wiltshire Council,01/10/2010,1900415540,1010.31,Southern Electric Contracting Ltd ,100421,EX1 ,Neighbourhood & Planning,Lighting - Kennet,Public Lighting,Premises Related,REVENUE
http://statistics.data.gov.uk/id/local-authority/00HY,Wiltshire Council,01/10/2010,1900415544,1289.88,Southern Electric Contracting Ltd ,100421,EX1 ,Neighbourhood & Planning,Lighting-North Wilts,Public Lighting,Premises Related,REVENUE
http://statistics.data.gov.uk/id/local-authority/00HY,Wiltshire Council,01/10/2010,1900415545,4277.20,Southern Electric Contracting Ltd ,100421,EX1 ,Neighbourhood & Planning,Lighting - Kennet,Public Lighting,Premises Related,REVENUE
http://statistics.data.gov.uk/id/local-authority/00HY,Wiltshire Council,12/10/2010,1900415558,1734.00,Otis Ltd ,100271,LE4 ,Resources,Wkplc Trnsfrm Prprty,Preventative Property Maintenance,Premises Related,REVENUE
http://statistics.data.gov.uk/id/local-authority/00HY,Wiltshire Council,01/10/2010,1900415572,813.27,Wiltshire Heavy Building Materials T/A Wiltshire Concrete,122630,SN10,Resources,Farms,Preventative Property Maintenance,Premises Related,REVENUE
http://statistics.data.gov.uk/id/local-authority/00HY,Wiltshire Council,12/10/2010,1900415600,3500.00,Practicus Ltd ,112161,RG9 ,Neighbourhood & Planning,Fleet Gen Management,Consultants� Fees,Supplies and Services,REVENUE
http://statistics.data.gov.uk/id/local-authority/00HY,Wiltshire Council,12/10/2010,1900415637,8663.29,Lidl UK GmbH ,117466,BS24,Neighbourhood & Planning,DTEL Dept Balance Sh,Section 106 Deposits,Balance Sheet Accounts,REVENUE
http://statistics.data.gov.uk/id/local-authority/00HY,Wiltshire Council,12/10/2010,1900415656,5111.25,Mr Piers A Stansfield ,118558,WC2R,Neighbourhood & Planning,Admin Hsg Management,Legal Fees,Supplies and Services,REVENUE
http://statistics.data.gov.uk/id/local-authority/00HY,Wiltshire Council,01/10/2010,1900415662,912.20,REDACTED PERSONAL DATA,118840,REDACTED PERSONAL DATA,Community Services,Adult Placement,Independent Living Supplements,Third Party Payments,REVENUE
http://statistics.data.gov.uk/id/local-authority/00HY,Wiltshire Council,01/10/2010,1900415663,828.12,REDACTED PERSONAL DATA,113137,REDACTED PERSONAL DATA,Community Services,Adult Placement,Independent Living Supplements,Third Party Payments,REVENUE
http://statistics.data.gov.uk/id/local-authority/00HY,Wiltshire Council,01/10/2010,1900415664,596.76,REDACTED PERSONAL DATA,119381,REDACTED PERSONAL DATA,Community Services,Adult Placement,Independent Living Supplements,Third Party Payments,REVENUE
http://statistics.data.gov.uk/id/local-authority/00HY,Wiltshire Council,01/10/2010,1900415665,844.80,REDACTED PERSONAL DATA,116741,REDACTED PERSONAL DATA,Community Services,Adult Placement,Independent Living Supplements,Third Party Payments,REVENUE
http://statistics.data.gov.uk/id/local-authority/00HY,Wiltshire Council,01/10/2010,1900415666,940.84,REDACTED PERSONAL DATA,116769,REDACTED PERSONAL DATA,Community Services,Adult Placement,Independent Living Supplements,Third Party Payments,REVENUE
http://statistics.data.gov.uk/id/local-authority/00HY,Wiltshire Council,01/10/2010,1900415668,1089.60,REDACTED PERSONAL DATA,118894,REDACTED PERSONAL DATA,Community Services,Adult Placement,Independent Living Supplements,Third Party Payments,REVENUE
http://statistics.data.gov.uk/id/local-authority/00HY,Wiltshire Council,01/10/2010,1900415669,684.00,REDACTED PERSONAL DATA,117081,REDACTED PERSONAL DATA,Community Services,Adult Placement,Independent Living Supplements,Third Party Payments,REVENUE
http://statistics.data.gov.uk/id/local-authority/00HY,Wiltshire Council,01/10/2010,1900415670,674.40,REDACTED PERSONAL DATA,125003,REDACTED PERSONAL DATA,Community Services,Adult Placement,Independent Living Supplements,Third Party Payments,REVENUE
http://statistics.data.gov.uk/id/local-authority/00HY,Wiltshire Council,06/10/2010,1900415840,745.40,Choices UK Group Limited ,124874,DE14,Community Services,Lib Book Fund,Library Service,Supplies and Services,REVENUE
http://statistics.data.gov.uk/id/local-authority/00HY,Wiltshire Council,01/10/2010,1900415843,1266.88,West Country Vending Service Ltd ,112930,BA2 ,Neighbourhood & Planning,Devizes,Vending costs,Supplies and Services,REVENUE
http://statistics.data.gov.uk/id/local-authority/00HY,Wiltshire Council,12/10/2010,1900417012,1193.55,Capita Resourcing Ltd ,110450,SE10,Community Services,Hosp RUH,Agency Staff,Employee Related,REVENUE
http://statistics.data.gov.uk/id/local-authority/00HY,Wiltshire Council,12/10/2010,1900417013,1137.75,Sanctuary Personnel Ltd ,120918,IP4 ,Community Services,Hosp Grt Westn,Agency Staff,Employee Related,REVENUE
http://statistics.data.gov.uk/id/local-authority/00HY,Wiltshire Council,01/10/2010,1900417014,1137.75,Sanctuary Personnel Ltd ,120918,IP4 ,Community Services,Hosp Grt Westn,Agency Staff,Employee Related,REVENUE
http://statistics.data.gov.uk/id/local-authority/00HY,Wiltshire Council,22/10/2010,1900417037,791.20,Sodexo Services Ltd ,112482,.,Children & Education,Oxenwood,Catering,Supplies and Services,REVENUE
http://statistics.data.gov.uk/id/local-authority/00HY,Wiltshire Council,26/10/2010,1900417100,745.38,Westbury District Hospital League ,122502,BA13,Community Services,FNC,Adult Care Funded Nursing Care - Out of County Cli,Third Party Payments,REVENUE
http://statistics.data.gov.uk/id/local-authority/00HY,Wiltshire Council,12/10/2010,1900417103,105107.36,Geoffrey Osborne Ltd ,111002,PO19,Wiltshire Council,Wiltshire Council,Highways Contracts - Other,Third Party Payments,CAPITAL
http://statistics.data.gov.uk/id/local-authority/00HY,Wiltshire Council,12/10/2010,1900417105,10194.00,Chubb Community Care ,124344,BB1 ,Neighbourhood & Planning,CareConnect,Software Maintenance,Supplies and Services,REVENUE
http://statistics.data.gov.uk/id/local-authority/00HY,Wiltshire Council,12/10/2010,1900417112,774.22,Bertram Library Services ,101283,BD19,Community Services,Lib Book Fund,Library Service,Supplies and Services,REVENUE
http://statistics.data.gov.uk/id/local-authority/00HY,Wiltshire Council,08/10/2010,1900417116,1137.75,Sanctuary Personnel Ltd ,120918,IP4 ,Community Services,Hosp Grt Westn,Agency Staff,Employee Related,REVENUE
http://statistics.data.gov.uk/id/local-authority/00HY,Wiltshire Council,12/10/2010,1900417117,1193.55,Capita Resourcing Ltd ,110450,SE10,Community Services,Hosp RUH,Agency Staff,Employee Related,REVENUE
http://statistics.data.gov.uk/id/local-authority/00HY,Wiltshire Council,12/10/2010,1900417244,674.08,Bertram Library Services ,101283,BD19,Community Services,Lib Book Fund,Library Service,Supplies and Services,REVENUE
http://statistics.data.gov.uk/id/local-authority/00HY,Wiltshire Council,12/10/2010,1900417293,500.00,Swindon College ,112626,SN2 ,Children & Education,Operations,Staff Training Course Costs,Employee Related,REVENUE
http://statistics.data.gov.uk/id/local-authority/00HY,Wiltshire Council,29/10/2010,1900417297,2750.00,Sukosta ,123976,BA15,Community Services,Area Board Chippen,Area Board Grants,Supplies and Services,REVENUE
http://statistics.data.gov.uk/id/local-authority/00HY,Wiltshire Council,01/10/2010,1900417303,850.00,REDACTED PERSONAL DATA,115434,REDACTED PERSONAL DATA,Wiltshire Council,Wiltshire Council,Grants provided by WC - Other,Supplies and Services,CAPITAL
http://statistics.data.gov.uk/id/local-authority/00HY,Wiltshire Council,12/10/2010,1900417306,3444.74,Latcham Direct Limited ,110949,BS14,Resources,SharedServFincPayrol,Stationery,Supplies and Services,REVENUE
http://statistics.data.gov.uk/id/local-authority/00HY,Wiltshire Council,08/10/2010,1900417308,850.47,R Moulding & Co (Salisbury) Ltd ,100200,SP2 ,Resources,Wkplc Trnsfrm Prprty,Preventative Property Maintenance,Premises Related,REVENUE
http://statistics.data.gov.uk/id/local-authority/00HY,Wiltshire Council,08/10/2010,1900417309,5149.00,R Moulding & Co (Salisbury) Ltd ,100200,SP2 ,Neighbourhood & Planning,Primary Sch Pooling,Preventative Property Maintenance,Premises Related,REVENUE
http://statistics.data.gov.uk/id/local-authority/00HY,Wiltshire Council,01/10/2010,1900417321,8477.63,DEGW UK Ltd ,101518,EC4A,Wiltshire Council,Wiltshire Council,WC Credits Receipts Clearing,Balance Sheet Accounts,REVENUE
http://statistics.data.gov.uk/id/local-authority/00HY,Wiltshire Council,01/10/2010,1900417330,25200.76,RSMHC A  Mencap ,112217,PE7 ,Community Services,CTPLD County CIC U65,Supported Living - Without SP payments,Third Party Payments,REVENUE
http://statistics.data.gov.uk/id/local-authority/00HY,Wiltshire Council,05/10/2010,1900417342,1220.63,bta architects Ltd ,101010,BA12,Wiltshire Council,Wiltshire Council,Buildings Minor Alterations,Premises Related,CAPITAL
http://statistics.data.gov.uk/id/local-authority/00HY,Wiltshire Council,11/10/2010,1900417343,8496.96,Elliott Group Ltd ,100161,PE4 ,Wiltshire Council,Wiltshire Council,Buildings Minor Alterations,Premises Related,CAPITAL
http://statistics.data.gov.uk/id/local-authority/00HY,Wiltshire Council,11/10/2010,1900417345,10470.89,Elliott Group Ltd ,100161,PE4 ,Wiltshire Council,Wiltshire Council,Buildings Minor Alterations,Premises Related,CAPITAL
http://statistics.data.gov.uk/id/local-authority/00HY,Wiltshire Council,11/10/2010,1900417346,12790.16,Elliott Group Ltd ,100161,PE4 ,Wiltshire Council,Wiltshire Council,Buildings Minor Alterations,Premises Related,CAPITAL
http://statistics.data.gov.uk/id/local-authority/00HY,Wiltshire Council,25/10/2010,1900417347,7500.00,Buro Four ,101538,WC1X,Wiltshire Council,Wiltshire Council,Buildings Minor Alterations,Premises Related,CAPITAL
http://statistics.data.gov.uk/id/local-authority/00HY,Wiltshire Council,11/10/2010,1900417348,800.00,bta architects Ltd ,101010,BA12,Wiltshire Council,Wiltshire Council,Buildings Minor Alterations,Premises Related,CAPITAL
http://statistics.data.gov.uk/id/local-authority/00HY,Wiltshire Council,12/10/2010,1900417349,2000.00,David J Hood ,101443,BA11,Wiltshire Council,Wiltshire Council,Buildings Minor Alterations,Premises Related,CAPITAL
http://statistics.data.gov.uk/id/local-authority/00HY,Wiltshire Council,06/10/2010,1900417350,1332.00,bta architects Ltd ,101010,BA12,Wiltshire Council,Wiltshire Council,Buildings Minor Alterations,Premises Related,CAPITAL
http://statistics.data.gov.uk/id/local-authority/00HY,Wiltshire Council,06/10/2010,1900417354,12979.00,IHS (Global) Limited ,116599,RG12,Neighbourhood & Planning,Mtc & FM Team,Consultants� Fees,Supplies and Services,REVENUE
http://statistics.data.gov.uk/id/local-authority/00HY,Wiltshire Council,01/10/2010,1900417385,2225.00,H M C S ,116252,BA14,Children & Education,HQ Social Care,Legal Fees,Supplies and Services,REVENUE
http://statistics.data.gov.uk/id/local-authority/00HY,Wiltshire Council,06/10/2010,1900417394,599.39,Palmer  and  Harvey McLane Ltd ,122889,PO15,Neighbourhood & Planning,Five Rivers,Vending costs,Supplies and Services,REVENUE
http://statistics.data.gov.uk/id/local-authority/00HY,Wiltshire Council,01/10/2010,1900417396,1938.00,Wexas Travel Management ,129554,SW3 ,Children & Education,YouthOrchestra,Consultants� Fees,Supplies and Services,REVENUE
http://statistics.data.gov.uk/id/local-authority/00HY,Wiltshire Council,01/10/2010,1900417398,1522.50,Holmleigh Care Ltd ,111141,GL1 ,Community Services,MH AOWA North,Supported Living - Without SP payments,Third Party Payments,REVENUE
http://statistics.data.gov.uk/id/local-authority/00HY,Wiltshire Council,12/10/2010,1900417411,730.00,RSA Group ,123959,RH12,Resources,InsuranceFund,Insurance Claims,Supplies and Services,REVENUE
http://statistics.data.gov.uk/id/local-authority/00HY,Wiltshire Council,01/10/2010,1900417414,5000.00,Cricklade  and  District Community ,115053,SN6 ,Community Services,Area Board W Bassett,Area Board Grants,Supplies and Services,REVENUE
http://statistics.data.gov.uk/id/local-authority/00HY,Wiltshire Council,12/10/2010,1900417419,999.00,Romsey Agric   and  Horse Show Soci ,120667,SO51,Neighbourhood & Planning,InformationCentreSal,Salisbury TIC Tkt Holding,Balance Sheet Accounts,REVENUE
http://statistics.data.gov.uk/id/local-authority/00HY,Wiltshire Council,11/10/2010,1900417420,8000.00,Mr Richard Banwell ,118589,EC4Y,Neighbourhood & Planning,DevControlWest,Consultants� Fees,Supplies and Services,REVENUE
http://statistics.data.gov.uk/id/local-authority/00HY,Wiltshire Council,01/10/2010,1900417500,3680.00,St Gregorys Liason Group ,100963,SN15,Neighbourhood & Planning,Mainstream Secondary,Transport Contracts,Third Party Payments,REVENUE
http://statistics.data.gov.uk/id/local-authority/00HY,Wiltshire Council,01/10/2010,1900417502,1634.26,Adrains Engineering Psv ,100848,SN15,Neighbourhood & Planning,Public Transport,Transport Contracts,Third Party Payments,REVENUE
http://statistics.data.gov.uk/id/local-authority/00HY,Wiltshire Council,01/10/2010,1900417502,3189.36,Adrains Engineering Psv ,100848,SN15,Neighbourhood & Planning,Mainstream Primary,Transport Contracts,Third Party Payments,REVENUE
http://statistics.data.gov.uk/id/local-authority/00HY,Wiltshire Council,01/10/2010,1900417503,1458.86,Adrains Engineering Psv ,100848,SN15,Neighbourhood & Planning,Mainstream Primary,Transport Contracts,Third Party Payments,REVENUE
http://statistics.data.gov.uk/id/local-authority/00HY,Wiltshire Council,01/10/2010,1900417503,2563.97,Adrains Engineering Psv ,100848,SN15,Neighbourhood & Planning,Public Transport,Transport Contracts,Third Party Payments,REVENUE
http://statistics.data.gov.uk/id/local-authority/00HY,Wiltshire Council,01/10/2010,1900417504,1117.95,Adrains Engineering Psv ,100848,SN15,Neighbourhood & Planning,Mainstream Secondary,Transport Contracts,Third Party Payments,REVENUE
http://statistics.data.gov.uk/id/local-authority/00HY,Wiltshire Council,01/10/2010,1900417504,4585.31,Adrains Engineering Psv ,100848,SN15,Neighbourhood & Planning,Mainstream Primary,Transport Contracts,Third Party Payments,REVENUE
http://statistics.data.gov.uk/id/local-authority/00HY,Wiltshire Council,01/10/2010,1900417504,8927.01,Adrains Engineering Psv ,100848,SN15,Neighbourhood & Planning,Public Transport,Transport Contracts,Third Party Payments,REVENUE
http://statistics.data.gov.uk/id/local-authority/00HY,Wiltshire Council,01/10/2010,1900417506,1039.16,Ezy s Taxis Ltd ,101645,SN15,Neighbourhood & Planning,DCE WBass/Malm/Calne,Transport Contracts,Third Party Payments,REVENUE
http://statistics.data.gov.uk/id/local-authority/00HY,Wiltshire Council,01/10/2010,1900417513,945.67,Adrains Engineering Psv ,100848,SN15,Neighbourhood & Planning,Public Transport,Transport Contracts,Third Party Payments,REVENUE
http://statistics.data.gov.uk/id/local-authority/00HY,Wiltshire Council,01/10/2010,1900417518,900.30,United Radio Cars ,101081,SN1 ,Neighbourhood & Planning,SEN Secondary,Transport Contracts,Third Party Payments,REVENUE
http://statistics.data.gov.uk/id/local-authority/00HY,Wiltshire Council,01/10/2010,1900417519,767.49,Adrains Engineering Psv ,100848,SN15,Neighbourhood & Planning,Public Transport,Transport Contracts,Third Party Payments,REVENUE
http://statistics.data.gov.uk/id/local-authority/00HY,Wiltshire Council,01/10/2010,1900417519,767.49,Adrains Engineering Psv ,100848,SN15,Neighbourhood & Planning,Mainstream Primary,Transport Contracts,Third Party Payments,REVENUE
http://statistics.data.gov.uk/id/local-authority/00HY,Wiltshire Council,01/10/2010,1900417519,2302.47,Adrains Engineering Psv ,100848,SN15,Neighbourhood & Planning,Mainstream Secondary,Transport Contracts,Third Party Payments,REVENUE
http://statistics.data.gov.uk/id/local-authority/00HY,Wiltshire Council,01/10/2010,1900417520,870.00,United Radio Cars ,101081,SN1 ,Neighbourhood & Planning,SEN Secondary,Transport Contracts,Third Party Payments,REVENUE
http://statistics.data.gov.uk/id/local-authority/00HY,Wiltshire Council,01/10/2010,1900417524,4680.00,Wilts Dorset Bus Co Ltd ,100218,BH15,Neighbourhood & Planning,Mainstream 16+ FE,Transport Contract -  Bus Season Tickets,Third Party Payments,REVENUE
http://statistics.data.gov.uk/id/local-authority/00HY,Wiltshire Council,01/10/2010,1900417524,26130.00,Wilts Dorset Bus Co Ltd ,100218,BH15,Neighbourhood & Planning,Mainstream Secondary,Transport Contract -  Bus Season Tickets,Third Party Payments,REVENUE
http://statistics.data.gov.uk/id/local-authority/00HY,Wiltshire Council,01/10/2010,1900417530,1200.00,N P Burke Ltd ,101713,SP3 ,Neighbourhood & Planning,Housing Rprs Simdell,Premises Related Other Maintenance Costs,Premises Related,REVENUE
http://statistics.data.gov.uk/id/local-authority/00HY,Wiltshire Council,01/10/2010,1900417532,4100.00,DJP Plumbing Services Ltd - DFG Onl ,115423,BH12,Wiltshire Council,Wiltshire Council,Payments to Contractors - Other,Third Party Payments,CAPITAL
http://statistics.data.gov.uk/id/local-authority/00HY,Wiltshire Council,01/10/2010,1900417533,4021.00,DJP Plumbing Services Ltd - DFG Onl ,115423,BH12,Wiltshire Council,Wiltshire Council,Payments to Contractors - Other,Third Party Payments,CAPITAL
http://statistics.data.gov.uk/id/local-authority/00HY,Wiltshire Council,01/10/2010,1900417534,12560.25,Total Care  Southern  Ltd ,101712,SO40,Wiltshire Council,Wiltshire Council,Payments to Contractors - Other,Third Party Payments,CAPITAL
http://statistics.data.gov.uk/id/local-authority/00HY,Wiltshire Council,04/10/2010,1900417535,5050.00,Total Care  Southern  Ltd ,101712,SO40,Wiltshire Council,Wiltshire Council,Payments to Contractors - Other,Third Party Payments,CAPITAL
http://statistics.data.gov.uk/id/local-authority/00HY,Wiltshire Council,04/10/2010,1900417545,1572.75,Salisbury NHS Foundation Trust ,112371,SP2 ,Children & Education,SpecialistProvision,Named Pupil Allowances,Capital charges and Expenditure,REVENUE
http://statistics.data.gov.uk/id/local-authority/00HY,Wiltshire Council,12/10/2010,1900417580,6360.00,Quality Education Solutions Ltd ,112198,GL13,Children & Education,QES,Software Licences,Supplies and Services,REVENUE
http://statistics.data.gov.uk/id/local-authority/00HY,Wiltshire Council,12/10/2010,1900417590,710.29,Bertram Library Services ,101283,BD19,Community Services,Lib Book Fund,Library Service,Supplies and Services,REVENUE
http://statistics.data.gov.uk/id/local-authority/00HY,Wiltshire Council,06/10/2010,1900417591,560.42,Openreach BT Repayments (Alteration ,126967,BH1 ,Neighbourhood & Planning,RTPI,Telephones - Mobile phones,Supplies and Services,REVENUE
http://statistics.data.gov.uk/id/local-authority/00HY,Wiltshire Council,06/10/2010,1900417591,573.88,Openreach BT Repayments (Alteration ,126967,BH1 ,Community Services,EDS 4Dbutn,Telephones - Mobile phones,Supplies and Services,REVENUE
http://statistics.data.gov.uk/id/local-authority/00HY,Wiltshire Council,06/10/2010,1900417591,615.13,Openreach BT Repayments (Alteration ,126967,BH1 ,Resources,DCSFinanceGeneral,Telephones - Mobile phones,Supplies and Services,REVENUE
http://statistics.data.gov.uk/id/local-authority/00HY,Wiltshire Council,06/10/2010,1900417591,632.26,Openreach BT Repayments (Alteration ,126967,BH1 ,Children & Education,Primary Sch Supp Tm,Telephones - Mobile phones,Supplies and Services,REVENUE
http://statistics.data.gov.uk/id/local-authority/00HY,Wiltshire Council,06/10/2010,1900417591,703.80,Openreach BT Repayments (Alteration ,126967,BH1 ,Neighbourhood & Planning,Bourne Hill Offices,Telephones - Mobile phones,Supplies and Services,REVENUE
http://statistics.data.gov.uk/id/local-authority/00HY,Wiltshire Council,06/10/2010,1900417591,705.33,Openreach BT Repayments (Alteration ,126967,BH1 ,Children & Education,ConnexionsSalisbury,Telephones - Mobile phones,Supplies and Services,REVENUE
http://statistics.data.gov.uk/id/local-authority/00HY,Wiltshire Council,06/10/2010,1900417591,758.73,Openreach BT Repayments (Alteration ,126967,BH1 ,Children & Education,ConnexionsChippenham,Telephones - Mobile phones,Supplies and Services,REVENUE
http://statistics.data.gov.uk/id/local-authority/00HY,Wiltshire Council,06/10/2010,1900417591,779.56,Openreach BT Repayments (Alteration ,126967,BH1 ,Children & Education,ConnexionTrowbridge,Telephones - Mobile phones,Supplies and Services,REVENUE
http://statistics.data.gov.uk/id/local-authority/00HY,Wiltshire Council,06/10/2010,1900417591,934.69,Openreach BT Repayments (Alteration ,126967,BH1 ,Community Services,DCS Business Develop,Telephones - Mobile phones,Supplies and Services,REVENUE
http://statistics.data.gov.uk/id/local-authority/00HY,Wiltshire Council,06/10/2010,1900417591,1011.78,Openreach BT Repayments (Alteration ,126967,BH1 ,Neighbourhood & Planning,CareConnect,Telephones - Mobile phones,Supplies and Services,REVENUE
http://statistics.data.gov.uk/id/local-authority/00HY,Wiltshire Council,06/10/2010,1900417591,1016.52,Openreach BT Repayments (Alteration ,126967,BH1 ,Children & Education,KennetLocalityTeam,Telephones - Mobile phones,Supplies and Services,REVENUE
http://statistics.data.gov.uk/id/local-authority/00HY,Wiltshire Council,06/10/2010,1900417591,1022.12,Openreach BT Repayments (Alteration ,126967,BH1 ,Community Services,South Locality Team1,Telephones - Mobile phones,Supplies and Services,REVENUE
http://statistics.data.gov.uk/id/local-authority/00HY,Wiltshire Council,06/10/2010,1900417591,1138.48,Openreach BT Repayments (Alteration ,126967,BH1 ,Children & Education,SalisburyDistManag,Telephones - Mobile phones,Supplies and Services,REVENUE
http://statistics.data.gov.uk/id/local-authority/00HY,Wiltshire Council,06/10/2010,1900417591,1181.62,Openreach BT Repayments (Alteration ,126967,BH1 ,Children & Education,EYChildCentreTm,Telephones - Mobile phones,Supplies and Services,REVENUE
http://statistics.data.gov.uk/id/local-authority/00HY,Wiltshire Council,06/10/2010,1900417591,1387.49,Openreach BT Repayments (Alteration ,126967,BH1 ,Neighbourhood & Planning,Network Maintenance,Telephones - Mobile phones,Supplies and Services,REVENUE
http://statistics.data.gov.uk/id/local-authority/00HY,Wiltshire Council,06/10/2010,1900417591,1392.69,Openreach BT Repayments (Alteration ,126967,BH1 ,Children & Education,NKenDistrictMan,Telephones - Mobile phones,Supplies and Services,REVENUE
http://statistics.data.gov.uk/id/local-authority/00HY,Wiltshire Council,06/10/2010,1900417591,1460.11,Openreach BT Repayments (Alteration ,126967,BH1 ,Neighbourhood & Planning,Traffic Signal Mtc,Telephones - Mobile phones,Supplies and Services,REVENUE
http://statistics.data.gov.uk/id/local-authority/00HY,Wiltshire Council,06/10/2010,1900417591,1520.25,Openreach BT Repayments (Alteration ,126967,BH1 ,Neighbourhood & Planning,InformationCentreAve,Telephones - Mobile phones,Supplies and Services,REVENUE
http://statistics.data.gov.uk/id/local-authority/00HY,Wiltshire Council,06/10/2010,1900417591,1735.28,Openreach BT Repayments (Alteration ,126967,BH1 ,Children & Education,WestDistManagement,Telephones - Mobile phones,Supplies and Services,REVENUE
http://statistics.data.gov.uk/id/local-authority/00HY,Wiltshire Council,06/10/2010,1900417591,2187.50,Openreach BT Repayments (Alteration ,126967,BH1 ,Neighbourhood & Planning,East Depots,Telephones - Mobile phones,Supplies and Services,REVENUE
http://statistics.data.gov.uk/id/local-authority/00HY,Wiltshire Council,06/10/2010,1900417591,2461.76,Openreach BT Repayments (Alteration ,126967,BH1 ,Children & Education,EYHQ,Telephones - Mobile phones,Supplies and Services,REVENUE
http://statistics.data.gov.uk/id/local-authority/00HY,Wiltshire Council,06/10/2010,1900417591,3166.74,Openreach BT Repayments (Alteration ,126967,BH1 ,Resources,DemocraticMemberSupp,Telephones - Mobile phones,Supplies and Services,REVENUE
http://statistics.data.gov.uk/id/local-authority/00HY,Wiltshire Council,06/10/2010,1900417591,4570.56,Openreach BT Repayments (Alteration ,126967,BH1 ,Resources,RevenuesandBenefits,Telephones - Mobile phones,Supplies and Services,REVENUE
http://statistics.data.gov.uk/id/local-authority/00HY,Wiltshire Council,06/10/2010,1900417591,7504.92,Openreach BT Repayments (Alteration ,126967,BH1 ,Resources,WAN,Telephones - Mobile phones,Supplies and Services,REVENUE
http://statistics.data.gov.uk/id/local-authority/00HY,Wiltshire Council,06/10/2010,1900417591,12087.14,Openreach BT Repayments (Alteration ,126967,BH1 ,Resources,Main xchg phon lines,Telephones - Mobile phones,Supplies and Services,REVENUE
http://statistics.data.gov.uk/id/local-authority/00HY,Wiltshire Council,04/10/2010,1900417593,699.43,Akcess Ltd ,101402,SN2 ,Neighbourhood & Planning,DCS WBassMalmsbryU65,Transport Contracts,Third Party Payments,REVENUE
http://statistics.data.gov.uk/id/local-authority/00HY,Wiltshire Council,04/10/2010,1900417593,740.57,Akcess Ltd ,101402,SN2 ,Neighbourhood & Planning,DCS WBassMalmsbryO65,Transport Contracts,Third Party Payments,REVENUE
http://statistics.data.gov.uk/id/local-authority/00HY,Wiltshire Council,04/10/2010,1900417595,552.45,Starline  and  Wessex Taxis 228 ,100172,BA12,Neighbourhood & Planning,DCS West CTPLD U65,Transport Contracts,Third Party Payments,REVENUE
http://statistics.data.gov.uk/id/local-authority/00HY,Wiltshire Council,04/10/2010,1900417597,3305.66,Kinch Coaches Ltd ,100969,SN16,Neighbourhood & Planning,Mainstream Secondary,Transport Contract -  Bus Season Tickets,Third Party Payments,REVENUE
http://statistics.data.gov.uk/id/local-authority/00HY,Wiltshire Council,04/10/2010,1900417598,563.68,Wessex Community Action ,100262,SP1 ,Neighbourhood & Planning,DCS Amebury O65,Transport Contracts,Third Party Payments,REVENUE
http://statistics.data.gov.uk/id/local-authority/00HY,Wiltshire Council,04/10/2010,1900417598,1022.98,Wessex Community Action ,100262,SP1 ,Neighbourhood & Planning,DCS South CTPLD O65,Transport Contracts,Third Party Payments,REVENUE
http://statistics.data.gov.uk/id/local-authority/00HY,Wiltshire Council,04/10/2010,1900417598,4029.29,Wessex Community Action ,100262,SP1 ,Neighbourhood & Planning,DCS Salisbury O65,Transport Contracts,Third Party Payments,REVENUE
http://statistics.data.gov.uk/id/local-authority/00HY,Wiltshire Council,04/10/2010,1900417598,6492.74,Wessex Community Action ,100262,SP1 ,Neighbourhood & Planning,DCS Salis MenHth O65,Transport Contracts,Third Party Payments,REVENUE
http://statistics.data.gov.uk/id/local-authority/00HY,Wiltshire Council,04/10/2010,1900417603,744.17,North Newnton Garage ,100201,SN9 ,Neighbourhood & Planning,Mainstream Primary,Transport Contracts,Third Party Payments,REVENUE
http://statistics.data.gov.uk/id/local-authority/00HY,Wiltshire Council,04/10/2010,1900417606,2139.00,Farmor's School ,129385,GL7 ,Neighbourhood & Planning,Mainstream Secondary,Transport Contract -  Bus Season Tickets,Third Party Payments,REVENUE
http://statistics.data.gov.uk/id/local-authority/00HY,Wiltshire Council,04/10/2010,1900417610,510.70,B Y B Travel Ltd ,101145,BA15,Neighbourhood & Planning,Public Transport,Transport Contracts,Third Party Payments,REVENUE
http://statistics.data.gov.uk/id/local-authority/00HY,Wiltshire Council,04/10/2010,1900417610,780.42,B Y B Travel Ltd ,101145,BA15,Neighbourhood & Planning,Mainstream Primary,Transport Contracts,Third Party Payments,REVENUE
http://statistics.data.gov.uk/id/local-authority/00HY,Wiltshire Council,04/10/2010,1900417610,780.42,B Y B Travel Ltd ,101145,BA15,Neighbourhood & Planning,Mainstream 16+ Sec,Transport Contracts,Third Party Payments,REVENUE
http://statistics.data.gov.uk/id/local-authority/00HY,Wiltshire Council,04/10/2010,1900417610,6243.31,B Y B Travel Ltd ,101145,BA15,Neighbourhood & Planning,Mainstream Secondary,Transport Contracts,Third Party Payments,REVENUE
http://statistics.data.gov.uk/id/local-authority/00HY,Wiltshire Council,04/10/2010,1900417612,3724.23,B Y B Travel Ltd ,101145,BA15,Neighbourhood & Planning,Mainstream 16+ FE,Transport Contracts,Third Party Payments,REVENUE
http://statistics.data.gov.uk/id/local-authority/00HY,Wiltshire Council,04/10/2010,1900417613,566.94,Andybus  and  Coach Ltd ,100132,SN16,Neighbourhood & Planning,Mainstream Primary,Transport Contracts,Third Party Payments,REVENUE
http://statistics.data.gov.uk/id/local-authority/00HY,Wiltshire Council,04/10/2010,1900417613,2948.47,Andybus  and  Coach Ltd ,100132,SN16,Neighbourhood & Planning,Mainstream 16+ FE,Transport Contracts,Third Party Payments,REVENUE
http://statistics.data.gov.uk/id/local-authority/00HY,Wiltshire Council,04/10/2010,1900417613,3758.41,Andybus  and  Coach Ltd ,100132,SN16,Neighbourhood & Planning,Mainstream 16+ Sec,Transport Contracts,Third Party Payments,REVENUE
http://statistics.data.gov.uk/id/local-authority/00HY,Wiltshire Council,04/10/2010,1900417613,18846.30,Andybus  and  Coach Ltd ,100132,SN16,Neighbourhood & Planning,Mainstream Secondary,Transport Contracts,Third Party Payments,REVENUE
http://statistics.data.gov.uk/id/local-authority/00HY,Wiltshire Council,04/10/2010,1900417613,38978.24,Andybus  and  Coach Ltd ,100132,SN16,Neighbourhood & Planning,Public Transport,Transport Contracts,Third Party Payments,REVENUE
http://statistics.data.gov.uk/id/local-authority/00HY,Wiltshire Council,04/10/2010,1900417621,1691.00,A M S Taxis ,100839,BA14,Neighbourhood & Planning,SEN Primary,Transport Contracts,Third Party Payments,REVENUE
http://statistics.data.gov.uk/id/local-authority/00HY,Wiltshire Council,04/10/2010,1900417623,570.00,A M S Taxis ,100839,BA14,Neighbourhood & Planning,SEN Secondary,Transport Contracts,Third Party Payments,REVENUE
http://statistics.data.gov.uk/id/local-authority/00HY,Wiltshire Council,05/10/2010,1900418156,1500.00,REDACTED PERSONAL DATA,126369,REDACTED PERSONAL DATA,Children & Education,MusicXpress,Other Professional Fees,Supplies and Services,REVENUE
http://statistics.data.gov.uk/id/local-authority/00HY,Wiltshire Council,05/10/2010,1900418159,1223.08,Southern Electric Contracting Ltd ,100421,EX1 ,Neighbourhood & Planning,Lighting - Kennet,Public Lighting,Premises Related,REVENUE
http://statistics.data.gov.uk/id/local-authority/00HY,Wiltshire Council,05/10/2010,1900418171,7374.30,BUPA - Trowbridge Oaks ,113062,BA14,Community Services,OP West Locality,Adult Care Nursing Placements- Spot Purchase,Third Party Payments,REVENUE
http://statistics.data.gov.uk/id/local-authority/00HY,Wiltshire Council,05/10/2010,1900418173,21846.75,High Street Estates ,116420,M7 4,Resources,Commercial Props,Premises Rental / Hire Charges,Premises Related,REVENUE
http://statistics.data.gov.uk/id/local-authority/00HY,Wiltshire Council,05/10/2010,1900418174,3300.00,REDACTED PERSONAL DATA,112189,REDACTED PERSONAL DATA,Children & Education,EYChildCareTeam,Grants provided by WC - Other,Supplies and Services,REVENUE
http://statistics.data.gov.uk/id/local-authority/00HY,Wiltshire Council,05/10/2010,1900418175,2499.40,REDACTED PERSONAL DATA,112189,REDACTED PERSONAL DATA,Children & Education,EYChildCareTeam,Grants provided by WC - Other,Supplies and Services,REVENUE
http://statistics.data.gov.uk/id/local-authority/00HY,Wiltshire Council,06/10/2010,1900418179,1089.01,Southern Electric Contracting Ltd ,100421,EX1 ,Neighbourhood & Planning,Lighting - Kennet,Public Lighting,Premises Related,REVENUE
http://statistics.data.gov.uk/id/local-authority/00HY,Wiltshire Council,05/10/2010,1900418183,1560.91,Southern Electric ,121253,RG21,Community Services,Bradbury Manor Resp,Electricity,Premises Related,REVENUE
http://statistics.data.gov.uk/id/local-authority/00HY,Wiltshire Council,08/10/2010,1900418194,689.56,R Moulding & Co (Salisbury) Ltd ,100200,SP2 ,Resources,Public Conveniences,Preventative Property Maintenance,Premises Related,REVENUE
http://statistics.data.gov.uk/id/local-authority/00HY,Wiltshire Council,12/10/2010,1900418199,579.67,R Moulding & Co (Salisbury) Ltd ,100200,SP2 ,Resources,Youth Centres,Preventative Property Maintenance,Premises Related,REVENUE
http://statistics.data.gov.uk/id/local-authority/00HY,Wiltshire Council,12/10/2010,1900418202,620.42,R Moulding & Co (Salisbury) Ltd ,100200,SP2 ,Resources,Gypsy Sites,Preventative Property Maintenance,Premises Related,REVENUE
http://statistics.data.gov.uk/id/local-authority/00HY,Wiltshire Council,05/10/2010,1900418249,1336.05,REDACTED PERSONAL DATA,128070,REDACTED PERSONAL DATA,Community Services,Lib Trans & Prop,Grants provided by WC - Other,Supplies and Services,REVENUE
http://statistics.data.gov.uk/id/local-authority/00HY,Wiltshire Council,05/10/2010,1900418250,600.00,FP Teleset Data Centre ,115933,DA1 ,Children & Education,LETNorthKennet,Postage,Supplies and Services,REVENUE
http://statistics.data.gov.uk/id/local-authority/00HY,Wiltshire Council,05/10/2010,1900418264,32247.50,Southampton City Council ,112511,SO14,Children & Education,EOTASRecoupment,Educational Fees,Supplies and Services,REVENUE
http://statistics.data.gov.uk/id/local-authority/00HY,Wiltshire Council,06/10/2010,1900418271,554.17,bta architects Ltd ,101010,BA12,Wiltshire Council,Wiltshire Council,Buildings Minor Alterations,Premises Related,CAPITAL
http://statistics.data.gov.uk/id/local-authority/00HY,Wiltshire Council,12/10/2010,1900418274,663.00,AC  and  MS Ltd ,101175,SS6 ,Wiltshire Council,Wiltshire Council,Buildings Minor Alterations,Premises Related,CAPITAL
http://statistics.data.gov.uk/id/local-authority/00HY,Wiltshire Council,05/10/2010,1900418275,997.23,REDACTED PERSONAL DATA,128887,REDACTED PERSONAL DATA,Children & Education,LAC & 16+ Team 2,Client & Social Housing Bed & Breakfast,Third Party Payments,REVENUE
http://statistics.data.gov.uk/id/local-authority/00HY,Wiltshire Council,05/10/2010,1900418284,3648.98,Wiltshire Music Centre Trust Ltd ,112987,BA15,Children & Education,1000WiltsVoice,Premises Rental / Hire Charges,Premises Related,REVENUE
http://statistics.data.gov.uk/id/local-authority/00HY,Wiltshire Council,08/10/2010,1900418286,715.00,Dawsons Music Limited ,129251,WA1 ,Resources,Secondary,Preventative Property Maintenance,Premises Related,REVENUE
http://statistics.data.gov.uk/id/local-authority/00HY,Wiltshire Council,27/10/2010,1900418287,6660.00,Easton Bevins ,125252,BS7 ,Neighbourhood & Planning,Other Rechable Works,Preventative Property Maintenance,Premises Related,REVENUE
http://statistics.data.gov.uk/id/local-authority/00HY,Wiltshire Council,05/10/2010,1900418292,73544.46,Wessex Building Services ,126252,SP7 ,Wiltshire Council,Wiltshire Council,Buildings Minor Alterations,Premises Related,CAPITAL
http://statistics.data.gov.uk/id/local-authority/00HY,Wiltshire Council,05/10/2010,1900418293,3566.38,Teachers Pensions Agency ,121637,DL3 ,Wiltshire Council,Wiltshire Council,Superannuations and AVC�s,Balance Sheet Accounts,REVENUE
http://statistics.data.gov.uk/id/local-authority/00HY,Wiltshire Council,12/10/2010,1900418294,545.85,Water Pure Systems Ltd ,101189,BS35,Neighbourhood & Planning,Primary Sch Pooling,Preventative Property Maintenance,Premises Related,REVENUE
http://statistics.data.gov.uk/id/local-authority/00HY,Wiltshire Council,05/10/2010,1900418298,1476.30,Wessex Electricals (Shaftsbury) Ltd ,101690,SP7 ,Resources,Wkplc Trnsfrm Prprty,Preventative Property Maintenance,Premises Related,REVENUE
http://statistics.data.gov.uk/id/local-authority/00HY,Wiltshire Council,05/10/2010,1900418301,1902.30,RSMHC A  Mencap ,112217,PE7 ,Community Services,CTPLD County CIC U65,Adult Residential Placements - Spot Purchase,Third Party Payments,REVENUE
http://statistics.data.gov.uk/id/local-authority/00HY,Wiltshire Council,05/10/2010,1900418309,1021.68,REDACTED PERSONAL DATA,126299,REDACTED PERSONAL DATA,Children & Education,Community Team North,Additional Allowances Transfer Payments,Capital charges and Expenditure,REVENUE
http://statistics.data.gov.uk/id/local-authority/00HY,Wiltshire Council,05/10/2010,1900418320,2162.40,ConsultCIH Ltd ,127941,CV4 ,Resources,DNP Finance,Consultants� Fees,Supplies and Services,REVENUE
http://statistics.data.gov.uk/id/local-authority/00HY,Wiltshire Council,05/10/2010,1900418325,903.43,The Leaving Care Company Ltd ,112698,OL8 ,Children & Education,LAC & 16+ Team 1,Children's Residential / Domiciliary Care,Third Party Payments,REVENUE
http://statistics.data.gov.uk/id/local-authority/00HY,Wiltshire Council,05/10/2010,1900418326,1894.51,Stepping Stones Southwest Ltd ,112590,TA6 ,Children & Education,LAC & 16+ Team 1,Children's Residential / Domiciliary Care,Third Party Payments,REVENUE
http://statistics.data.gov.uk/id/local-authority/00HY,Wiltshire Council,05/10/2010,1900418328,1894.51,Stepping Stones Southwest Ltd ,112590,TA6 ,Children & Education,LAC & 16+ Team 1,Children's Residential / Domiciliary Care,Third Party Payments,REVENUE
http://statistics.data.gov.uk/id/local-authority/00HY,Wiltshire Council,05/10/2010,1900418329,1894.51,Stepping Stones Southwest Ltd ,112590,TA6 ,Children & Education,LAC & 16+ Team 1,Children's Residential / Domiciliary Care,Third Party Payments,REVENUE
http://statistics.data.gov.uk/id/local-authority/00HY,Wiltshire Council,05/10/2010,1900418330,3024.71,The Leaving Care Company Ltd ,112698,OL8 ,Children & Education,LAC & 16+ Team 1,Children's Residential / Domiciliary Care,Third Party Payments,REVENUE
http://statistics.data.gov.uk/id/local-authority/00HY,Wiltshire Council,05/10/2010,1900418332,903.43,The Leaving Care Company Ltd ,112698,OL8 ,Children & Education,LAC & 16+ Team 1,Children's Residential / Domiciliary Care,Third Party Payments,REVENUE
http://statistics.data.gov.uk/id/local-authority/00HY,Wiltshire Council,05/10/2010,1900418333,3024.71,The Leaving Care Company Ltd ,112698,OL8 ,Children & Education,LAC & 16+ Team 1,Children's Residential / Domiciliary Care,Third Party Payments,REVENUE
http://statistics.data.gov.uk/id/local-authority/00HY,Wiltshire Council,05/10/2010,1900418335,2927.14,The Leaving Care Company Ltd ,112698,OL8 ,Children & Education,LAC & 16+ Team 1,Children's Residential / Domiciliary Care,Third Party Payments,REVENUE
http://statistics.data.gov.uk/id/local-authority/00HY,Wiltshire Council,05/10/2010,1900418348,592.00,Salisbury Arts Centre ,112353,SP1 ,Children & Education,ArtsPartnership,Premises Rental / Hire Charges,Premises Related,REVENUE
http://statistics.data.gov.uk/id/local-authority/00HY,Wiltshire Council,12/10/2010,1900418363,570.05,DX Network Services Ltd ,110812,NN3 ,Community Services,Lib General,Postage,Supplies and Services,REVENUE
http://statistics.data.gov.uk/id/local-authority/00HY,Wiltshire Council,05/10/2010,1900418364,525.00,Land Registry ,101230,LEGA,Resources,DOR Dept Balance Sht,Work Before Asset Sale,Balance Sheet Accounts,REVENUE
http://statistics.data.gov.uk/id/local-authority/00HY,Wiltshire Council,06/10/2010,1900418455,798.41,Carewatch Wessex Carewatch Wessex,100762,SP8 ,Community Services,OP West Locality,Adult Domiciliary Care - Spot,Third Party Payments,REVENUE
http://statistics.data.gov.uk/id/local-authority/00HY,Wiltshire Council,06/10/2010,1900418456,579.96,MENCAP ,101139,PE7 ,Community Services,CTPLD County CIC U65,Adult Domiciliary Care - Spot,Third Party Payments,REVENUE
http://statistics.data.gov.uk/id/local-authority/00HY,Wiltshire Council,06/10/2010,1900418458,11773.92,Arbory Residential Home ,113587,SP11,Community Services,MH OP East Locality,Adult Residential Placements - 12 Week,Third Party Payments,REVENUE
http://statistics.data.gov.uk/id/local-authority/00HY,Wiltshire Council,06/10/2010,1900418461,1050.00,Children's Workforce Development Co ,129722,LS1 ,Children & Education,NQSocialWorkerProgra,Other Government Grants,Income,REVENUE
http://statistics.data.gov.uk/id/local-authority/00HY,Wiltshire Council,06/10/2010,1900418463,7500.00,REDACTED PERSONAL DATA,129727,REDACTED PERSONAL DATA,Community Services,Lib Arts Dev,Grants provided by WC - Other,Supplies and Services,REVENUE
http://statistics.data.gov.uk/id/local-authority/00HY,Wiltshire Council,07/10/2010,1900418466,1406.71,Avery Healthcare Cepen Lodge ,126733,SN14,Community Services,MH OP North Locality,Adult Residential Placements - Spot Purchase,Third Party Payments,REVENUE
http://statistics.data.gov.uk/id/local-authority/00HY,Wiltshire Council,06/10/2010,1900418471,649.27,Wilkins Builders Ltd ,100189,SN11,Resources,Leisure Centres,Preventative Property Maintenance,Premises Related,REVENUE
http://statistics.data.gov.uk/id/local-authority/00HY,Wiltshire Council,12/10/2010,1900418474,766.50,RGV Engineering (Netheravon) Ltd ,100202,SP4 ,Resources,Youth Centres,Preventative Property Maintenance,Premises Related,REVENUE
http://statistics.data.gov.uk/id/local-authority/00HY,Wiltshire Council,12/10/2010,1900418476,882.00,RGV Engineering (Netheravon) Ltd ,100202,SP4 ,Neighbourhood & Planning,Primary Sch Pooling,Preventative Property Maintenance,Premises Related,REVENUE
http://statistics.data.gov.uk/id/local-authority/00HY,Wiltshire Council,12/10/2010,1900418484,1875.00,Practicus Ltd ,112161,RG9 ,Neighbourhood & Planning,Fleet Gen Management,Consultants� Fees,Supplies and Services,REVENUE
http://statistics.data.gov.uk/id/local-authority/00HY,Wiltshire Council,06/10/2010,1900418497,2722.18,Steele Davis (Swindon) Ltd ,100419,SN2 ,Neighbourhood & Planning,Browfort (Kennet),Preventative Property Maintenance,Premises Related,REVENUE
http://statistics.data.gov.uk/id/local-authority/00HY,Wiltshire Council,06/10/2010,1900418504,560.42,Openreach BT Repayments (Alteration ,126967,BH1 ,Neighbourhood & Planning,RTPI,Telephones - Mobile phones,Supplies and Services,REVENUE
http://statistics.data.gov.uk/id/local-authority/00HY,Wiltshire Council,06/10/2010,1900418504,699.51,Openreach BT Repayments (Alteration ,126967,BH1 ,Neighbourhood & Planning,Park & Ride Sites,Telephones - Mobile phones,Supplies and Services,REVENUE
http://statistics.data.gov.uk/id/local-authority/00HY,Wiltshire Council,06/10/2010,1900418504,706.06,Openreach BT Repayments (Alteration ,126967,BH1 ,Children & Education,ConnexionsSalisbury,Telephones - Mobile phones,Supplies and Services,REVENUE
http://statistics.data.gov.uk/id/local-authority/00HY,Wiltshire Council,06/10/2010,1900418504,706.95,Openreach BT Repayments (Alteration ,126967,BH1 ,Children & Education,ConnexionTrowbridge,Telephones - Mobile phones,Supplies and Services,REVENUE
http://statistics.data.gov.uk/id/local-authority/00HY,Wiltshire Council,06/10/2010,1900418504,739.14,Openreach BT Repayments (Alteration ,126967,BH1 ,Children & Education,ConnexionsChippenham,Telephones - Mobile phones,Supplies and Services,REVENUE
http://statistics.data.gov.uk/id/local-authority/00HY,Wiltshire Council,06/10/2010,1900418504,754.29,Openreach BT Repayments (Alteration ,126967,BH1 ,Community Services,South Locality Team1,Telephones - Mobile phones,Supplies and Services,REVENUE
http://statistics.data.gov.uk/id/local-authority/00HY,Wiltshire Council,06/10/2010,1900418504,792.82,Openreach BT Repayments (Alteration ,126967,BH1 ,Children & Education,NKenDistrictMan,Telephones - Mobile phones,Supplies and Services,REVENUE
http://statistics.data.gov.uk/id/local-authority/00HY,Wiltshire Council,06/10/2010,1900418504,805.26,Openreach BT Repayments (Alteration ,126967,BH1 ,Neighbourhood & Planning,Traffic Signal Mtc,Telephones - Mobile phones,Supplies and Services,REVENUE
http://statistics.data.gov.uk/id/local-authority/00HY,Wiltshire Council,06/10/2010,1900418504,902.57,Openreach BT Repayments (Alteration ,126967,BH1 ,Children & Education,KennetLocalityTeam,Telephones - Mobile phones,Supplies and Services,REVENUE
http://statistics.data.gov.uk/id/local-authority/00HY,Wiltshire Council,06/10/2010,1900418504,934.33,Openreach BT Repayments (Alteration ,126967,BH1 ,Children & Education,SalisburyDistManag,Telephones - Mobile phones,Supplies and Services,REVENUE
http://statistics.data.gov.uk/id/local-authority/00HY,Wiltshire Council,06/10/2010,1900418504,1092.07,Openreach BT Repayments (Alteration ,126967,BH1 ,Neighbourhood & Planning,SDC Bourne Hill,Telephones - Mobile phones,Supplies and Services,REVENUE
http://statistics.data.gov.uk/id/local-authority/00HY,Wiltshire Council,06/10/2010,1900418504,1155.71,Openreach BT Repayments (Alteration ,126967,BH1 ,Neighbourhood & Planning,CareConnect,Telephones - Mobile phones,Supplies and Services,REVENUE
http://statistics.data.gov.uk/id/local-authority/00HY,Wiltshire Council,06/10/2010,1900418504,1188.80,Openreach BT Repayments (Alteration ,126967,BH1 ,Children & Education,EYChildCentreTm,Telephones - Mobile phones,Supplies and Services,REVENUE
http://statistics.data.gov.uk/id/local-authority/00HY,Wiltshire Council,06/10/2010,1900418504,1206.38,Openreach BT Repayments (Alteration ,126967,BH1 ,Neighbourhood & Planning,Network Maintenance,Telephones - Mobile phones,Supplies and Services,REVENUE
http://statistics.data.gov.uk/id/local-authority/00HY,Wiltshire Council,06/10/2010,1900418504,1230.05,Openreach BT Repayments (Alteration ,126967,BH1 ,Resources,Wrkplc Transform Prg,Telephones - Mobile phones,Supplies and Services,REVENUE
http://statistics.data.gov.uk/id/local-authority/00HY,Wiltshire Council,06/10/2010,1900418504,1440.78,Openreach BT Repayments (Alteration ,126967,BH1 ,Children & Education,WestDistManagement,Telephones - Mobile phones,Supplies and Services,REVENUE
http://statistics.data.gov.uk/id/local-authority/00HY,Wiltshire Council,06/10/2010,1900418504,1963.75,Openreach BT Repayments (Alteration ,126967,BH1 ,Resources,DemocraticMemberSupp,Telephones - Mobile phones,Supplies and Services,REVENUE
http://statistics.data.gov.uk/id/local-authority/00HY,Wiltshire Council,06/10/2010,1900418504,2064.02,Openreach BT Repayments (Alteration ,126967,BH1 ,Neighbourhood & Planning,West Depots,Telephones - Mobile phones,Supplies and Services,REVENUE
http://statistics.data.gov.uk/id/local-authority/00HY,Wiltshire Council,06/10/2010,1900418504,2194.56,Openreach BT Repayments (Alteration ,126967,BH1 ,Children & Education,EYHQ,Telephones - Mobile phones,Supplies and Services,REVENUE
http://statistics.data.gov.uk/id/local-authority/00HY,Wiltshire Council,06/10/2010,1900418504,3064.18,Openreach BT Repayments (Alteration ,126967,BH1 ,Community Services,DCS Business Develop,Telephones - Mobile phones,Supplies and Services,REVENUE
http://statistics.data.gov.uk/id/local-authority/00HY,Wiltshire Council,06/10/2010,1900418504,4075.24,Openreach BT Repayments (Alteration ,126967,BH1 ,Resources,Main xchg phon lines,Telephones - Mobile phones,Supplies and Services,REVENUE
http://statistics.data.gov.uk/id/local-authority/00HY,Wiltshire Council,06/10/2010,1900418504,4886.85,Openreach BT Repayments (Alteration ,126967,BH1 ,Resources,RevenuesandBenefits,Telephones - Mobile phones,Supplies and Services,REVENUE
http://statistics.data.gov.uk/id/local-authority/00HY,Wiltshire Council,06/10/2010,1900418504,7049.42,Openreach BT Repayments (Alteration ,126967,BH1 ,Resources,WAN,Telephones - Mobile phones,Supplies and Services,REVENUE
http://statistics.data.gov.uk/id/local-authority/00HY,Wiltshire Council,12/10/2010,1900418512,13254.00,Criminal Records Bureau ,110647,L69 ,Resources,SharedServHRother,Criminal Record Bureau Checks,Employee Related,REVENUE
http://statistics.data.gov.uk/id/local-authority/00HY,Wiltshire Council,06/10/2010,1900418521,1221.83,"Prudential Pension Fund Sces Sheldon, Chippenham",124471,RG1 ,Wiltshire Council,Wiltshire Council,Superannuations and AVC�s,Balance Sheet Accounts,REVENUE
http://statistics.data.gov.uk/id/local-authority/00HY,Wiltshire Council,06/10/2010,1900418528,2279.06,Allsave Limited ,113436,RG22,Wiltshire Council,Wiltshire Council,Child Care Vouchers - Service Charge,Balance Sheet Accounts,REVENUE
http://statistics.data.gov.uk/id/local-authority/00HY,Wiltshire Council,06/10/2010,1900418571,659.50,REDACTED PERSONAL DATA,101696,REDACTED PERSONAL DATA,Neighbourhood & Planning,Housing Rprs Simdell,Premises Related Other Maintenance Costs,Premises Related,REVENUE
http://statistics.data.gov.uk/id/local-authority/00HY,Wiltshire Council,06/10/2010,1900418573,862.35,REDACTED PERSONAL DATA,101696,REDACTED PERSONAL DATA,Neighbourhood & Planning,Housing Rprs Simdell,Premises Related Other Maintenance Costs,Premises Related,REVENUE
http://statistics.data.gov.uk/id/local-authority/00HY,Wiltshire Council,06/10/2010,1900418578,1297.00,T Signs Ltd ,100850,SP4 ,Neighbourhood & Planning,Housing Rprs Simdell,Premises Related Other Maintenance Costs,Premises Related,REVENUE
http://statistics.data.gov.uk/id/local-authority/00HY,Wiltshire Council,06/10/2010,1900418583,1674.02,Donhead Felt Roofing Ltd ,101720,SP7 ,Neighbourhood & Planning,Housing Rprs Simdell,Premises Related Other Maintenance Costs,Premises Related,REVENUE
http://statistics.data.gov.uk/id/local-authority/00HY,Wiltshire Council,06/10/2010,1900418585,1560.00,Donhead Felt Roofing Ltd ,101720,SP7 ,Neighbourhood & Planning,Housing Rprs Simdell,Premises Related Other Maintenance Costs,Premises Related,REVENUE
http://statistics.data.gov.uk/id/local-authority/00HY,Wiltshire Council,06/10/2010,1900418592,840.00,B & M Windows  and  Doors Ltd ,101694,SP2 ,Neighbourhood & Planning,Housing Rprs Simdell,Premises Related Other Maintenance Costs,Premises Related,REVENUE
http://statistics.data.gov.uk/id/local-authority/00HY,Wiltshire Council,06/10/2010,1900418596,1041.36,Donhead Felt Roofing Ltd ,101720,SP7 ,Neighbourhood & Planning,Housing Rprs Simdell,Premises Related Other Maintenance Costs,Premises Related,REVENUE
http://statistics.data.gov.uk/id/local-authority/00HY,Wiltshire Council,06/10/2010,1900418613,1174.79,Mrs G A Whettleton ,101724,SP2 ,Neighbourhood & Planning,Housing Rprs Simdell,Premises Related Other Maintenance Costs,Premises Related,REVENUE
http://statistics.data.gov.uk/id/local-authority/00HY,Wiltshire Council,06/10/2010,1900421803,3014.50,Wessex Care Ltd (Little Manor) ,112914,SP1 ,Community Services,OP South Locality,Adult Residential Place - Spot Purchase,Income,REVENUE
http://statistics.data.gov.uk/id/local-authority/00HY,Wiltshire Council,27/10/2010,1900421805,2500.00,REDACTED PERSONAL DATA,121530,REDACTED PERSONAL DATA,Children & Education,AssistedPlacesScheme,Cash Support Transfer Payments,Capital charges and Expenditure,REVENUE
http://statistics.data.gov.uk/id/local-authority/00HY,Wiltshire Council,06/10/2010,1900421809,19483.23,Craegmoor Healthcare ,112074,WR3 ,Community Services,CTPLD County CIC U65,Adult Residential Placements - Spot Purchase,Third Party Payments,REVENUE
http://statistics.data.gov.uk/id/local-authority/00HY,Wiltshire Council,06/10/2010,1900421812,674.58,Supported Independence Ltd ,112607,BS6 ,Community Services,MH AOWA West,Supported Living - Without SP payments,Third Party Payments,REVENUE
http://statistics.data.gov.uk/id/local-authority/00HY,Wiltshire Council,06/10/2010,1900421818,1950.00,The Learning Curve ,121840,SN12,Neighbourhood & Planning,ESF Business Cluster,Miscellaneous Costs,Supplies and Services,REVENUE
http://statistics.data.gov.uk/id/local-authority/00HY,Wiltshire Council,12/10/2010,1900421823,1400.00,Samtosha Training Consultancy ,112382,SN8 ,Children & Education,Operations,Staff Training Course Costs,Employee Related,REVENUE
http://statistics.data.gov.uk/id/local-authority/00HY,Wiltshire Council,06/10/2010,1900421825,4021.28,Wiltshire Police Authority ,112989,SN10,Wiltshire Council,Wiltshire Council,Vehicle Purchases,Transport Related,CAPITAL
http://statistics.data.gov.uk/id/local-authority/00HY,Wiltshire Council,07/10/2010,1900421831,804.09,Waterland Outdoor Pursuits ,126167,SN4 ,Children & Education,MereYDC,Other Income,Income,REVENUE
http://statistics.data.gov.uk/id/local-authority/00HY,Wiltshire Council,29/10/2010,1900421835,1406.00,REDACTED PERSONAL DATA,120900,REDACTED PERSONAL DATA,Children & Education,YouthDevLocalityF,Grants provided by WC - Other,Supplies and Services,REVENUE
http://statistics.data.gov.uk/id/local-authority/00HY,Wiltshire Council,06/10/2010,1900421838,7846.22,REDACTED PERSONAL DATA,129119,REDACTED PERSONAL DATA,Children & Education,YouthDevLocalityD,Grants provided by WC - Other,Supplies and Services,REVENUE
http://statistics.data.gov.uk/id/local-authority/00HY,Wiltshire Council,29/10/2010,1900421839,1151.00,REDACTED PERSONAL DATA,121724,REDACTED PERSONAL DATA,Children & Education,YouthDevLocalityB,Grants provided by WC - Other,Supplies and Services,REVENUE
http://statistics.data.gov.uk/id/local-authority/00HY,Wiltshire Council,29/10/2010,1900421841,921.65,REDACTED PERSONAL DATA,115015,REDACTED PERSONAL DATA,Children & Education,YouthDevLocalityC,Grants provided by WC - Other,Supplies and Services,REVENUE
http://statistics.data.gov.uk/id/local-authority/00HY,Wiltshire Council,07/10/2010,1900421864,3391.58,Bennett & Dean Electrical Ltd ,100214,SP2 ,Wiltshire Council,Wiltshire Council,Payments to Contractors - Other,Third Party Payments,CAPITAL
http://statistics.data.gov.uk/id/local-authority/00HY,Wiltshire Council,07/10/2010,1900421865,4300.54,Bennett & Dean Electrical Ltd ,100214,SP2 ,Wiltshire Council,Wiltshire Council,Payments to Contractors - Other,Third Party Payments,CAPITAL
http://statistics.data.gov.uk/id/local-authority/00HY,Wiltshire Council,07/10/2010,1900421866,3310.26,Bennett & Dean Electrical Ltd ,100214,SP2 ,Wiltshire Council,Wiltshire Council,Payments to Contractors - Other,Third Party Payments,CAPITAL
http://statistics.data.gov.uk/id/local-authority/00HY,Wiltshire Council,12/10/2010,1900421867,1047.90,HQN Limited ,111157,YO31,Neighbourhood & Planning,Admin Hsg Management,Conference Fees,Supplies and Services,REVENUE
http://statistics.data.gov.uk/id/local-authority/00HY,Wiltshire Council,11/10/2010,1900421868,3912.00,Telecetera Ltd ,121659,WR1 ,Neighbourhood & Planning,Admin Hsg Management,Software Maintenance,Supplies and Services,REVENUE
http://statistics.data.gov.uk/id/local-authority/00HY,Wiltshire Council,08/10/2010,1900421948,1485.20,"Bromham, Chittoe & Sandy Lane Parochial Church Council",127258,SN15,Neighbourhood & Planning,DTEL Dept Balance Sh,Section 106 Deposits,Balance Sheet Accounts,REVENUE
http://statistics.data.gov.uk/id/local-authority/00HY,Wiltshire Council,07/10/2010,1900421950,5928.00,Bluebell Lodge Residential Care Hom ,110314,SN15,Community Services,OP North Locality,Adult Residential Placements - Spot Purchase,Third Party Payments,REVENUE
http://statistics.data.gov.uk/id/local-authority/00HY,Wiltshire Council,11/10/2010,1900421952,622.80,Pitney Bowes Finance Ltd ,112127,CM20,Neighbourhood & Planning,Admin Hsg Management,Postage,Supplies and Services,REVENUE
http://statistics.data.gov.uk/id/local-authority/00HY,Wiltshire Council,08/10/2010,1900421954,2225.00,H M C S ,116252,BA14,Children & Education,HQ Social Care,Legal Fees,Supplies and Services,REVENUE
http://statistics.data.gov.uk/id/local-authority/00HY,Wiltshire Council,08/10/2010,1900421956,566.00,A & M Blinds ,129732,BA12,Neighbourhood & Planning,SH Lynch Close,Furniture / Office Equipment Purchase,Supplies and Services,REVENUE
http://statistics.data.gov.uk/id/local-authority/00HY,Wiltshire Council,12/10/2010,1900421969,737.26,Palmer  and  Harvey McLane Ltd ,122889,PO15,Neighbourhood & Planning,Five Rivers,Vending costs,Supplies and Services,REVENUE
http://statistics.data.gov.uk/id/local-authority/00HY,Wiltshire Council,07/10/2010,1900421978,1110.62,Alpha Taxis ,100124,BA14,Neighbourhood & Planning,DCS West CTPLD U65,Transport Contracts,Third Party Payments,REVENUE
http://statistics.data.gov.uk/id/local-authority/00HY,Wiltshire Council,07/10/2010,1900421983,629.14,Alpha Taxis ,100124,BA14,Neighbourhood & Planning,DCS West CTPLD U65,Transport Contracts,Third Party Payments,REVENUE
http://statistics.data.gov.uk/id/local-authority/00HY,Wiltshire Council,07/10/2010,1900421987,588.00,Alpha Taxis ,100124,BA14,Neighbourhood & Planning,Mainstream Secondary,Transport Contracts,Third Party Payments,REVENUE
http://statistics.data.gov.uk/id/local-authority/00HY,Wiltshire Council,07/10/2010,1900421999,889.84,N P Burke Ltd ,101713,SP3 ,Neighbourhood & Planning,Housing Rprs Simdell,Premises Related Other Maintenance Costs,Premises Related,REVENUE
http://statistics.data.gov.uk/id/local-authority/00HY,Wiltshire Council,07/10/2010,1900422004,664.96,C C Furnival ,101706,BA12,Neighbourhood & Planning,Housing Rprs Simdell,Premises Related Other Maintenance Costs,Premises Related,REVENUE
http://statistics.data.gov.uk/id/local-authority/00HY,Wiltshire Council,12/10/2010,1900422142,643.98,Bertram Library Services ,101283,BD19,Community Services,Lib Book Fund,Library Service,Supplies and Services,REVENUE
http://statistics.data.gov.uk/id/local-authority/00HY,Wiltshire Council,07/10/2010,1900422143,6819.01,Pulse 24 Ltd ,124185,EH54,Neighbourhood & Planning,Primary Sch Pooling,Preventative Property Maintenance,Premises Related,REVENUE
http://statistics.data.gov.uk/id/local-authority/00HY,Wiltshire Council,12/10/2010,1900422145,906.10,Sodexo Education Services Limited ,121186,M50 ,Neighbourhood & Planning,DTEL Dept Balance Sh,Sodexo Holding,Balance Sheet Accounts,REVENUE
http://statistics.data.gov.uk/id/local-authority/00HY,Wiltshire Council,07/10/2010,1900422146,588660.00,Cowlin Construction Ltd ,101013,BS13,Wiltshire Council,Wiltshire Council,Buildings Minor Alterations,Premises Related,CAPITAL
http://statistics.data.gov.uk/id/local-authority/00HY,Wiltshire Council,07/10/2010,1900422147,33150.00,Rigg Construction Southern Ltd ,112277,SN12,Wiltshire Council,Wiltshire Council,Buildings Minor Alterations,Premises Related,CAPITAL
http://statistics.data.gov.uk/id/local-authority/00HY,Wiltshire Council,11/10/2010,1900422148,49455.00,Rigg Construction Southern Ltd ,112277,SN12,Wiltshire Council,Wiltshire Council,Buildings Minor Alterations,Premises Related,CAPITAL
http://statistics.data.gov.uk/id/local-authority/00HY,Wiltshire Council,07/10/2010,1900422149,67839.98,Rigg Construction Southern Ltd ,112277,SN12,Wiltshire Council,Wiltshire Council,Buildings Minor Alterations,Premises Related,CAPITAL
http://statistics.data.gov.uk/id/local-authority/00HY,Wiltshire Council,07/10/2010,1900422150,10648.53,Wilkins Builders Ltd ,100189,SN11,Wiltshire Council,Wiltshire Council,Buildings Minor Alterations,Premises Related,CAPITAL
http://statistics.data.gov.uk/id/local-authority/00HY,Wiltshire Council,12/10/2010,1900422152,50000.00,Local Government Association ,122918,SW1P,Resources,Central Management,Corporate Memberships,Supplies and Services,REVENUE
http://statistics.data.gov.uk/id/local-authority/00HY,Wiltshire Council,08/10/2010,1900422171,5386.61,REDACTED PERSONAL DATA,111562,REDACTED PERSONAL DATA,Community Services,OP East Locality,Adult Residential Place - Spot Purchase,Income,REVENUE
http://statistics.data.gov.uk/id/local-authority/00HY,Wiltshire Council,08/10/2010,1900422174,2225.00,H M C S ,116252,BA14,Children & Education,HQ Social Care,Legal Fees,Supplies and Services,REVENUE
http://statistics.data.gov.uk/id/local-authority/00HY,Wiltshire Council,08/10/2010,1900422175,4853.32,Stainsbridge House ,121366,SN16,Community Services,MH OP West Locality,Adult Residential Placements - 12 Wk Contribution,Income,REVENUE
http://statistics.data.gov.uk/id/local-authority/00HY,Wiltshire Council,12/10/2010,1900422178,632.00,Alpha Taxis ,100124,BA14,Neighbourhood & Planning,W Wilts Concessions,Compensation for Concessionary fares,Third Party Payments,REVENUE
http://statistics.data.gov.uk/id/local-authority/00HY,Wiltshire Council,08/10/2010,1900422186,557.78,British Gas Business ,114213,GU15,Resources,Wkplc Trnsfrm Prprty,Electricity,Premises Related,REVENUE
http://statistics.data.gov.uk/id/local-authority/00HY,Wiltshire Council,08/10/2010,1900422215,560.42,Openreach BT Repayments (Alteration ,126967,BH1 ,Neighbourhood & Planning,RTPI,Telephones - Mobile phones,Supplies and Services,REVENUE
http://statistics.data.gov.uk/id/local-authority/00HY,Wiltshire Council,08/10/2010,1900422215,575.19,Openreach BT Repayments (Alteration ,126967,BH1 ,Children & Education,Primary Sch Supp Tm,Telephones - Mobile phones,Supplies and Services,REVENUE
http://statistics.data.gov.uk/id/local-authority/00HY,Wiltshire Council,08/10/2010,1900422215,645.42,Openreach BT Repayments (Alteration ,126967,BH1 ,Neighbourhood & Planning,Bourne Hill Offices,Telephones - Mobile phones,Supplies and Services,REVENUE
http://statistics.data.gov.uk/id/local-authority/00HY,Wiltshire Council,08/10/2010,1900422215,649.37,Openreach BT Repayments (Alteration ,126967,BH1 ,Children & Education,ConnexionTrowbridge,Telephones - Mobile phones,Supplies and Services,REVENUE
http://statistics.data.gov.uk/id/local-authority/00HY,Wiltshire Council,08/10/2010,1900422215,651.79,Openreach BT Repayments (Alteration ,126967,BH1 ,Resources,DCSFinanceGeneral,Telephones - Mobile phones,Supplies and Services,REVENUE
http://statistics.data.gov.uk/id/local-authority/00HY,Wiltshire Council,08/10/2010,1900422215,666.30,Openreach BT Repayments (Alteration ,126967,BH1 ,Children & Education,ConnexionsChippenham,Telephones - Mobile phones,Supplies and Services,REVENUE
http://statistics.data.gov.uk/id/local-authority/00HY,Wiltshire Council,08/10/2010,1900422215,688.52,Openreach BT Repayments (Alteration ,126967,BH1 ,Children & Education,ConnexionsSalisbury,Telephones - Mobile phones,Supplies and Services,REVENUE
http://statistics.data.gov.uk/id/local-authority/00HY,Wiltshire Council,08/10/2010,1900422215,798.04,Openreach BT Repayments (Alteration ,126967,BH1 ,Community Services,EDS 4Dbutn,Telephones - Mobile phones,Supplies and Services,REVENUE
http://statistics.data.gov.uk/id/local-authority/00HY,Wiltshire Council,08/10/2010,1900422215,934.71,Openreach BT Repayments (Alteration ,126967,BH1 ,Community Services,DCS Business Develop,Telephones - Mobile phones,Supplies and Services,REVENUE
http://statistics.data.gov.uk/id/local-authority/00HY,Wiltshire Council,08/10/2010,1900422215,1017.77,Openreach BT Repayments (Alteration ,126967,BH1 ,Neighbourhood & Planning,Licensing,Telephones - Mobile phones,Supplies and Services,REVENUE
http://statistics.data.gov.uk/id/local-authority/00HY,Wiltshire Council,08/10/2010,1900422215,1020.57,Openreach BT Repayments (Alteration ,126967,BH1 ,Community Services,South Locality Team1,Telephones - Mobile phones,Supplies and Services,REVENUE
http://statistics.data.gov.uk/id/local-authority/00HY,Wiltshire Council,08/10/2010,1900422215,1026.95,Openreach BT Repayments (Alteration ,126967,BH1 ,Neighbourhood & Planning,CareConnect,Telephones - Mobile phones,Supplies and Services,REVENUE
http://statistics.data.gov.uk/id/local-authority/00HY,Wiltshire Council,08/10/2010,1900422215,1058.18,Openreach BT Repayments (Alteration ,126967,BH1 ,Children & Education,SalisburyDistManag,Telephones - Mobile phones,Supplies and Services,REVENUE
http://statistics.data.gov.uk/id/local-authority/00HY,Wiltshire Council,08/10/2010,1900422215,1073.77,Openreach BT Repayments (Alteration ,126967,BH1 ,Children & Education,NKenDistrictMan,Telephones - Mobile phones,Supplies and Services,REVENUE
http://statistics.data.gov.uk/id/local-authority/00HY,Wiltshire Council,08/10/2010,1900422215,1244.72,Openreach BT Repayments (Alteration ,126967,BH1 ,Children & Education,EYChildCentreTm,Telephones - Mobile phones,Supplies and Services,REVENUE
http://statistics.data.gov.uk/id/local-authority/00HY,Wiltshire Council,08/10/2010,1900422215,1387.33,Openreach BT Repayments (Alteration ,126967,BH1 ,Children & Education,KennetLocalityTeam,Telephones - Mobile phones,Supplies and Services,REVENUE
http://statistics.data.gov.uk/id/local-authority/00HY,Wiltshire Council,08/10/2010,1900422215,1397.54,Openreach BT Repayments (Alteration ,126967,BH1 ,Neighbourhood & Planning,Network Maintenance,Telephones - Mobile phones,Supplies and Services,REVENUE
http://statistics.data.gov.uk/id/local-authority/00HY,Wiltshire Council,08/10/2010,1900422215,1868.22,Openreach BT Repayments (Alteration ,126967,BH1 ,Children & Education,WestDistManagement,Telephones - Mobile phones,Supplies and Services,REVENUE
http://statistics.data.gov.uk/id/local-authority/00HY,Wiltshire Council,08/10/2010,1900422215,2309.76,Openreach BT Repayments (Alteration ,126967,BH1 ,Children & Education,EYHQ,Telephones - Mobile phones,Supplies and Services,REVENUE
http://statistics.data.gov.uk/id/local-authority/00HY,Wiltshire Council,08/10/2010,1900422215,2392.54,Openreach BT Repayments (Alteration ,126967,BH1 ,Resources,DemocraticMemberSupp,Telephones - Mobile phones,Supplies and Services,REVENUE
http://statistics.data.gov.uk/id/local-authority/00HY,Wiltshire Council,08/10/2010,1900422215,2718.96,Openreach BT Repayments (Alteration ,126967,BH1 ,Neighbourhood & Planning,SDC Bourne Hill,Telephones - Mobile phones,Supplies and Services,REVENUE
http://statistics.data.gov.uk/id/local-authority/00HY,Wiltshire Council,08/10/2010,1900422215,3205.68,Openreach BT Repayments (Alteration ,126967,BH1 ,Neighbourhood & Planning,Marlborough,Telephones - Mobile phones,Supplies and Services,REVENUE
http://statistics.data.gov.uk/id/local-authority/00HY,Wiltshire Council,08/10/2010,1900422215,3246.25,Openreach BT Repayments (Alteration ,126967,BH1 ,Neighbourhood & Planning,Tidworth,Telephones - Mobile phones,Supplies and Services,REVENUE
http://statistics.data.gov.uk/id/local-authority/00HY,Wiltshire Council,08/10/2010,1900422215,4914.60,Openreach BT Repayments (Alteration ,126967,BH1 ,Resources,RevenuesandBenefits,Telephones - Mobile phones,Supplies and Services,REVENUE
http://statistics.data.gov.uk/id/local-authority/00HY,Wiltshire Council,08/10/2010,1900422215,5124.26,Openreach BT Repayments (Alteration ,126967,BH1 ,Neighbourhood & Planning,Traffic Signal Mtc,Telephones - Mobile phones,Supplies and Services,REVENUE
http://statistics.data.gov.uk/id/local-authority/00HY,Wiltshire Council,08/10/2010,1900422215,5700.79,Openreach BT Repayments (Alteration ,126967,BH1 ,Resources,Main xchg phon lines,Telephones - Mobile phones,Supplies and Services,REVENUE
http://statistics.data.gov.uk/id/local-authority/00HY,Wiltshire Council,08/10/2010,1900422215,9110.09,Openreach BT Repayments (Alteration ,126967,BH1 ,Resources,WAN,Telephones - Mobile phones,Supplies and Services,REVENUE
http://statistics.data.gov.uk/id/local-authority/00HY,Wiltshire Council,08/10/2010,1900422216,525.00,Wendy Low   Wendys Taxis ,101341,SP3 ,Neighbourhood & Planning,DCE Childrens Rights,Transport Contracts,Third Party Payments,REVENUE
http://statistics.data.gov.uk/id/local-authority/00HY,Wiltshire Council,08/10/2010,1900422216,1250.00,Wendy Low   Wendys Taxis ,101341,SP3 ,Neighbourhood & Planning,DCE South Disability,Transport Contracts,Third Party Payments,REVENUE
http://statistics.data.gov.uk/id/local-authority/00HY,Wiltshire Council,08/10/2010,1900422218,1102.50,Pick Me Up Taxi Service ,101663,SN12,Neighbourhood & Planning,SEN Secondary,Transport Contracts,Third Party Payments,REVENUE
http://statistics.data.gov.uk/id/local-authority/00HY,Wiltshire Council,08/10/2010,1900422221,1843.80,Pick Me Up Taxi Service ,101663,SN12,Neighbourhood & Planning,SEN Secondary,Transport Contracts,Third Party Payments,REVENUE
http://statistics.data.gov.uk/id/local-authority/00HY,Wiltshire Council,08/10/2010,1900422223,1193.00,Pick Me Up Taxi Service ,101663,SN12,Neighbourhood & Planning,SEN Secondary,Transport Contracts,Third Party Payments,REVENUE
http://statistics.data.gov.uk/id/local-authority/00HY,Wiltshire Council,08/10/2010,1900422225,1020.80,L P C ,101436,SN13,Neighbourhood & Planning,DCS North CTPLD U65,Transport Contracts,Third Party Payments,REVENUE
http://statistics.data.gov.uk/id/local-authority/00HY,Wiltshire Council,08/10/2010,1900422228,1020.00,REDACTED PERSONAL DATA,100891,REDACTED PERSONAL DATA,Neighbourhood & Planning,SEN Secondary,Transport Contracts,Third Party Payments,REVENUE
http://statistics.data.gov.uk/id/local-authority/00HY,Wiltshire Council,08/10/2010,1900422229,1086.80,REDACTED PERSONAL DATA,100891,REDACTED PERSONAL DATA,Neighbourhood & Planning,SEN Primary,Transport Contracts,Third Party Payments,REVENUE
http://statistics.data.gov.uk/id/local-authority/00HY,Wiltshire Council,08/10/2010,1900422230,1260.00,REDACTED PERSONAL DATA,100891,REDACTED PERSONAL DATA,Neighbourhood & Planning,DCS South CTPLD U65,Transport Contracts,Third Party Payments,REVENUE
http://statistics.data.gov.uk/id/local-authority/00HY,Wiltshire Council,08/10/2010,1900422236,850.00,Devizes Taxis ,100136,SN10,Neighbourhood & Planning,SEN Secondary,Transport Contracts,Third Party Payments,REVENUE
http://statistics.data.gov.uk/id/local-authority/00HY,Wiltshire Council,08/10/2010,1900422237,720.00,REDACTED PERSONAL DATA,100891,REDACTED PERSONAL DATA,Neighbourhood & Planning,SEN Primary,Transport Contracts,Third Party Payments,REVENUE
http://statistics.data.gov.uk/id/local-authority/00HY,Wiltshire Council,08/10/2010,1900422239,3144.51,Calne Travel ,100267,SN11,Neighbourhood & Planning,Mainstream Secondary,Transport Contracts,Third Party Payments,REVENUE
http://statistics.data.gov.uk/id/local-authority/00HY,Wiltshire Council,08/10/2010,1900422240,2640.12,Calne Travel ,100267,SN11,Neighbourhood & Planning,Mainstream Secondary,Transport Contracts,Third Party Payments,REVENUE
http://statistics.data.gov.uk/id/local-authority/00HY,Wiltshire Council,08/10/2010,1900422241,1218.00,A M S Taxis ,100839,BA14,Neighbourhood & Planning,SEN Primary,Transport Contracts,Third Party Payments,REVENUE
http://statistics.data.gov.uk/id/local-authority/00HY,Wiltshire Council,08/10/2010,1900422242,1780.20,A M S Taxis ,100839,BA14,Neighbourhood & Planning,SEN Primary,Transport Contracts,Third Party Payments,REVENUE
http://statistics.data.gov.uk/id/local-authority/00HY,Wiltshire Council,08/10/2010,1900422243,2810.10,Calne Travel ,100267,SN11,Neighbourhood & Planning,Mainstream Secondary,Transport Contracts,Third Party Payments,REVENUE
http://statistics.data.gov.uk/id/local-authority/00HY,Wiltshire Council,08/10/2010,1900422244,2674.61,Calne Travel ,100267,SN11,Neighbourhood & Planning,Mainstream Secondary,Transport Contracts,Third Party Payments,REVENUE
http://statistics.data.gov.uk/id/local-authority/00HY,Wiltshire Council,08/10/2010,1900422245,2525.58,Calne Travel ,100267,SN11,Neighbourhood & Planning,Mainstream Secondary,Transport Contracts,Third Party Payments,REVENUE
http://statistics.data.gov.uk/id/local-authority/00HY,Wiltshire Council,08/10/2010,1900422246,2339.75,Calne Travel ,100267,SN11,Neighbourhood & Planning,Mainstream Secondary,Transport Contracts,Third Party Payments,REVENUE
http://statistics.data.gov.uk/id/local-authority/00HY,Wiltshire Council,08/10/2010,1900422249,3087.50,Calne Travel ,100267,SN11,Neighbourhood & Planning,Mainstream Secondary,Transport Contracts,Third Party Payments,REVENUE
http://statistics.data.gov.uk/id/local-authority/00HY,Wiltshire Council,08/10/2010,1900422250,5272.42,Adrains Engineering Psv ,100848,SN15,Neighbourhood & Planning,Public Transport,Transport Contracts,Third Party Payments,REVENUE
http://statistics.data.gov.uk/id/local-authority/00HY,Wiltshire Council,08/10/2010,1900422251,2280.31,Calne Travel ,100267,SN11,Neighbourhood & Planning,Mainstream Secondary,Transport Contracts,Third Party Payments,REVENUE
http://statistics.data.gov.uk/id/local-authority/00HY,Wiltshire Council,12/10/2010,1900422261,1101.67,EDF Energy Limited ,110837,PL3 ,Neighbourhood & Planning,SH Edgers Close,Electricity,Premises Related,REVENUE
http://statistics.data.gov.uk/id/local-authority/00HY,Wiltshire Council,12/10/2010,1900422262,897.84,EDF Energy Limited ,110837,PL3 ,Neighbourhood & Planning,SH Crane Lodge,Electricity,Premises Related,REVENUE
http://statistics.data.gov.uk/id/local-authority/00HY,Wiltshire Council,12/10/2010,1900422263,11257.44,EDF Energy Limited ,110837,PL3 ,Resources,WTP Leisure Centres,Electricity,Premises Related,REVENUE
http://statistics.data.gov.uk/id/local-authority/00HY,Wiltshire Council,12/10/2010,1900422267,17584.00,Cambridge Education ,100852,CB1 ,Wiltshire Council,Wiltshire Council,Buildings Minor Alterations,Premises Related,CAPITAL
http://statistics.data.gov.uk/id/local-authority/00HY,Wiltshire Council,12/10/2010,1900422278,525.00,CIPFA Business Limited ,116688,CR90,Wiltshire Council,Wiltshire Council,Buildings Minor Alterations,Premises Related,CAPITAL
http://statistics.data.gov.uk/id/local-authority/00HY,Wiltshire Council,12/10/2010,1900422279,3471.33,EDF Energy Limited ,110837,PL3 ,Resources,Wkplc Trnsfrm Prprty,Electricity,Premises Related,REVENUE
http://statistics.data.gov.uk/id/local-authority/00HY,Wiltshire Council,12/10/2010,1900422281,17025.25,EDF Energy Limited ,110837,PL3 ,Resources,Wkplc Trnsfrm Prprty,Electricity,Premises Related,REVENUE
http://statistics.data.gov.uk/id/local-authority/00HY,Wiltshire Council,12/10/2010,1900422285,6254.23,EDF Energy Limited ,110837,PL3 ,Community Services,Heritage Admin,Electricity,Premises Related,REVENUE
http://statistics.data.gov.uk/id/local-authority/00HY,Wiltshire Council,08/10/2010,1900422287,3200.00,Favourite Cat ,101567,PO19,Wiltshire Council,Wiltshire Council,Buildings Minor Alterations,Premises Related,CAPITAL
http://statistics.data.gov.uk/id/local-authority/00HY,Wiltshire Council,08/10/2010,1900422288,1050.01,British Gas Business ,114213,GU15,Resources,WTP Admin Buildings,Electricity,Premises Related,REVENUE
http://statistics.data.gov.uk/id/local-authority/00HY,Wiltshire Council,12/10/2010,1900422292,720.04,SCHINDLER LTD ,112404,TW16,Resources,WTP Libraries,Preventative Property Maintenance,Premises Related,REVENUE
http://statistics.data.gov.uk/id/local-authority/00HY,Wiltshire Council,08/10/2010,1900422294,2051.73,British Gas Business ,114213,GU15,Resources,WTP Admin Buildings,Electricity,Premises Related,REVENUE
http://statistics.data.gov.uk/id/local-authority/00HY,Wiltshire Council,28/10/2010,1900422295,3216.00,Johns Associates Ltd ,125770,BA2 ,Wiltshire Council,Wiltshire Council,Buildings Minor Alterations,Premises Related,CAPITAL
http://statistics.data.gov.uk/id/local-authority/00HY,Wiltshire Council,12/10/2010,1900422302,890.00,Victory Guillotines Ltd ,112859,CH47,Resources,Wkplc Trnsfrm Prprty,Preventative Property Maintenance,Premises Related,REVENUE
http://statistics.data.gov.uk/id/local-authority/00HY,Wiltshire Council,11/10/2010,1900422310,4553.30,Steele Davis (Swindon) Ltd ,100419,SN2 ,Wiltshire Council,Wiltshire Council,Buildings Minor Alterations,Premises Related,CAPITAL
http://statistics.data.gov.uk/id/local-authority/00HY,Wiltshire Council,08/10/2010,1900422318,3864.10,Steele Davis (Swindon) Ltd ,100419,SN2 ,Resources,Commercial Props,Preventative Property Maintenance,Premises Related,REVENUE
http://statistics.data.gov.uk/id/local-authority/00HY,Wiltshire Council,08/10/2010,1900422324,691.68,Steele Davis (Swindon) Ltd ,100419,SN2 ,Resources,WTP Adult Care,Preventative Property Maintenance,Premises Related,REVENUE
http://statistics.data.gov.uk/id/local-authority/00HY,Wiltshire Council,08/10/2010,1900422326,3864.10,Steele Davis (Swindon) Ltd ,100419,SN2 ,Resources,Commercial Props,Preventative Property Maintenance,Premises Related,REVENUE
http://statistics.data.gov.uk/id/local-authority/00HY,Wiltshire Council,08/10/2010,1900422328,3864.10,Steele Davis (Swindon) Ltd ,100419,SN2 ,Resources,Commercial Props,Preventative Property Maintenance,Premises Related,REVENUE
http://statistics.data.gov.uk/id/local-authority/00HY,Wiltshire Council,08/10/2010,1900422330,1827.26,Wilkins Builders Ltd ,100189,SN11,Resources,Commercial Props,Preventative Property Maintenance,Premises Related,REVENUE
http://statistics.data.gov.uk/id/local-authority/00HY,Wiltshire Council,08/10/2010,1900422332,568.20,Wilkins Builders Ltd ,100189,SN11,Resources,Libraries,Preventative Property Maintenance,Premises Related,REVENUE
http://statistics.data.gov.uk/id/local-authority/00HY,Wiltshire Council,08/10/2010,1900422333,663.94,Wilkins Builders Ltd ,100189,SN11,Neighbourhood & Planning,Primary Sch Pooling,Preventative Property Maintenance,Premises Related,REVENUE
http://statistics.data.gov.uk/id/local-authority/00HY,Wiltshire Council,08/10/2010,1900422335,4760.00,Wilkins Builders Ltd ,100189,SN11,Resources,Public Conveniences,Preventative Property Maintenance,Premises Related,REVENUE
http://statistics.data.gov.uk/id/local-authority/00HY,Wiltshire Council,08/10/2010,1900422338,1174.54,Wilkins Builders Ltd ,100189,SN11,Neighbourhood & Planning,Primary Sch Pooling,Preventative Property Maintenance,Premises Related,REVENUE
http://statistics.data.gov.uk/id/local-authority/00HY,Wiltshire Council,08/10/2010,1900422342,16705.79,REDACTED PERSONAL DATA,129582,REDACTED PERSONAL DATA,Wiltshire Council,Wiltshire Council,Grants provided by WC - Other,Supplies and Services,CAPITAL
http://statistics.data.gov.uk/id/local-authority/00HY,Wiltshire Council,12/10/2010,1900422345,1200.00,ATB Sports ,110195,SN1 ,Children & Education,WiltsAlternYthSport,Other Professional Fees,Supplies and Services,REVENUE
http://statistics.data.gov.uk/id/local-authority/00HY,Wiltshire Council,08/10/2010,1900422352,562.18,ADT Fire & Security Plc ,101042,M16 ,Resources,WTP Youth Centres,Preventative Property Maintenance,Premises Related,REVENUE
http://statistics.data.gov.uk/id/local-authority/00HY,Wiltshire Council,08/10/2010,1900422353,1438.75,ADT Fire & Security Plc ,101042,M16 ,Neighbourhood & Planning,Primary Sch Pooling,Preventative Property Maintenance,Premises Related,REVENUE
http://statistics.data.gov.uk/id/local-authority/00HY,Wiltshire Council,08/10/2010,1900422354,544.74,ADT Fire & Security Plc ,101042,M16 ,Resources,Wkplc Trnsfrm Prprty,Preventative Property Maintenance,Premises Related,REVENUE
http://statistics.data.gov.uk/id/local-authority/00HY,Wiltshire Council,08/10/2010,1900422355,797.15,ADT Fire & Security Plc ,101042,M16 ,Resources,WTP Libraries,Preventative Property Maintenance,Premises Related,REVENUE
http://statistics.data.gov.uk/id/local-authority/00HY,Wiltshire Council,08/10/2010,1900422356,667.34,ADT Fire & Security Plc ,101042,M16 ,Resources,Wkplc Trnsfrm Prprty,Preventative Property Maintenance,Premises Related,REVENUE
http://statistics.data.gov.uk/id/local-authority/00HY,Wiltshire Council,08/10/2010,1900422359,2030.28,ADT Fire & Security Plc ,101042,M16 ,Resources,WTP Adult Care,Preventative Property Maintenance,Premises Related,REVENUE
http://statistics.data.gov.uk/id/local-authority/00HY,Wiltshire Council,08/10/2010,1900422362,740.83,ADT Fire & Security Plc ,101042,M16 ,Resources,Wkplc Trnsfrm Prprty,Preventative Property Maintenance,Premises Related,REVENUE
http://statistics.data.gov.uk/id/local-authority/00HY,Wiltshire Council,08/10/2010,1900422364,2021.68,ADT Fire & Security Plc ,101042,M16 ,Resources,Wkplc Trnsfrm Prprty,Preventative Property Maintenance,Premises Related,REVENUE
http://statistics.data.gov.uk/id/local-authority/00HY,Wiltshire Council,08/10/2010,1900422367,717.01,REDACTED PERSONAL DATA,121415,REDACTED PERSONAL DATA,Children & Education,NurseryEducGrant,Grants provided by WC - Other,Supplies and Services,REVENUE
http://statistics.data.gov.uk/id/local-authority/00HY,Wiltshire Council,08/10/2010,1900422371,1350.76,REDACTED PERSONAL DATA,111274,REDACTED PERSONAL DATA,Children & Education,NurseryEducGrant,Grants provided by WC - Other,Supplies and Services,REVENUE
http://statistics.data.gov.uk/id/local-authority/00HY,Wiltshire Council,08/10/2010,1900422377,37046.00,Community First ,110596,SN10,Children & Education,PEA Team,Children's Welfare Development & Services,Capital charges and Expenditure,REVENUE
http://statistics.data.gov.uk/id/local-authority/00HY,Wiltshire Council,12/10/2010,1900422378,11250.00,CfBT t/a INCLUDE ,110496,RG1 ,Children & Education,PEA Team,Children's Welfare Development & Services,Capital charges and Expenditure,REVENUE
http://statistics.data.gov.uk/id/local-authority/00HY,Wiltshire Council,08/10/2010,1900422380,2471.46,Ellisons Coaches ,100162,SN6 ,Neighbourhood & Planning,Mainstream Secondary,Transport Contracts,Third Party Payments,REVENUE
http://statistics.data.gov.uk/id/local-authority/00HY,Wiltshire Council,08/10/2010,1900422381,2710.07,Ellisons Coaches ,100162,SN6 ,Neighbourhood & Planning,Mainstream Secondary,Transport Contracts,Third Party Payments,REVENUE
http://statistics.data.gov.uk/id/local-authority/00HY,Wiltshire Council,08/10/2010,1900422382,2897.58,Ellisons Coaches ,100162,SN6 ,Neighbourhood & Planning,Mainstream Secondary,Transport Contracts,Third Party Payments,REVENUE
http://statistics.data.gov.uk/id/local-authority/00HY,Wiltshire Council,08/10/2010,1900422383,2215.79,Ellisons Coaches ,100162,SN6 ,Neighbourhood & Planning,Mainstream Secondary,Transport Contracts,Third Party Payments,REVENUE
http://statistics.data.gov.uk/id/local-authority/00HY,Wiltshire Council,08/10/2010,1900422384,817.00,REDACTED PERSONAL DATA,100851,REDACTED PERSONAL DATA,Neighbourhood & Planning,SEN Primary,Transport Contracts,Third Party Payments,REVENUE
http://statistics.data.gov.uk/id/local-authority/00HY,Wiltshire Council,08/10/2010,1900422384,817.00,REDACTED PERSONAL DATA,100851,REDACTED PERSONAL DATA,Neighbourhood & Planning,SEN Secondary,Transport Contracts,Third Party Payments,REVENUE
http://statistics.data.gov.uk/id/local-authority/00HY,Wiltshire Council,08/10/2010,1900422384,817.00,REDACTED PERSONAL DATA,100851,REDACTED PERSONAL DATA,Neighbourhood & Planning,SEN 16+ Secondary,Transport Contracts,Third Party Payments,REVENUE
http://statistics.data.gov.uk/id/local-authority/00HY,Wiltshire Council,08/10/2010,1900422385,563.06,On Line Taxis ,101377,SP2 ,Neighbourhood & Planning,DCE Salisbury City,Transport Contracts,Third Party Payments,REVENUE
http://statistics.data.gov.uk/id/local-authority/00HY,Wiltshire Council,08/10/2010,1900422385,1074.94,On Line Taxis ,101377,SP2 ,Neighbourhood & Planning,SEN Primary,Transport Contracts,Third Party Payments,REVENUE
http://statistics.data.gov.uk/id/local-authority/00HY,Wiltshire Council,08/10/2010,1900422387,2631.17,Ellisons Coaches ,100162,SN6 ,Neighbourhood & Planning,Mainstream Secondary,Transport Contracts,Third Party Payments,REVENUE
http://statistics.data.gov.uk/id/local-authority/00HY,Wiltshire Council,08/10/2010,1900422388,2350.72,Ellisons Coaches ,100162,SN6 ,Neighbourhood & Planning,Mainstream Secondary,Transport Contracts,Third Party Payments,REVENUE
http://statistics.data.gov.uk/id/local-authority/00HY,Wiltshire Council,08/10/2010,1900422389,2079.00,On Line Taxis ,101377,SP2 ,Neighbourhood & Planning,SEN Primary,Transport Contracts,Third Party Payments,REVENUE
http://statistics.data.gov.uk/id/local-authority/00HY,Wiltshire Council,08/10/2010,1900422390,657.25,REDACTED PERSONAL DATA,101092,REDACTED PERSONAL DATA,Neighbourhood & Planning,DCS LD S256 NorthU65,Transport Contracts,Third Party Payments,REVENUE
http://statistics.data.gov.uk/id/local-authority/00HY,Wiltshire Council,08/10/2010,1900422390,882.63,REDACTED PERSONAL DATA,101092,REDACTED PERSONAL DATA,Neighbourhood & Planning,DCS West CTPLD U65,Transport Contracts,Third Party Payments,REVENUE
http://statistics.data.gov.uk/id/local-authority/00HY,Wiltshire Council,08/10/2010,1900422392,551.00,REDACTED PERSONAL DATA,101092,REDACTED PERSONAL DATA,Neighbourhood & Planning,Mainstream Primary,Transport Contracts,Third Party Payments,REVENUE
http://statistics.data.gov.uk/id/local-authority/00HY,Wiltshire Council,08/10/2010,1900422393,1356.86,C Bodman   Sons ,100142,SN10,Neighbourhood & Planning,Mainstream Secondary,Transport Contracts,Third Party Payments,REVENUE
http://statistics.data.gov.uk/id/local-authority/00HY,Wiltshire Council,08/10/2010,1900422393,1680.00,C Bodman   Sons ,100142,SN10,Neighbourhood & Planning,Mainstream 16+ Sec,Transport Contracts,Third Party Payments,REVENUE
http://statistics.data.gov.uk/id/local-authority/00HY,Wiltshire Council,08/10/2010,1900422394,3650.88,Coachstyle Ltd ,100176,SN14,Neighbourhood & Planning,Mainstream Secondary,Transport Contracts,Third Party Payments,REVENUE
http://statistics.data.gov.uk/id/local-authority/00HY,Wiltshire Council,08/10/2010,1900422395,2751.52,C Bodman   Sons ,100142,SN10,Neighbourhood & Planning,Mainstream Secondary,Transport Contracts,Third Party Payments,REVENUE
http://statistics.data.gov.uk/id/local-authority/00HY,Wiltshire Council,08/10/2010,1900422397,522.65,Coachstyle Ltd ,100176,SN14,Neighbourhood & Planning,Mainstream 16+ Sec,Transport Contracts,Third Party Payments,REVENUE
http://statistics.data.gov.uk/id/local-authority/00HY,Wiltshire Council,08/10/2010,1900422397,522.65,Coachstyle Ltd ,100176,SN14,Neighbourhood & Planning,Mainstream 16+ FE,Transport Contracts,Third Party Payments,REVENUE
http://statistics.data.gov.uk/id/local-authority/00HY,Wiltshire Council,08/10/2010,1900422397,1567.95,Coachstyle Ltd ,100176,SN14,Neighbourhood & Planning,Public Transport,Transport Contracts,Third Party Payments,REVENUE
http://statistics.data.gov.uk/id/local-authority/00HY,Wiltshire Council,08/10/2010,1900422397,2613.26,Coachstyle Ltd ,100176,SN14,Neighbourhood & Planning,Mainstream Secondary,Transport Contracts,Third Party Payments,REVENUE
http://statistics.data.gov.uk/id/local-authority/00HY,Wiltshire Council,08/10/2010,1900422398,640.68,Coachstyle Ltd ,100176,SN14,Neighbourhood & Planning,Mainstream 16+ FE,Transport Contracts,Third Party Payments,REVENUE
http://statistics.data.gov.uk/id/local-authority/00HY,Wiltshire Council,08/10/2010,1900422398,944.16,Coachstyle Ltd ,100176,SN14,Neighbourhood & Planning,Public Transport,Transport Contracts,Third Party Payments,REVENUE
http://statistics.data.gov.uk/id/local-authority/00HY,Wiltshire Council,08/10/2010,1900422398,1449.96,Coachstyle Ltd ,100176,SN14,Neighbourhood & Planning,Mainstream Secondary,Transport Contracts,Third Party Payments,REVENUE
http://statistics.data.gov.uk/id/local-authority/00HY,Wiltshire Council,08/10/2010,1900422399,2706.87,Ellisons Coaches ,100162,SN6 ,Neighbourhood & Planning,Mainstream Secondary,Transport Contracts,Third Party Payments,REVENUE
http://statistics.data.gov.uk/id/local-authority/00HY,Wiltshire Council,08/10/2010,1900422400,940.79,Coachstyle Ltd ,100176,SN14,Neighbourhood & Planning,Mainstream 16+ Sec,Transport Contracts,Third Party Payments,REVENUE
http://statistics.data.gov.uk/id/local-authority/00HY,Wiltshire Council,08/10/2010,1900422400,993.05,Coachstyle Ltd ,100176,SN14,Neighbourhood & Planning,Mainstream 16+ FE,Transport Contracts,Third Party Payments,REVENUE
http://statistics.data.gov.uk/id/local-authority/00HY,Wiltshire Council,08/10/2010,1900422400,1045.32,Coachstyle Ltd ,100176,SN14,Neighbourhood & Planning,Public Transport,Transport Contracts,Third Party Payments,REVENUE
http://statistics.data.gov.uk/id/local-authority/00HY,Wiltshire Council,08/10/2010,1900422400,2247.43,Coachstyle Ltd ,100176,SN14,Neighbourhood & Planning,Mainstream Secondary,Transport Contracts,Third Party Payments,REVENUE
http://statistics.data.gov.uk/id/local-authority/00HY,Wiltshire Council,08/10/2010,1900422402,1320.00,REDACTED PERSONAL DATA,101455,REDACTED PERSONAL DATA,Neighbourhood & Planning,DCS South CTPLD U65,Transport Contracts,Third Party Payments,REVENUE
http://statistics.data.gov.uk/id/local-authority/00HY,Wiltshire Council,08/10/2010,1900422404,630.00,REDACTED PERSONAL DATA,101455,REDACTED PERSONAL DATA,Neighbourhood & Planning,SEN Primary,Transport Contracts,Third Party Payments,REVENUE
http://statistics.data.gov.uk/id/local-authority/00HY,Wiltshire Council,08/10/2010,1900422408,5388.87,C Bodman   Sons ,100142,SN10,Neighbourhood & Planning,Mainstream 16+ FE,Transport Contracts,Third Party Payments,REVENUE
http://statistics.data.gov.uk/id/local-authority/00HY,Wiltshire Council,08/10/2010,1900422409,2412.40,C Bodman   Sons ,100142,SN10,Neighbourhood & Planning,Mainstream Secondary,Transport Contracts,Third Party Payments,REVENUE
http://statistics.data.gov.uk/id/local-authority/00HY,Wiltshire Council,08/10/2010,1900422410,4340.31,C Bodman   Sons ,100142,SN10,Neighbourhood & Planning,Mainstream Secondary,Transport Contracts,Third Party Payments,REVENUE
http://statistics.data.gov.uk/id/local-authority/00HY,Wiltshire Council,08/10/2010,1900422411,654.48,C Bodman   Sons ,100142,SN10,Neighbourhood & Planning,Public Transport,Transport Contracts,Third Party Payments,REVENUE
http://statistics.data.gov.uk/id/local-authority/00HY,Wiltshire Council,08/10/2010,1900422412,954.32,C Bodman   Sons ,100142,SN10,Neighbourhood & Planning,Mainstream Secondary,Transport Contracts,Third Party Payments,REVENUE
http://statistics.data.gov.uk/id/local-authority/00HY,Wiltshire Council,08/10/2010,1900422412,1280.39,C Bodman   Sons ,100142,SN10,Neighbourhood & Planning,Mainstream Primary,Transport Contracts,Third Party Payments,REVENUE
http://statistics.data.gov.uk/id/local-authority/00HY,Wiltshire Council,08/10/2010,1900422413,3043.23,C Bodman   Sons ,100142,SN10,Neighbourhood & Planning,Mainstream Secondary,Transport Contracts,Third Party Payments,REVENUE
http://statistics.data.gov.uk/id/local-authority/00HY,Wiltshire Council,08/10/2010,1900422414,668.28,C Bodman   Sons ,100142,SN10,Neighbourhood & Planning,Mainstream 16+ Sec,Transport Contracts,Third Party Payments,REVENUE
http://statistics.data.gov.uk/id/local-authority/00HY,Wiltshire Council,08/10/2010,1900422414,2134.69,C Bodman   Sons ,100142,SN10,Neighbourhood & Planning,Mainstream Secondary,Transport Contracts,Third Party Payments,REVENUE
http://statistics.data.gov.uk/id/local-authority/00HY,Wiltshire Council,08/10/2010,1900422415,2906.17,C Bodman   Sons ,100142,SN10,Neighbourhood & Planning,Mainstream Secondary,Transport Contracts,Third Party Payments,REVENUE
http://statistics.data.gov.uk/id/local-authority/00HY,Wiltshire Council,08/10/2010,1900422416,2963.15,C Bodman   Sons ,100142,SN10,Neighbourhood & Planning,Mainstream Secondary,Transport Contracts,Third Party Payments,REVENUE
http://statistics.data.gov.uk/id/local-authority/00HY,Wiltshire Council,08/10/2010,1900422417,2436.27,C Bodman   Sons ,100142,SN10,Neighbourhood & Planning,Mainstream Secondary,Transport Contracts,Third Party Payments,REVENUE
http://statistics.data.gov.uk/id/local-authority/00HY,Wiltshire Council,08/10/2010,1900422419,788.15,C Bodman   Sons ,100142,SN10,Neighbourhood & Planning,Mainstream 16+ Sec,Transport Contracts,Third Party Payments,REVENUE
http://statistics.data.gov.uk/id/local-authority/00HY,Wiltshire Council,08/10/2010,1900422419,1601.38,C Bodman   Sons ,100142,SN10,Neighbourhood & Planning,Mainstream Secondary,Transport Contracts,Third Party Payments,REVENUE
http://statistics.data.gov.uk/id/local-authority/00HY,Wiltshire Council,08/10/2010,1900422420,3480.76,C Bodman   Sons ,100142,SN10,Neighbourhood & Planning,Mainstream Secondary,Transport Contracts,Third Party Payments,REVENUE
http://statistics.data.gov.uk/id/local-authority/00HY,Wiltshire Council,08/10/2010,1900422421,3785.73,C Bodman   Sons ,100142,SN10,Neighbourhood & Planning,Mainstream Secondary,Transport Contracts,Third Party Payments,REVENUE
http://statistics.data.gov.uk/id/local-authority/00HY,Wiltshire Council,08/10/2010,1900422422,500.00,C Bodman   Sons ,100142,SN10,Neighbourhood & Planning,Mainstream 16+ Sec,Transport Contracts,Third Party Payments,REVENUE
http://statistics.data.gov.uk/id/local-authority/00HY,Wiltshire Council,08/10/2010,1900422422,3300.00,C Bodman   Sons ,100142,SN10,Neighbourhood & Planning,Mainstream Secondary,Transport Contracts,Third Party Payments,REVENUE
http://statistics.data.gov.uk/id/local-authority/00HY,Wiltshire Council,08/10/2010,1900422423,1060.80,C Bodman   Sons ,100142,SN10,Neighbourhood & Planning,Mainstream 16+ Sec,Transport Contracts,Third Party Payments,REVENUE
http://statistics.data.gov.uk/id/local-authority/00HY,Wiltshire Council,08/10/2010,1900422423,1764.60,C Bodman   Sons ,100142,SN10,Neighbourhood & Planning,Mainstream Secondary,Transport Contracts,Third Party Payments,REVENUE
http://statistics.data.gov.uk/id/local-authority/00HY,Wiltshire Council,08/10/2010,1900422423,6183.90,C Bodman   Sons ,100142,SN10,Neighbourhood & Planning,Public Transport,Transport Contracts,Third Party Payments,REVENUE
http://statistics.data.gov.uk/id/local-authority/00HY,Wiltshire Council,08/10/2010,1900422426,2040.00,C Bodman   Sons ,100142,SN10,Neighbourhood & Planning,Mainstream Secondary,Transport Contracts,Third Party Payments,REVENUE
http://statistics.data.gov.uk/id/local-authority/00HY,Wiltshire Council,08/10/2010,1900422426,2040.00,C Bodman   Sons ,100142,SN10,Neighbourhood & Planning,Mainstream 16+ FE,Transport Contracts,Third Party Payments,REVENUE
http://statistics.data.gov.uk/id/local-authority/00HY,Wiltshire Council,08/10/2010,1900422426,19658.46,C Bodman   Sons ,100142,SN10,Neighbourhood & Planning,Public Transport,Transport Contracts,Third Party Payments,REVENUE
http://statistics.data.gov.uk/id/local-authority/00HY,Wiltshire Council,08/10/2010,1900422429,2343.33,Barnes Coaches Ltd ,100190,SN3 ,Neighbourhood & Planning,Mainstream 16+ Sec,Transport Contracts,Third Party Payments,REVENUE
http://statistics.data.gov.uk/id/local-authority/00HY,Wiltshire Council,08/10/2010,1900422430,1960.01,Barnes Coaches Ltd ,100190,SN3 ,Neighbourhood & Planning,Mainstream Secondary,Transport Contracts,Third Party Payments,REVENUE
http://statistics.data.gov.uk/id/local-authority/00HY,Wiltshire Council,08/10/2010,1900422431,2533.50,C Bodman   Sons ,100142,SN10,Neighbourhood & Planning,Mainstream Secondary,Transport Contracts,Third Party Payments,REVENUE
http://statistics.data.gov.uk/id/local-authority/00HY,Wiltshire Council,08/10/2010,1900422431,2857.79,C Bodman   Sons ,100142,SN10,Neighbourhood & Planning,Public Transport,Transport Contracts,Third Party Payments,REVENUE
http://statistics.data.gov.uk/id/local-authority/00HY,Wiltshire Council,08/10/2010,1900422432,1931.79,C Bodman   Sons ,100142,SN10,Neighbourhood & Planning,Public Transport,Transport Contracts,Third Party Payments,REVENUE
http://statistics.data.gov.uk/id/local-authority/00HY,Wiltshire Council,08/10/2010,1900422433,844.50,C Bodman   Sons ,100142,SN10,Neighbourhood & Planning,Mainstream Primary,Transport Contracts,Third Party Payments,REVENUE
http://statistics.data.gov.uk/id/local-authority/00HY,Wiltshire Council,08/10/2010,1900422433,1722.78,C Bodman   Sons ,100142,SN10,Neighbourhood & Planning,Mainstream Secondary,Transport Contracts,Third Party Payments,REVENUE
http://statistics.data.gov.uk/id/local-authority/00HY,Wiltshire Council,08/10/2010,1900422433,5751.04,C Bodman   Sons ,100142,SN10,Neighbourhood & Planning,Public Transport,Transport Contracts,Third Party Payments,REVENUE
http://statistics.data.gov.uk/id/local-authority/00HY,Wiltshire Council,08/10/2010,1900422435,1657.50,A B Taxis Ltd ,100945,SN12,Neighbourhood & Planning,Mainstream Secondary,Transport Contracts,Third Party Payments,REVENUE
http://statistics.data.gov.uk/id/local-authority/00HY,Wiltshire Council,08/10/2010,1900422436,1700.00,A B Taxis Ltd ,100945,SN12,Neighbourhood & Planning,Mainstream Secondary,Transport Contracts,Third Party Payments,REVENUE
http://statistics.data.gov.uk/id/local-authority/00HY,Wiltshire Council,08/10/2010,1900422437,840.00,Beta Taxis ,101096,BA14,Neighbourhood & Planning,DCE Kennet,Transport Contracts,Third Party Payments,REVENUE
http://statistics.data.gov.uk/id/local-authority/00HY,Wiltshire Council,08/10/2010,1900422510,4229.38,A G Builders ,100936,SN9 ,Wiltshire Council,Wiltshire Council,Buildings Minor Alterations,Premises Related,CAPITAL
http://statistics.data.gov.uk/id/local-authority/00HY,Wiltshire Council,08/10/2010,1900422511,14525.64,Wessex Building Services ,126252,SP7 ,Wiltshire Council,Wiltshire Council,Buildings Minor Alterations,Premises Related,CAPITAL
http://statistics.data.gov.uk/id/local-authority/00HY,Wiltshire Council,08/10/2010,1900422512,132224.32,Wilkins Builders Ltd ,100189,SN11,Wiltshire Council,Wiltshire Council,Buildings Minor Alterations,Premises Related,CAPITAL
http://statistics.data.gov.uk/id/local-authority/00HY,Wiltshire Council,08/10/2010,1900422513,21850.00,RGV Engineering (Netheravon) Ltd ,100202,SP4 ,Wiltshire Council,Wiltshire Council,Buildings Minor Alterations,Premises Related,CAPITAL
http://statistics.data.gov.uk/id/local-authority/00HY,Wiltshire Council,08/10/2010,1900422514,73269.92,A J K Services ,100944,SP9 ,Wiltshire Council,Wiltshire Council,Buildings Minor Alterations,Premises Related,CAPITAL
http://statistics.data.gov.uk/id/local-authority/00HY,Wiltshire Council,08/10/2010,1900422515,134803.71,Steele Davis (Swindon) Ltd ,100419,SN2 ,Wiltshire Council,Wiltshire Council,Buildings Minor Alterations,Premises Related,CAPITAL
http://statistics.data.gov.uk/id/local-authority/00HY,Wiltshire Council,08/10/2010,1900422516,27527.82,A G Builders ,100936,SN9 ,Wiltshire Council,Wiltshire Council,Buildings Minor Alterations,Premises Related,CAPITAL
http://statistics.data.gov.uk/id/local-authority/00HY,Wiltshire Council,08/10/2010,1900422517,1532.67,Wheelers  Westbury  Ltd ,112955,BA13,Wiltshire Council,Wiltshire Council,Buildings Minor Alterations,Premises Related,CAPITAL
http://statistics.data.gov.uk/id/local-authority/00HY,Wiltshire Council,08/10/2010,1900422518,1286.14,Wheelers  Westbury  Ltd ,112955,BA13,Wiltshire Council,Wiltshire Council,Buildings Minor Alterations,Premises Related,CAPITAL
http://statistics.data.gov.uk/id/local-authority/00HY,Wiltshire Council,08/10/2010,1900422520,796.60,REDACTED PERSONAL DATA,111536,REDACTED PERSONAL DATA,Wiltshire Council,Wiltshire Council,Buildings Minor Alterations,Premises Related,CAPITAL
http://statistics.data.gov.uk/id/local-authority/00HY,Wiltshire Council,08/10/2010,1900422522,7231.00,Capita Business Services Limited ,123891,DL1 ,Resources,Applications SuppLOB,ICT - Support arrangements,Supplies and Services,REVENUE
http://statistics.data.gov.uk/id/local-authority/00HY,Wiltshire Council,26/10/2010,1900422524,4902.15,Renelec Hennion Ltd ,101364,SN5 ,Resources,Primary,Preventative Property Maintenance,Premises Related,REVENUE
http://statistics.data.gov.uk/id/local-authority/00HY,Wiltshire Council,11/10/2010,1900422525,3366.33,Handicare (Freelift) ,129737,DY6 ,Wiltshire Council,Wiltshire Council,Payments to Contractors - Other,Third Party Payments,CAPITAL
http://statistics.data.gov.uk/id/local-authority/00HY,Wiltshire Council,11/10/2010,1900422526,4819.00,K C Brown Builders Ltd - DFG Only ,117095,BA14,Wiltshire Council,Wiltshire Council,Payments to Contractors - Other,Third Party Payments,CAPITAL
http://statistics.data.gov.uk/id/local-authority/00HY,Wiltshire Council,11/10/2010,1900422527,2870.00,Westside Contracting Limited - DFG ,122515,BS10,Wiltshire Council,Wiltshire Council,Payments to Contractors - Other,Third Party Payments,CAPITAL
http://statistics.data.gov.uk/id/local-authority/00HY,Wiltshire Council,11/10/2010,1900422529,4200.00,Westside Contracting Limited - DFG ,122515,BS10,Wiltshire Council,Wiltshire Council,Payments to Contractors - Other,Third Party Payments,CAPITAL
http://statistics.data.gov.uk/id/local-authority/00HY,Wiltshire Council,11/10/2010,1900422530,3620.00,Freelift Ltd - DFG Only ,124087,NE11,Wiltshire Council,Wiltshire Council,Payments to Contractors - Other,Third Party Payments,CAPITAL
http://statistics.data.gov.uk/id/local-authority/00HY,Wiltshire Council,11/10/2010,1900422531,1586.26,C.A.P. Security ,129128,BS16,Wiltshire Council,Wiltshire Council,Payments to Contractors - Other,Third Party Payments,CAPITAL
http://statistics.data.gov.uk/id/local-authority/00HY,Wiltshire Council,11/10/2010,1900422532,3410.00,K C Brown Builders Ltd - DFG Only ,117095,BA14,Wiltshire Council,Wiltshire Council,Payments to Contractors - Other,Third Party Payments,CAPITAL
http://statistics.data.gov.uk/id/local-authority/00HY,Wiltshire Council,11/10/2010,1900422536,4531.77,R.M.H. Roofing Ltd  DFG only ,120622,SN15,Wiltshire Council,Wiltshire Council,Payments to Contractors - Other,Third Party Payments,CAPITAL
http://statistics.data.gov.uk/id/local-authority/00HY,Wiltshire Council,11/10/2010,1900422539,665.58,British Gas Business ,114213,GU15,Neighbourhood & Planning,SH Horsehill Place,Electricity,Premises Related,REVENUE
http://statistics.data.gov.uk/id/local-authority/00HY,Wiltshire Council,11/10/2010,1900422539,742.90,British Gas Business ,114213,GU15,Neighbourhood & Planning,SH Clays Orchard,Electricity,Premises Related,REVENUE
http://statistics.data.gov.uk/id/local-authority/00HY,Wiltshire Council,11/10/2010,1900422539,801.44,British Gas Business ,114213,GU15,Neighbourhood & Planning,SH The Orchard,Electricity,Premises Related,REVENUE
http://statistics.data.gov.uk/id/local-authority/00HY,Wiltshire Council,11/10/2010,1900422539,939.00,British Gas Business ,114213,GU15,Neighbourhood & Planning,SH Nadder Close,Electricity,Premises Related,REVENUE
http://statistics.data.gov.uk/id/local-authority/00HY,Wiltshire Council,11/10/2010,1900422539,1433.65,British Gas Business ,114213,GU15,Neighbourhood & Planning,SH Lanfear Close,Electricity,Premises Related,REVENUE
http://statistics.data.gov.uk/id/local-authority/00HY,Wiltshire Council,11/10/2010,1900422543,5487.00,Oakus Wiltshire Ltd ,128270,SN14,Wiltshire Council,Wiltshire Council,Consultants� Fees,Supplies and Services,CAPITAL
http://statistics.data.gov.uk/id/local-authority/00HY,Wiltshire Council,11/10/2010,1900422543,6817.00,Oakus Wiltshire Ltd ,128270,SN14,Wiltshire Council,Wiltshire Council,Consultants� Fees,Supplies and Services,CAPITAL
http://statistics.data.gov.uk/id/local-authority/00HY,Wiltshire Council,11/10/2010,1900422543,7882.00,Oakus Wiltshire Ltd ,128270,SN14,Wiltshire Council,Wiltshire Council,Consultants� Fees,Supplies and Services,CAPITAL
http://statistics.data.gov.uk/id/local-authority/00HY,Wiltshire Council,11/10/2010,1900422543,9791.00,Oakus Wiltshire Ltd ,128270,SN14,Wiltshire Council,Wiltshire Council,Consultants� Fees,Supplies and Services,CAPITAL
http://statistics.data.gov.uk/id/local-authority/00HY,Wiltshire Council,11/10/2010,1900422543,11250.00,Oakus Wiltshire Ltd ,128270,SN14,Wiltshire Council,Wiltshire Council,Consultants� Fees,Supplies and Services,CAPITAL
http://statistics.data.gov.uk/id/local-authority/00HY,Wiltshire Council,11/10/2010,1900422617,1879000.00,Ringway Infastructure Services ,100952,SN10,Neighbourhood & Planning,Ringway Contract,Highways Term - Maintenance Contracts,Third Party Payments,REVENUE
http://statistics.data.gov.uk/id/local-authority/00HY,Wiltshire Council,11/10/2010,1900422621,763.75,REDACTED PERSONAL DATA,115434,REDACTED PERSONAL DATA,Wiltshire Council,Wiltshire Council,Grants provided by WC - Other,Supplies and Services,CAPITAL
http://statistics.data.gov.uk/id/local-authority/00HY,Wiltshire Council,12/10/2010,1900422623,3471.33,EDF Energy Limited ,110837,PL3 ,Resources,Wkplc Trnsfrm Prprty,Electricity,Premises Related,REVENUE
http://statistics.data.gov.uk/id/local-authority/00HY,Wiltshire Council,12/10/2010,1900422624,4541.28,EDF Energy Limited ,110837,PL3 ,Resources,Wkplc Trnsfrm Prprty,Electricity,Premises Related,REVENUE
http://statistics.data.gov.uk/id/local-authority/00HY,Wiltshire Council,12/10/2010,1900422625,17025.25,EDF Energy Limited ,110837,PL3 ,Resources,Wkplc Trnsfrm Prprty,Electricity,Premises Related,REVENUE
http://statistics.data.gov.uk/id/local-authority/00HY,Wiltshire Council,11/10/2010,1900422634,1650.00,Barnardo Services Ltd ,110257,BS16,Children & Education,PsychologicalServ,Staff Training Course Costs,Employee Related,REVENUE
http://statistics.data.gov.uk/id/local-authority/00HY,Wiltshire Council,12/10/2010,1900422637,878.72,Ulverscroft Large Print Books Ltd ,100233,LE7 ,Community Services,Lib Book Fund,Library Service,Supplies and Services,REVENUE
http://statistics.data.gov.uk/id/local-authority/00HY,Wiltshire Council,12/10/2010,1900422643,3637.26,EDF Energy Limited ,110837,PL3 ,Resources,Wkplc Trnsfrm Prprty,Electricity,Premises Related,REVENUE
http://statistics.data.gov.uk/id/local-authority/00HY,Wiltshire Council,12/10/2010,1900422648,847.00,Stanton Williams ,112581,N1 8,Wiltshire Council,Wiltshire Council,Buildings Minor Alterations,Premises Related,CAPITAL
http://statistics.data.gov.uk/id/local-authority/00HY,Wiltshire Council,26/10/2010,1900422660,962.88,Environmental Gain Ltd ,127556,BA11,Wiltshire Council,Wiltshire Council,Buildings Minor Alterations,Premises Related,CAPITAL
http://statistics.data.gov.uk/id/local-authority/00HY,Wiltshire Council,11/10/2010,1900422663,2068.15,T H White Devizes Ltd ,100165,SN10,Wiltshire Council,Wiltshire Council,Buildings Minor Alterations,Premises Related,CAPITAL
http://statistics.data.gov.uk/id/local-authority/00HY,Wiltshire Council,12/10/2010,1900422664,1272.30,British Gas Business ,114213,GU15,Neighbourhood & Planning,Durrington SwimmingP,Electricity,Premises Related,REVENUE
http://statistics.data.gov.uk/id/local-authority/00HY,Wiltshire Council,12/10/2010,1900422666,2529.41,British Gas Business ,114213,GU15,Neighbourhood & Planning,SDC Other Offices,Electricity,Premises Related,REVENUE
http://statistics.data.gov.uk/id/local-authority/00HY,Wiltshire Council,11/10/2010,1900422688,3087.50,North Newnton Garage ,100201,SN9 ,Neighbourhood & Planning,Mainstream Primary,Transport Contracts,Third Party Payments,REVENUE
http://statistics.data.gov.uk/id/local-authority/00HY,Wiltshire Council,11/10/2010,1900422692,855.00,S L J Travel ,101284,SP2 ,Neighbourhood & Planning,Mainstream Secondary,Transport Contracts,Third Party Payments,REVENUE
http://statistics.data.gov.uk/id/local-authority/00HY,Wiltshire Council,11/10/2010,1900422693,653.90,On Line Taxis ,101377,SP2 ,Neighbourhood & Planning,DCS South CTPLD U65,Transport Contracts,Third Party Payments,REVENUE
http://statistics.data.gov.uk/id/local-authority/00HY,Wiltshire Council,11/10/2010,1900422694,2142.00,On Line Taxis ,101377,SP2 ,Neighbourhood & Planning,SEN Secondary,Transport Contracts,Third Party Payments,REVENUE
http://statistics.data.gov.uk/id/local-authority/00HY,Wiltshire Council,11/10/2010,1900422695,2183.58,On Line Taxis ,101377,SP2 ,Neighbourhood & Planning,SEN Secondary,Transport Contracts,Third Party Payments,REVENUE
http://statistics.data.gov.uk/id/local-authority/00HY,Wiltshire Council,11/10/2010,1900422696,1505.40,Round A Bout Travel ,101237,BA13,Neighbourhood & Planning,SEN Secondary,Transport Contracts,Third Party Payments,REVENUE
http://statistics.data.gov.uk/id/local-authority/00HY,Wiltshire Council,11/10/2010,1900422697,1500.00,Shaftesbury Taxis ,101653,SP7 ,Neighbourhood & Planning,Mainstream Secondary,Transport Contracts,Third Party Payments,REVENUE
http://statistics.data.gov.uk/id/local-authority/00HY,Wiltshire Council,11/10/2010,1900422698,1260.00,Shaftesbury Taxis ,101653,SP7 ,Neighbourhood & Planning,Mainstream Primary,Transport Contracts,Third Party Payments,REVENUE
http://statistics.data.gov.uk/id/local-authority/00HY,Wiltshire Council,11/10/2010,1900422699,1080.06,Shaftesbury  District Motor Services Ltd,100146,SP7 ,Neighbourhood & Planning,Public Transport,Transport Contracts,Third Party Payments,REVENUE
http://statistics.data.gov.uk/id/local-authority/00HY,Wiltshire Council,11/10/2010,1900422699,2422.50,Shaftesbury  District Motor Services Ltd,100146,SP7 ,Neighbourhood & Planning,Mainstream Secondary,Transport Contracts,Third Party Payments,REVENUE
http://statistics.data.gov.uk/id/local-authority/00HY,Wiltshire Council,11/10/2010,1900422701,715.54,On Line Taxis ,101377,SP2 ,Neighbourhood & Planning,SEN 16+ Secondary,Transport Contracts,Third Party Payments,REVENUE
http://statistics.data.gov.uk/id/local-authority/00HY,Wiltshire Council,11/10/2010,1900422701,1431.08,On Line Taxis ,101377,SP2 ,Neighbourhood & Planning,SEN Primary,Transport Contracts,Third Party Payments,REVENUE
http://statistics.data.gov.uk/id/local-authority/00HY,Wiltshire Council,11/10/2010,1900422702,882.00,S L J Travel ,101284,SP2 ,Neighbourhood & Planning,Community Team West,Transport Contracts,Third Party Payments,REVENUE
http://statistics.data.gov.uk/id/local-authority/00HY,Wiltshire Council,11/10/2010,1900422702,882.00,S L J Travel ,101284,SP2 ,Neighbourhood & Planning,LAC&16+ South&West,Transport Contracts,Third Party Payments,REVENUE
http://statistics.data.gov.uk/id/local-authority/00HY,Wiltshire Council,11/10/2010,1900422703,1160.00,REDACTED PERSONAL DATA,100929,REDACTED PERSONAL DATA,Neighbourhood & Planning,SEN Secondary,Transport Contracts,Third Party Payments,REVENUE
http://statistics.data.gov.uk/id/local-authority/00HY,Wiltshire Council,11/10/2010,1900422704,552.60,S L J Travel ,101284,SP2 ,Neighbourhood & Planning,SEN Primary,Transport Contracts,Third Party Payments,REVENUE
http://statistics.data.gov.uk/id/local-authority/00HY,Wiltshire Council,11/10/2010,1900422705,1380.00,S L J Travel ,101284,SP2 ,Neighbourhood & Planning,DCE Trow Locality,Transport Contracts,Third Party Payments,REVENUE
http://statistics.data.gov.uk/id/local-authority/00HY,Wiltshire Council,11/10/2010,1900422706,2585.18,REDACTED PERSONAL DATA,101696,REDACTED PERSONAL DATA,Neighbourhood & Planning,Housing Rprs Simdell,Premises Related Other Maintenance Costs,Premises Related,REVENUE
http://statistics.data.gov.uk/id/local-authority/00HY,Wiltshire Council,11/10/2010,1900422707,2785.07,C C Furnival ,101706,BA12,Neighbourhood & Planning,Housing Rprs Simdell,Premises Related Other Maintenance Costs,Premises Related,REVENUE
http://statistics.data.gov.uk/id/local-authority/00HY,Wiltshire Council,11/10/2010,1900422708,501.30,B & M Windows  and  Doors Ltd ,101694,SP2 ,Neighbourhood & Planning,Housing Rprs Simdell,Premises Related Other Maintenance Costs,Premises Related,REVENUE
http://statistics.data.gov.uk/id/local-authority/00HY,Wiltshire Council,11/10/2010,1900422709,603.00,Quay Healthcare Ltd ,101707,DT4 ,Neighbourhood & Planning,Housing Rprs Simdell,Premises Related Other Maintenance Costs,Premises Related,REVENUE
http://statistics.data.gov.uk/id/local-authority/00HY,Wiltshire Council,11/10/2010,1900422711,1669.86,C C Furnival ,101706,BA12,Neighbourhood & Planning,Housing Rprs Simdell,Premises Related Other Maintenance Costs,Premises Related,REVENUE
http://statistics.data.gov.uk/id/local-authority/00HY,Wiltshire Council,11/10/2010,1900422724,847.00,C & G Tarmac Surfacing Ltd ,101697,SP3 ,Neighbourhood & Planning,Housing Rprs Simdell,Premises Related Other Maintenance Costs,Premises Related,REVENUE
http://statistics.data.gov.uk/id/local-authority/00HY,Wiltshire Council,11/10/2010,1900422726,2304.89,Mrs G A Whettleton ,101724,SP2 ,Neighbourhood & Planning,Housing Rprs Simdell,Premises Related Other Maintenance Costs,Premises Related,REVENUE
http://statistics.data.gov.uk/id/local-authority/00HY,Wiltshire Council,11/10/2010,1900422727,1292.32,Mrs G A Whettleton ,101724,SP2 ,Neighbourhood & Planning,Housing Rprs Simdell,Premises Related Other Maintenance Costs,Premises Related,REVENUE
http://statistics.data.gov.uk/id/local-authority/00HY,Wiltshire Council,11/10/2010,1900422728,1318.68,Network Rail Infrastucture Ltd ,111957,M60 ,Neighbourhood & Planning,Bridge Routine Mtc,Highways Contracts - Other,Third Party Payments,REVENUE
http://statistics.data.gov.uk/id/local-authority/00HY,Wiltshire Council,12/10/2010,1900422737,850.00,REDACTED PERSONAL DATA,122835,REDACTED PERSONAL DATA,Neighbourhood & Planning,Sports Devt Grants,Grants provided by WC - Other,Supplies and Services,REVENUE
http://statistics.data.gov.uk/id/local-authority/00HY,Wiltshire Council,12/10/2010,1900422744,1501.00,Marden Village Hall ,111527,SN10,Community Services,Area Board Pewsey,Area Board Grants,Supplies and Services,REVENUE
http://statistics.data.gov.uk/id/local-authority/00HY,Wiltshire Council,12/10/2010,1900422752,566.02,Davitt Jones Bould ,101239,TA1 ,Children & Education,DCE Dept Balance Sht,Work Before Asset Sale,Balance Sheet Accounts,REVENUE
http://statistics.data.gov.uk/id/local-authority/00HY,Wiltshire Council,12/10/2010,1900422753,1165.09,Latcham Direct Limited ,110949,BS14,Resources,PensionsAdmin,Printing Internal - Internal Trading Charges,Supplies and Services,REVENUE
http://statistics.data.gov.uk/id/local-authority/00HY,Wiltshire Council,12/10/2010,1900422754,5434.00,Oakus Wiltshire Ltd ,128270,SN14,Wiltshire Council,Wiltshire Council,Consultants� Fees,Supplies and Services,CAPITAL
http://statistics.data.gov.uk/id/local-authority/00HY,Wiltshire Council,12/10/2010,1900422755,567.53,D A Archive Solutions Ltd ,115106,SN12,Resources,PensionsAdmin,Stationery,Supplies and Services,REVENUE
http://statistics.data.gov.uk/id/local-authority/00HY,Wiltshire Council,12/10/2010,1900422757,2980.00,Cambridge Econometrics ,114468,CB1 ,Neighbourhood & Planning,Spatial Planning,Consultants� Fees,Supplies and Services,REVENUE
http://statistics.data.gov.uk/id/local-authority/00HY,Wiltshire Council,12/10/2010,1900422758,816.53,Bertram Library Services ,101283,BD19,Community Services,Lib Book Fund,Library Service,Supplies and Services,REVENUE
http://statistics.data.gov.uk/id/local-authority/00HY,Wiltshire Council,12/10/2010,1900422760,3480.00,Capita S H G Resourcing ,114493,SE10,Children & Education,TS Assist Director,Consultants� Fees,Supplies and Services,REVENUE
http://statistics.data.gov.uk/id/local-authority/00HY,Wiltshire Council,12/10/2010,1900422763,2913.04,Southern Electric Plc ,100174,PO9 ,Neighbourhood & Planning,Churchfields Estate,Electricity,Premises Related,REVENUE
http://statistics.data.gov.uk/id/local-authority/00HY,Wiltshire Council,12/10/2010,1900422784,1088.00,Royal Marines Band Fund - Collingwo ,126330,PO14,Neighbourhood & Planning,City Hall,City Hall Shows,Balance Sheet Accounts,REVENUE
http://statistics.data.gov.uk/id/local-authority/00HY,Wiltshire Council,12/10/2010,1900422786,4903.00,Bennett & Dean Electrical Ltd ,100214,SP2 ,Wiltshire Council,Wiltshire Council,Payments to Contractors - Other,Third Party Payments,CAPITAL
http://statistics.data.gov.uk/id/local-authority/00HY,Wiltshire Council,12/10/2010,1900422787,3801.33,Nks Contracts (Central) Ltd - DFG o ,119527,GL54,Wiltshire Council,Wiltshire Council,Payments to Contractors - Other,Third Party Payments,CAPITAL
http://statistics.data.gov.uk/id/local-authority/00HY,Wiltshire Council,12/10/2010,1900422788,515.23,Westlea Housing Association ,100407,SN14,Wiltshire Council,Wiltshire Council,Other Professional Fees,Supplies and Services,CAPITAL
http://statistics.data.gov.uk/id/local-authority/00HY,Wiltshire Council,12/10/2010,1900422789,3281.50,Nks Contracts (Central) Ltd - DFG o ,119527,GL54,Wiltshire Council,Wiltshire Council,Payments to Contractors - Other,Third Party Payments,CAPITAL
http://statistics.data.gov.uk/id/local-authority/00HY,Wiltshire Council,12/10/2010,1900422792,28000.00,REDACTED PERSONAL DATA,121802,REDACTED PERSONAL DATA,Community Services,LINks,Grants provided by WC - Other,Supplies and Services,REVENUE
http://statistics.data.gov.uk/id/local-authority/00HY,Wiltshire Council,12/10/2010,1900422793,1453.17,Lovell ,129702,B78 ,Wiltshire Council,Wiltshire Council,Payments to Contractors - Other,Third Party Payments,CAPITAL
http://statistics.data.gov.uk/id/local-authority/00HY,Wiltshire Council,12/10/2010,1900422795,4400.00,HG & AP  Vaughan Ltd - DFG Only ,116244,BA11,Wiltshire Council,Wiltshire Council,Payments to Contractors - Other,Third Party Payments,CAPITAL
http://statistics.data.gov.uk/id/local-authority/00HY,Wiltshire Council,12/10/2010,1900422797,3401.47,Nks Contracts (Central) Ltd - DFG o ,119527,GL54,Wiltshire Council,Wiltshire Council,Payments to Contractors - Other,Third Party Payments,CAPITAL
http://statistics.data.gov.uk/id/local-authority/00HY,Wiltshire Council,12/10/2010,1900422811,2225.00,H M C S ,116252,BA14,Children & Education,HQ Social Care,Legal Fees,Supplies and Services,REVENUE
http://statistics.data.gov.uk/id/local-authority/00HY,Wiltshire Council,12/10/2010,1900422812,4356.47,Nks Contracts (Central) Ltd - DFG o ,119527,GL54,Wiltshire Council,Wiltshire Council,Payments to Contractors - Other,Third Party Payments,CAPITAL
http://statistics.data.gov.uk/id/local-authority/00HY,Wiltshire Council,12/10/2010,1900422813,1744.49,"Prudential Pension Fund Sces St Johns, Marlborough",124473,RG1 ,Wiltshire Council,Wiltshire Council,Superannuations and AVC�s,Balance Sheet Accounts,REVENUE
http://statistics.data.gov.uk/id/local-authority/00HY,Wiltshire Council,12/10/2010,1900422814,614.27,Westlea Housing Association ,100407,SN14,Wiltshire Council,Wiltshire Council,Other Professional Fees,Supplies and Services,CAPITAL
http://statistics.data.gov.uk/id/local-authority/00HY,Wiltshire Council,12/10/2010,1900422815,14974.40,Southern Gas Networks ,121257,BR5 ,Wiltshire Council,Wiltshire Council,Highways Contracts - Other,Third Party Payments,CAPITAL
http://statistics.data.gov.uk/id/local-authority/00HY,Wiltshire Council,12/10/2010,1900422816,40000.00,Orders of St John Trust Care Homes ,112038,BA14,Community Services,OP OSJ Block,Adult Residential Respite - Block,Third Party Payments,REVENUE
http://statistics.data.gov.uk/id/local-authority/00HY,Wiltshire Council,12/10/2010,1900422817,15969.28,Virgin Media ,125332,ML4 ,Wiltshire Council,Wiltshire Council,Highways Contracts - Other,Third Party Payments,CAPITAL
http://statistics.data.gov.uk/id/local-authority/00HY,Wiltshire Council,12/10/2010,1900422819,915.00,J T Building & Maintenance - DFG on ,123827,BA14,Wiltshire Council,Wiltshire Council,Payments to Contractors - Other,Third Party Payments,CAPITAL
http://statistics.data.gov.uk/id/local-authority/00HY,Wiltshire Council,12/10/2010,1900422821,1301.00,Prior & Company (SW) Ltd ,120242,SN13,Wiltshire Council,Wiltshire Council,Payments to Contractors - Other,Third Party Payments,CAPITAL
http://statistics.data.gov.uk/id/local-authority/00HY,Wiltshire Council,12/10/2010,1900422822,47921.00,REDACTED PERSONAL DATA,110067,REDACTED PERSONAL DATA,Community Services,Age Concern S D,Grants provided by WC - Other,Supplies and Services,REVENUE
http://statistics.data.gov.uk/id/local-authority/00HY,Wiltshire Council,12/10/2010,1900422823,30777.00,REDACTED PERSONAL DATA,100129,REDACTED PERSONAL DATA,Community Services,Age UK Wiltshire,Grants provided by WC - Other,Supplies and Services,REVENUE
http://statistics.data.gov.uk/id/local-authority/00HY,Wiltshire Council,12/10/2010,1900422824,231326.80,REDACTED PERSONAL DATA,110545,REDACTED PERSONAL DATA,Community Services,Wilts Citizens Advic,Grants provided by WC - Other,Supplies and Services,REVENUE
http://statistics.data.gov.uk/id/local-authority/00HY,Wiltshire Council,12/10/2010,1900422825,90490.40,REDACTED PERSONAL DATA,110661,REDACTED PERSONAL DATA,Community Services,GROW,Grants provided by WC - Other,Supplies and Services,REVENUE
http://statistics.data.gov.uk/id/local-authority/00HY,Wiltshire Council,12/10/2010,1900422826,59497.60,REDACTED PERSONAL DATA,110661,REDACTED PERSONAL DATA,Community Services,Eql Chncs Bttr Lives,Grants provided by WC - Other,Supplies and Services,REVENUE
http://statistics.data.gov.uk/id/local-authority/00HY,Wiltshire Council,12/10/2010,1900422827,20250.00,REDACTED PERSONAL DATA,110596,REDACTED PERSONAL DATA,Community Services,Community First,Grants provided by WC - Other,Supplies and Services,REVENUE
http://statistics.data.gov.uk/id/local-authority/00HY,Wiltshire Council,12/10/2010,1900422828,38706.50,REDACTED PERSONAL DATA,114622,REDACTED PERSONAL DATA,Community Services,Charities InfoBureau,Grants provided by WC - Other,Supplies and Services,REVENUE
http://statistics.data.gov.uk/id/local-authority/00HY,Wiltshire Council,12/10/2010,1900422829,43014.00,REDACTED PERSONAL DATA,110596,REDACTED PERSONAL DATA,Community Services,Age Concern S D,Grants provided by WC - Other,Supplies and Services,REVENUE
http://statistics.data.gov.uk/id/local-authority/00HY,Wiltshire Council,12/10/2010,1900422837,1179.94,REDACTED PERSONAL DATA,120776,REDACTED PERSONAL DATA,Children & Education,LAC & 16+ Team 1,Children's Residential / Domiciliary Care,Third Party Payments,REVENUE
http://statistics.data.gov.uk/id/local-authority/00HY,Wiltshire Council,12/10/2010,1900422840,903.80,REDACTED PERSONAL DATA,120776,REDACTED PERSONAL DATA,Children & Education,LAC & 16+ Team 1,Children's Residential / Domiciliary Care,Third Party Payments,REVENUE
http://statistics.data.gov.uk/id/local-authority/00HY,Wiltshire Council,12/10/2010,1900422841,906.00,REDACTED PERSONAL DATA,120776,REDACTED PERSONAL DATA,Children & Education,LAC & 16+ Team 1,Children's Residential / Domiciliary Care,Third Party Payments,REVENUE
http://statistics.data.gov.uk/id/local-authority/00HY,Wiltshire Council,12/10/2010,1900422842,4483.34,MCL Transport Consultants Ltd ,111564,BN25,Neighbourhood & Planning,Concessionary Fares,Payments to Contractors - Other,Third Party Payments,REVENUE
http://statistics.data.gov.uk/id/local-authority/00HY,Wiltshire Council,12/10/2010,1900422844,903.80,REDACTED PERSONAL DATA,120776,REDACTED PERSONAL DATA,Children & Education,LAC & 16+ Team 1,Children's Residential / Domiciliary Care,Third Party Payments,REVENUE
http://statistics.data.gov.uk/id/local-authority/00HY,Wiltshire Council,12/10/2010,1900422875,3888.18,Southern Electric Plc ,100174,PO9 ,Community Services,Tisbury Naddar Schoo,Electricity,Premises Related,REVENUE
http://statistics.data.gov.uk/id/local-authority/00HY,Wiltshire Council,12/10/2010,1900422882,2763.86,Moormead House Nursing Home ,111662,SN4 ,Community Services,OP North Locality,Adult Care Nursing Placements - Void Payments,Third Party Payments,REVENUE
http://statistics.data.gov.uk/id/local-authority/00HY,Wiltshire Council,12/10/2010,1900422901,650.80,Amesbury Taxi Associates Ltd ,101054,SP4 ,Neighbourhood & Planning,DCS Kennet MenHthO65,Transport Contracts,Third Party Payments,REVENUE
http://statistics.data.gov.uk/id/local-authority/00HY,Wiltshire Council,12/10/2010,1900422901,1001.20,Amesbury Taxi Associates Ltd ,101054,SP4 ,Neighbourhood & Planning,DCS KennetRuralCTO65,Transport Contracts,Third Party Payments,REVENUE
http://statistics.data.gov.uk/id/local-authority/00HY,Wiltshire Council,12/10/2010,1900422902,945.00,Amesbury Taxi Associates Ltd ,101054,SP4 ,Neighbourhood & Planning,Mainstream Secondary,Transport Contracts,Third Party Payments,REVENUE
http://statistics.data.gov.uk/id/local-authority/00HY,Wiltshire Council,12/10/2010,1900422903,1106.49,Amesbury Taxi Associates Ltd ,101054,SP4 ,Neighbourhood & Planning,Mainstream Secondary,Transport Contracts,Third Party Payments,REVENUE
http://statistics.data.gov.uk/id/local-authority/00HY,Wiltshire Council,12/10/2010,1900422904,1329.72,Amesbury Taxi Associates Ltd ,101054,SP4 ,Neighbourhood & Planning,Mainstream Secondary,Transport Contracts,Third Party Payments,REVENUE
http://statistics.data.gov.uk/id/local-authority/00HY,Wiltshire Council,12/10/2010,1900422905,1100.00,Amesbury Taxi Associates Ltd ,101054,SP4 ,Neighbourhood & Planning,SEN Primary,Transport Contracts,Third Party Payments,REVENUE
http://statistics.data.gov.uk/id/local-authority/00HY,Wiltshire Council,12/10/2010,1900422906,900.00,Amesbury Taxi Associates Ltd ,101054,SP4 ,Neighbourhood & Planning,SEN Secondary,Transport Contracts,Third Party Payments,REVENUE
http://statistics.data.gov.uk/id/local-authority/00HY,Wiltshire Council,12/10/2010,1900422907,588.00,Arrow Private Hire ,100574,SN8 ,Neighbourhood & Planning,Mainstream Secondary,Transport Contracts,Third Party Payments,REVENUE
http://statistics.data.gov.uk/id/local-authority/00HY,Wiltshire Council,12/10/2010,1900422910,930.00,Arrow Private Hire ,100574,SN8 ,Neighbourhood & Planning,SEN Secondary,Transport Contracts,Third Party Payments,REVENUE
http://statistics.data.gov.uk/id/local-authority/00HY,Wiltshire Council,12/10/2010,1900422911,819.00,Arrow Private Hire ,100574,SN8 ,Neighbourhood & Planning,LAC&16+ North&East,Transport Contracts,Third Party Payments,REVENUE
http://statistics.data.gov.uk/id/local-authority/00HY,Wiltshire Council,12/10/2010,1900422913,1460.30,APL Travel Limited ,100596,SN14,Neighbourhood & Planning,Mainstream Secondary,Transport Contracts,Third Party Payments,REVENUE
http://statistics.data.gov.uk/id/local-authority/00HY,Wiltshire Council,12/10/2010,1900422913,3440.95,APL Travel Limited ,100596,SN14,Neighbourhood & Planning,Public Transport,Transport Contracts,Third Party Payments,REVENUE
http://statistics.data.gov.uk/id/local-authority/00HY,Wiltshire Council,12/10/2010,1900422915,1328.77,APL Travel Limited ,100596,SN14,Neighbourhood & Planning,Mainstream Secondary,Transport Contracts,Third Party Payments,REVENUE
http://statistics.data.gov.uk/id/local-authority/00HY,Wiltshire Council,12/10/2010,1900422915,2491.00,APL Travel Limited ,100596,SN14,Neighbourhood & Planning,Mainstream 16+ FE,Transport Contracts,Third Party Payments,REVENUE
http://statistics.data.gov.uk/id/local-authority/00HY,Wiltshire Council,12/10/2010,1900422915,4327.52,APL Travel Limited ,100596,SN14,Neighbourhood & Planning,Public Transport,Transport Contracts,Third Party Payments,REVENUE
http://statistics.data.gov.uk/id/local-authority/00HY,Wiltshire Council,12/10/2010,1900422916,5258.44,APL Travel Limited ,100596,SN14,Neighbourhood & Planning,Mainstream Secondary,Transport Contracts,Third Party Payments,REVENUE
http://statistics.data.gov.uk/id/local-authority/00HY,Wiltshire Council,12/10/2010,1900422918,1012.20,A M S Taxis ,100839,BA14,Neighbourhood & Planning,SEN Secondary,Transport Contracts,Third Party Payments,REVENUE
http://statistics.data.gov.uk/id/local-authority/00HY,Wiltshire Council,12/10/2010,1900422919,1233.75,A M S Taxis ,100839,BA14,Neighbourhood & Planning,SEN Secondary,Transport Contracts,Third Party Payments,REVENUE
http://statistics.data.gov.uk/id/local-authority/00HY,Wiltshire Council,12/10/2010,1900422920,2381.46,APL Travel Limited ,100596,SN14,Neighbourhood & Planning,Mainstream Secondary,Transport Contracts,Third Party Payments,REVENUE
http://statistics.data.gov.uk/id/local-authority/00HY,Wiltshire Council,12/10/2010,1900422921,2552.69,APL Travel Limited ,100596,SN14,Neighbourhood & Planning,Mainstream Secondary,Transport Contracts,Third Party Payments,REVENUE
http://statistics.data.gov.uk/id/local-authority/00HY,Wiltshire Council,12/10/2010,1900422922,1910.81,APL Travel Limited ,100596,SN14,Neighbourhood & Planning,Mainstream Secondary,Transport Contracts,Third Party Payments,REVENUE
http://statistics.data.gov.uk/id/local-authority/00HY,Wiltshire Council,12/10/2010,1900422931,2336.96,B & M Windows  and  Doors Ltd ,101694,SP2 ,Neighbourhood & Planning,Housing Rprs Simdell,Premises Related Other Maintenance Costs,Premises Related,REVENUE
http://statistics.data.gov.uk/id/local-authority/00HY,Wiltshire Council,12/10/2010,1900422932,2280.00,Edwards  and  Scott Roofing ,115648,SP1 ,Neighbourhood & Planning,Housing Rprs Simdell,Premises Related Other Maintenance Costs,Premises Related,REVENUE
http://statistics.data.gov.uk/id/local-authority/00HY,Wiltshire Council,12/10/2010,1900422937,940.00,B & M Windows  and  Doors Ltd ,101694,SP2 ,Neighbourhood & Planning,Housing Rprs Simdell,Premises Related Other Maintenance Costs,Premises Related,REVENUE
http://statistics.data.gov.uk/id/local-authority/00HY,Wiltshire Council,12/10/2010,1900422968,865.88,Edward Mcconnell ,101695,SP1 ,Neighbourhood & Planning,Housing Rprs Simdell,Premises Related Other Maintenance Costs,Premises Related,REVENUE
http://statistics.data.gov.uk/id/local-authority/00HY,Wiltshire Council,12/10/2010,1900422974,537.00,Quay Healthcare Ltd ,101707,DT4 ,Neighbourhood & Planning,Housing Rprs Simdell,Premises Related Other Maintenance Costs,Premises Related,REVENUE
http://statistics.data.gov.uk/id/local-authority/00HY,Wiltshire Council,12/10/2010,1900422984,2324.96,Drain Services Ltd ,101715,SP2 ,Neighbourhood & Planning,Housing Rprs Simdell,Premises Related Other Maintenance Costs,Premises Related,REVENUE
http://statistics.data.gov.uk/id/local-authority/00HY,Wiltshire Council,12/10/2010,1900423040,1637776.00,Kier Regional Ltd ,126496,GL53,Wiltshire Council,Wiltshire Council,Buildings Minor Alterations,Premises Related,CAPITAL
http://statistics.data.gov.uk/id/local-authority/00HY,Wiltshire Council,12/10/2010,1900423041,5800.00,RGV Engineering (Netheravon) Ltd ,100202,SP4 ,Wiltshire Council,Wiltshire Council,Buildings Minor Alterations,Premises Related,CAPITAL
http://statistics.data.gov.uk/id/local-authority/00HY,Wiltshire Council,12/10/2010,1900423042,8000.00,RGV Engineering (Netheravon) Ltd ,100202,SP4 ,Wiltshire Council,Wiltshire Council,Buildings Minor Alterations,Premises Related,CAPITAL
http://statistics.data.gov.uk/id/local-authority/00HY,Wiltshire Council,12/10/2010,1900423043,77429.50,Wilkins Builders Ltd ,100189,SN11,Wiltshire Council,Wiltshire Council,Buildings Minor Alterations,Premises Related,CAPITAL
http://statistics.data.gov.uk/id/local-authority/00HY,Wiltshire Council,12/10/2010,1900423045,74546.44,Cowlin Construction Ltd ,101013,BS13,Wiltshire Council,Wiltshire Council,Buildings Minor Alterations,Premises Related,CAPITAL
http://statistics.data.gov.uk/id/local-authority/00HY,Wiltshire Council,12/10/2010,1900423046,5343.71,Wheelers  Westbury  Ltd ,112955,BA13,Wiltshire Council,Wiltshire Council,Buildings Minor Alterations,Premises Related,CAPITAL
http://statistics.data.gov.uk/id/local-authority/00HY,Wiltshire Council,12/10/2010,1900423048,47500.00,Steele Davis (Swindon) Ltd ,100419,SN2 ,Wiltshire Council,Wiltshire Council,Buildings Minor Alterations,Premises Related,CAPITAL
http://statistics.data.gov.uk/id/local-authority/00HY,Wiltshire Council,12/10/2010,1900423050,25945.95,RGV Engineering (Netheravon) Ltd ,100202,SP4 ,Wiltshire Council,Wiltshire Council,Buildings Minor Alterations,Premises Related,CAPITAL
http://statistics.data.gov.uk/id/local-authority/00HY,Wiltshire Council,12/10/2010,1900423055,20000.00,Steele Davis (Swindon) Ltd ,100419,SN2 ,Wiltshire Council,Wiltshire Council,Buildings Minor Alterations,Premises Related,CAPITAL
http://statistics.data.gov.uk/id/local-authority/00HY,Wiltshire Council,12/10/2010,1900423057,10200.00,RGV Engineering (Netheravon) Ltd ,100202,SP4 ,Wiltshire Council,Wiltshire Council,Buildings Minor Alterations,Premises Related,CAPITAL
http://statistics.data.gov.uk/id/local-authority/00HY,Wiltshire Council,12/10/2010,1900423060,70200.00,A J K Services ,100944,SP9 ,Wiltshire Council,Wiltshire Council,Buildings Minor Alterations,Premises Related,CAPITAL
http://statistics.data.gov.uk/id/local-authority/00HY,Wiltshire Council,12/10/2010,1900423066,6254.23,EDF Energy Limited ,110837,PL3 ,Community Services,Heritage Admin,Electricity,Premises Related,REVENUE
http://statistics.data.gov.uk/id/local-authority/00HY,Wiltshire Council,12/10/2010,1900423067,76605.29,Wilkins Builders Ltd ,100189,SN11,Wiltshire Council,Wiltshire Council,Buildings Minor Alterations,Premises Related,CAPITAL
http://statistics.data.gov.uk/id/local-authority/00HY,Wiltshire Council,12/10/2010,1900423068,1375.48,EDF Energy Limited ,110837,PL3 ,Neighbourhood & Planning,East Depots,Electricity,Premises Related,REVENUE
http://statistics.data.gov.uk/id/local-authority/00HY,Wiltshire Council,12/10/2010,1900423069,23214.00,A G Builders ,100936,SN9 ,Neighbourhood & Planning,Other Rechable Works,Preventative Property Maintenance,Premises Related,REVENUE
http://statistics.data.gov.uk/id/local-authority/00HY,Wiltshire Council,12/10/2010,1900423070,3184.03,EDF Energy Limited ,110837,PL3 ,Neighbourhood & Planning,Browfort (Kennet),Electricity,Premises Related,REVENUE
http://statistics.data.gov.uk/id/local-authority/00HY,Wiltshire Council,12/10/2010,1900423071,739.70,EDF Energy Limited ,110837,PL3 ,Neighbourhood & Planning,Resdntl Trvllr Sites,Electricity,Premises Related,REVENUE
http://statistics.data.gov.uk/id/local-authority/00HY,Wiltshire Council,12/10/2010,1900423072,562518.11,Mouchelparkman ,118185,L3 1,Neighbourhood & Planning,Mouchel Contract,Highways Term - Consultant,Third Party Payments,REVENUE
http://statistics.data.gov.uk/id/local-authority/00HY,Wiltshire Council,12/10/2010,1900423078,858.86,Bertram Library Services ,101283,BD19,Community Services,Lib Book Fund,Library Service,Supplies and Services,REVENUE
http://statistics.data.gov.uk/id/local-authority/00HY,Wiltshire Council,12/10/2010,1900423083,676.24,Bertram Library Services ,101283,BD19,Community Services,Lib Book Fund,Library Service,Supplies and Services,REVENUE
http://statistics.data.gov.uk/id/local-authority/00HY,Wiltshire Council,12/10/2010,1900423085,20694.33,Integral Ltd ,100961,BS32,Wiltshire Council,Wiltshire Council,Buildings Minor Alterations,Premises Related,CAPITAL
http://statistics.data.gov.uk/id/local-authority/00HY,Wiltshire Council,29/10/2010,1900423088,15247.48,REDACTED PERSONAL DATA,121871,REDACTED PERSONAL DATA,Neighbourhood & Planning,Big Lottery Fund Pla,Grants provided by WC - Other,Supplies and Services,REVENUE
http://statistics.data.gov.uk/id/local-authority/00HY,Wiltshire Council,13/10/2010,1900423109,31475.08,Westlea Housing Association ,100407,SN14,Community Services,S/People,Supporting People - Block Gross,Third Party Payments,REVENUE
http://statistics.data.gov.uk/id/local-authority/00HY,Wiltshire Council,13/10/2010,1900423111,9284.64,Cornerstones UK Ltd ,110620,SN9 ,Community Services,S/People,Supporting People - Subsidy,Third Party Payments,REVENUE
http://statistics.data.gov.uk/id/local-authority/00HY,Wiltshire Council,13/10/2010,1900423112,24498.88,Turning Point ,100570,SP1 ,Community Services,S/People,Supporting People - Subsidy,Third Party Payments,REVENUE
http://statistics.data.gov.uk/id/local-authority/00HY,Wiltshire Council,13/10/2010,1900423113,2451.30,Salisbury City Almshouse   Welfare ,100571,SP1 ,Community Services,S/People,Supporting People - Subsidy,Third Party Payments,REVENUE
http://statistics.data.gov.uk/id/local-authority/00HY,Wiltshire Council,13/10/2010,1900423114,939.36,Habinteg Housing Association ,100583,EC4A,Community Services,S/People,Supporting People - Subsidy,Third Party Payments,REVENUE
http://statistics.data.gov.uk/id/local-authority/00HY,Wiltshire Council,13/10/2010,1900423115,3327.56,Self Unlimited ,100589,LE8 ,Community Services,S/People,Supporting People - Subsidy,Third Party Payments,REVENUE
http://statistics.data.gov.uk/id/local-authority/00HY,Wiltshire Council,13/10/2010,1900423117,3790.88,Sarsen Housing Association Ltd ,100624,SN10,Community Services,S/People,Supporting People - Subsidy,Third Party Payments,REVENUE
http://statistics.data.gov.uk/id/local-authority/00HY,Wiltshire Council,13/10/2010,1900423118,47243.00,Sarsen Housing Association Ltd ,100624,SN10,Community Services,S/People,Supporting People - Block Gross,Third Party Payments,REVENUE
http://statistics.data.gov.uk/id/local-authority/00HY,Wiltshire Council,13/10/2010,1900423119,8760.00,Alabare Christian Care Centre ,100837,SP1 ,Community Services,S/People,Supporting People - Subsidy,Third Party Payments,REVENUE
http://statistics.data.gov.uk/id/local-authority/00HY,Wiltshire Council,13/10/2010,1900423120,89353.32,Alabare Christian Care Centre ,100837,SP1 ,Community Services,S/People,Supporting People - Block Gross,Third Party Payments,REVENUE
http://statistics.data.gov.uk/id/local-authority/00HY,Wiltshire Council,13/10/2010,1900423121,6030.52,Selwood Housing Society Limited ,100844,BA14,Community Services,S/People,Supporting People - Subsidy,Third Party Payments,REVENUE
http://statistics.data.gov.uk/id/local-authority/00HY,Wiltshire Council,13/10/2010,1900423122,76391.84,Selwood Housing Society Limited ,100844,BA14,Community Services,S/People,Supporting People - Block Gross,Third Party Payments,REVENUE
http://statistics.data.gov.uk/id/local-authority/00HY,Wiltshire Council,13/10/2010,1900423123,11069.48,Ordinary Life Project Association ,100855,BA12,Community Services,S/People,Supporting People - Subsidy,Third Party Payments,REVENUE
http://statistics.data.gov.uk/id/local-authority/00HY,Wiltshire Council,13/10/2010,1900423124,861.84,Places for People ,100860,PR5 ,Community Services,S/People,Supporting People - Subsidy,Third Party Payments,REVENUE
http://statistics.data.gov.uk/id/local-authority/00HY,Wiltshire Council,13/10/2010,1900423125,5218.56,Voyage ,100870,WS13,Community Services,S/People,Supporting People - Subsidy,Third Party Payments,REVENUE
http://statistics.data.gov.uk/id/local-authority/00HY,Wiltshire Council,13/10/2010,1900423127,21956.76,Sanctuary Care Ltd ,100886,RG1 ,Community Services,S/People,Supporting People - Block Gross,Third Party Payments,REVENUE
http://statistics.data.gov.uk/id/local-authority/00HY,Wiltshire Council,13/10/2010,1900423128,3683.16,REDACTED PERSONAL DATA,100905,REDACTED PERSONAL DATA,Community Services,S/People,Supporting People - Subsidy,Third Party Payments,REVENUE
http://statistics.data.gov.uk/id/local-authority/00HY,Wiltshire Council,13/10/2010,1900423129,2029.24,United Response ,100908,SW15,Community Services,S/People,Supporting People - Subsidy,Third Party Payments,REVENUE
http://statistics.data.gov.uk/id/local-authority/00HY,Wiltshire Council,13/10/2010,1900423130,15557.08,The Amber Foundation ,100949,EX18,Community Services,S/People,Supporting People - Block Gross,Third Party Payments,REVENUE
http://statistics.data.gov.uk/id/local-authority/00HY,Wiltshire Council,13/10/2010,1900423131,1714.44,Together Working for Wellbeing ,100971,EC1V,Community Services,S/People,Supporting People - Block Gross,Third Party Payments,REVENUE
http://statistics.data.gov.uk/id/local-authority/00HY,Wiltshire Council,13/10/2010,1900423132,3866.56,Richmond Fellowship ,100977,N7 8,Community Services,S/People,Supporting People - Subsidy,Third Party Payments,REVENUE
http://statistics.data.gov.uk/id/local-authority/00HY,Wiltshire Council,13/10/2010,1900423133,18456.36,Dimensions  UK  Ltd ,100993,RG7 ,Community Services,S/People,Supporting People - Subsidy,Third Party Payments,REVENUE
http://statistics.data.gov.uk/id/local-authority/00HY,Wiltshire Council,13/10/2010,1900423134,3198.88,ABLE ,101029,BA14,Community Services,S/People,Supporting People - Subsidy,Third Party Payments,REVENUE
http://statistics.data.gov.uk/id/local-authority/00HY,Wiltshire Council,13/10/2010,1900423135,36720.04,Drugs and Homeless Initiative ,101061,BA1 ,Community Services,S/People,Supporting People - Block Gross,Third Party Payments,REVENUE
http://statistics.data.gov.uk/id/local-authority/00HY,Wiltshire Council,13/10/2010,1900423137,999.34,Jephson Housing Association ,101136,SN3 ,Community Services,S/People,Supporting People - Subsidy,Third Party Payments,REVENUE
http://statistics.data.gov.uk/id/local-authority/00HY,Wiltshire Council,13/10/2010,1900423138,1469.24,Knightstone Housing Association ,101137,SN15,Community Services,S/People,Supporting People - Subsidy,Third Party Payments,REVENUE
http://statistics.data.gov.uk/id/local-authority/00HY,Wiltshire Council,13/10/2010,1900423139,6321.28,Knightstone Housing Association ,101137,SN15,Community Services,S/People,Supporting People - Block Gross,Third Party Payments,REVENUE
http://statistics.data.gov.uk/id/local-authority/00HY,Wiltshire Council,13/10/2010,1900423140,25097.52,MENCAP - Acct Closed - Use 101139 ,101138,PE7 ,Community Services,S/People,Supporting People - Block Gross,Third Party Payments,REVENUE
http://statistics.data.gov.uk/id/local-authority/00HY,Wiltshire Council,13/10/2010,1900423141,27497.43,MENCAP ,101139,PE7 ,Community Services,S/People,Supporting People - Subsidy,Third Party Payments,REVENUE
http://statistics.data.gov.uk/id/local-authority/00HY,Wiltshire Council,13/10/2010,1900423142,2545.48,MENCAP ,101139,PE7 ,Community Services,S/People,Supporting People - Block Gross,Third Party Payments,REVENUE
http://statistics.data.gov.uk/id/local-authority/00HY,Wiltshire Council,13/10/2010,1900423143,1941.84,Raglan Housing Association ,101140,BH8 ,Community Services,S/People,Supporting People - Subsidy,Third Party Payments,REVENUE
http://statistics.data.gov.uk/id/local-authority/00HY,Wiltshire Council,13/10/2010,1900423144,2690.80,Salisbury Trust for the Homeless ,101141,SP2 ,Community Services,S/People,Supporting People - Block Gross,Third Party Payments,REVENUE
http://statistics.data.gov.uk/id/local-authority/00HY,Wiltshire Council,13/10/2010,1900423145,10917.76,Salisbury Womens Refuge ,101142,SP1 ,Community Services,S/People,Supporting People - Block Gross,Third Party Payments,REVENUE
http://statistics.data.gov.uk/id/local-authority/00HY,Wiltshire Council,13/10/2010,1900423146,3749.48,The Carr Gomm Society Ltd ,101143,SE1 ,Community Services,S/People,Supporting People - Subsidy,Third Party Payments,REVENUE
http://statistics.data.gov.uk/id/local-authority/00HY,Wiltshire Council,13/10/2010,1900423147,4069.24,The Carr Gomm Society Ltd ,101143,SE1 ,Community Services,S/People,Supporting People - Block Gross,Third Party Payments,REVENUE
http://statistics.data.gov.uk/id/local-authority/00HY,Wiltshire Council,13/10/2010,1900423148,2175.36,Western Challenge HA ,101144,BS16,Community Services,S/People,Supporting People - Subsidy,Third Party Payments,REVENUE
http://statistics.data.gov.uk/id/local-authority/00HY,Wiltshire Council,13/10/2010,1900423150,3163.16,Bromford Housing Group ,101149,WV10,Community Services,S/People,Supporting People - Block Gross,Third Party Payments,REVENUE
http://statistics.data.gov.uk/id/local-authority/00HY,Wiltshire Council,13/10/2010,1900423151,607.88,Housing 21 ,101150,HP9 ,Community Services,S/People,Supporting People - Subsidy,Third Party Payments,REVENUE
http://statistics.data.gov.uk/id/local-authority/00HY,Wiltshire Council,13/10/2010,1900423153,12964.28,Rethink ,101152,DY4 ,Community Services,S/People,Supporting People - Block Gross,Third Party Payments,REVENUE
http://statistics.data.gov.uk/id/local-authority/00HY,Wiltshire Council,13/10/2010,1900423154,1391.08,Anchor Trust - Finance Income Only ,101153,BD1 ,Community Services,S/People,Supporting People - Subsidy,Third Party Payments,REVENUE
http://statistics.data.gov.uk/id/local-authority/00HY,Wiltshire Council,13/10/2010,1900423156,2297.04,Keiron Starns Care Agency ,101155,BA12,Community Services,S/People,Supporting People - Subsidy,Third Party Payments,REVENUE
http://statistics.data.gov.uk/id/local-authority/00HY,Wiltshire Council,13/10/2010,1900423159,7445.32,Inspire Ltd ,101165,SP3 ,Community Services,S/People,Supporting People - Subsidy,Third Party Payments,REVENUE
http://statistics.data.gov.uk/id/local-authority/00HY,Wiltshire Council,13/10/2010,1900423160,28976.08,Stonham ,101166,SN1 ,Community Services,S/People,Supporting People - Block Gross,Third Party Payments,REVENUE
http://statistics.data.gov.uk/id/local-authority/00HY,Wiltshire Council,13/10/2010,1900423161,12050.36,A2 Winchester Ltd ,101167,SO23,Community Services,S/People,Supporting People - Block Gross,Third Party Payments,REVENUE
http://statistics.data.gov.uk/id/local-authority/00HY,Wiltshire Council,12/10/2010,1900423162,656.08,REDACTED PERSONAL DATA,101173,REDACTED PERSONAL DATA,Community Services,S/People,Supporting People - Subsidy,Third Party Payments,REVENUE
http://statistics.data.gov.uk/id/local-authority/00HY,Wiltshire Council,13/10/2010,1900423163,5655.72,Shape Housing Association ,101271,BA2 ,Community Services,S/People,Supporting People - Block Gross,Third Party Payments,REVENUE
http://statistics.data.gov.uk/id/local-authority/00HY,Wiltshire Council,13/10/2010,1900423164,750.88,Abbeyfield UK ,101281,AL1 ,Community Services,S/People,Supporting People - Subsidy,Third Party Payments,REVENUE
http://statistics.data.gov.uk/id/local-authority/00HY,Wiltshire Council,13/10/2010,1900423165,2832.48,Keyring Living Support Network ,101437,N1 6,Community Services,S/People,Supporting People - Block Gross,Third Party Payments,REVENUE
http://statistics.data.gov.uk/id/local-authority/00HY,Wiltshire Council,13/10/2010,1900423174,1159.20,Steele Davis (Swindon) Ltd ,100419,SN2 ,Resources,Amenities,Preventative Property Maintenance,Premises Related,REVENUE
http://statistics.data.gov.uk/id/local-authority/00HY,Wiltshire Council,25/10/2010,1900423176,1058.47,R Moulding & Co (Salisbury) Ltd ,100200,SP2 ,Resources,WTP Libraries,Preventative Property Maintenance,Premises Related,REVENUE
http://statistics.data.gov.uk/id/local-authority/00HY,Wiltshire Council,25/10/2010,1900423177,1212.63,R Moulding & Co (Salisbury) Ltd ,100200,SP2 ,Resources,Car Parks,Preventative Property Maintenance,Premises Related,REVENUE
http://statistics.data.gov.uk/id/local-authority/00HY,Wiltshire Council,13/10/2010,1900423178,16534.60,Scottish & Southern Energy ,124847,BH12,Wiltshire Council,Wiltshire Council,Highways Contracts - Other,Third Party Payments,CAPITAL
http://statistics.data.gov.uk/id/local-authority/00HY,Wiltshire Council,28/10/2010,1900423187,504.00,Wheelers  Westbury  Ltd ,112955,BA13,Resources,Car Parks,Preventative Property Maintenance,Premises Related,REVENUE
http://statistics.data.gov.uk/id/local-authority/00HY,Wiltshire Council,20/10/2010,1900423188,8345.00,Wilkins Builders Ltd ,100189,SN11,Wiltshire Council,Wiltshire Council,Buildings Minor Alterations,Premises Related,CAPITAL
http://statistics.data.gov.uk/id/local-authority/00HY,Wiltshire Council,28/10/2010,1900423189,3434.32,Wheelers  Westbury  Ltd ,112955,BA13,Resources,Wkplc Trnsfrm Prprty,Preventative Property Maintenance,Premises Related,REVENUE
http://statistics.data.gov.uk/id/local-authority/00HY,Wiltshire Council,13/10/2010,1900423200,959.00,Wiltshire Heavy Building Materials T/A Wiltshire Concrete,122630,SN10,Resources,Farms,Preventative Property Maintenance,Premises Related,REVENUE
http://statistics.data.gov.uk/id/local-authority/00HY,Wiltshire Council,28/10/2010,1900423206,790.00,Western Counties Window Cleaning Services,112947,SP7 ,Community Services,Lib General,Window Cleaning,Premises Related,REVENUE
http://statistics.data.gov.uk/id/local-authority/00HY,Wiltshire Council,29/10/2010,1900423207,515.84,Security Guarding Ltd ,100885,SN12,Community Services,Lib Devizes,Buildings Work on Dangerous Structures,Premises Related,REVENUE
http://statistics.data.gov.uk/id/local-authority/00HY,Wiltshire Council,13/10/2010,1900423209,1205.00,Dell Brothers Builders Limited ,100309,BA13,Neighbourhood & Planning,Primary Sch Pooling,Preventative Property Maintenance,Premises Related,REVENUE
http://statistics.data.gov.uk/id/local-authority/00HY,Wiltshire Council,25/10/2010,1900423215,683.25,Paragon ,101001,SN12,Resources,Farms,Preventative Property Maintenance,Premises Related,REVENUE
http://statistics.data.gov.uk/id/local-authority/00HY,Wiltshire Council,29/10/2010,1900423220,852.96,A Wilson ,100241,BA14,Resources,Wkplc Trnsfrm Prprty,Preventative Property Maintenance,Premises Related,REVENUE
http://statistics.data.gov.uk/id/local-authority/00HY,Wiltshire Council,13/10/2010,1900423242,15015.01,Openreach BT Repayments (Alteration ,126967,BH1 ,Wiltshire Council,Wiltshire Council,Highways Contracts - Other,Third Party Payments,CAPITAL
http://statistics.data.gov.uk/id/local-authority/00HY,Wiltshire Council,19/10/2010,1900423250,13552.38,Datacenta Hosting Ltd ,128265,BH2 ,Resources,Wrkplc Transform Prg,Telephones - Landlines (incl fax),Supplies and Services,REVENUE
http://statistics.data.gov.uk/id/local-authority/00HY,Wiltshire Council,13/10/2010,1900423360,1040.80,ConsultCIH Ltd ,127941,CV4 ,Resources,DNP Finance,Consultants� Fees,Supplies and Services,REVENUE
http://statistics.data.gov.uk/id/local-authority/00HY,Wiltshire Council,20/10/2010,1900423388,777.23,British Gas Business ,114213,GU15,Resources,Wkplc Trnsfrm Prprty,Electricity,Premises Related,REVENUE
http://statistics.data.gov.uk/id/local-authority/00HY,Wiltshire Council,20/10/2010,1900423389,883.11,British Gas Business ,114213,GU15,Resources,Car Parks,Electricity,Premises Related,REVENUE
http://statistics.data.gov.uk/id/local-authority/00HY,Wiltshire Council,13/10/2010,1900423394,508.08,Wessex Water ,100164,BS48,Children & Education,LETSalisbury,Water - metered,Premises Related,REVENUE
http://statistics.data.gov.uk/id/local-authority/00HY,Wiltshire Council,13/10/2010,1900423406,1020.00,Classic Cabs  grimstead  Ltd ,101259,SP5 ,Neighbourhood & Planning,SEN Secondary,Transport Contracts,Third Party Payments,REVENUE
http://statistics.data.gov.uk/id/local-authority/00HY,Wiltshire Council,13/10/2010,1900423407,840.00,Bell Private Hire ,101351,SN4 ,Neighbourhood & Planning,SEN Primary,Transport Contracts,Third Party Payments,REVENUE
http://statistics.data.gov.uk/id/local-authority/00HY,Wiltshire Council,13/10/2010,1900423408,2535.19,Barnes Coaches Ltd ,100190,SN3 ,Neighbourhood & Planning,Mainstream Secondary,Transport Contracts,Third Party Payments,REVENUE
http://statistics.data.gov.uk/id/local-authority/00HY,Wiltshire Council,13/10/2010,1900423409,2535.19,Barnes Coaches Ltd ,100190,SN3 ,Neighbourhood & Planning,Mainstream Secondary,Transport Contracts,Third Party Payments,REVENUE
http://statistics.data.gov.uk/id/local-authority/00HY,Wiltshire Council,13/10/2010,1900423412,1323.67,Barnes Coaches Ltd ,100190,SN3 ,Neighbourhood & Planning,Mainstream 16+ FE,Transport Contracts,Third Party Payments,REVENUE
http://statistics.data.gov.uk/id/local-authority/00HY,Wiltshire Council,13/10/2010,1900423412,11913.00,Barnes Coaches Ltd ,100190,SN3 ,Neighbourhood & Planning,Mainstream Secondary,Transport Contracts,Third Party Payments,REVENUE
http://statistics.data.gov.uk/id/local-authority/00HY,Wiltshire Council,13/10/2010,1900423413,1323.67,Barnes Coaches Ltd ,100190,SN3 ,Neighbourhood & Planning,Mainstream 16+ FE,Transport Contracts,Third Party Payments,REVENUE
http://statistics.data.gov.uk/id/local-authority/00HY,Wiltshire Council,13/10/2010,1900423413,11913.00,Barnes Coaches Ltd ,100190,SN3 ,Neighbourhood & Planning,Mainstream Secondary,Transport Contracts,Third Party Payments,REVENUE
http://statistics.data.gov.uk/id/local-authority/00HY,Wiltshire Council,13/10/2010,1900423414,2501.67,Barnes Coaches Ltd ,100190,SN3 ,Neighbourhood & Planning,Mainstream Secondary,Transport Contracts,Third Party Payments,REVENUE
http://statistics.data.gov.uk/id/local-authority/00HY,Wiltshire Council,13/10/2010,1900423415,2501.67,Barnes Coaches Ltd ,100190,SN3 ,Neighbourhood & Planning,Mainstream Secondary,Transport Contracts,Third Party Payments,REVENUE
http://statistics.data.gov.uk/id/local-authority/00HY,Wiltshire Council,13/10/2010,1900423417,1200.00,Chariots Of Hire ,101456,BA12,Neighbourhood & Planning,SEN Secondary,Transport Contracts,Third Party Payments,REVENUE
http://statistics.data.gov.uk/id/local-authority/00HY,Wiltshire Council,13/10/2010,1900423421,1036.90,Amesbury Taxi Associates Ltd ,101054,SP4 ,Neighbourhood & Planning,SEN 16+ Secondary,Transport Contracts,Third Party Payments,REVENUE
http://statistics.data.gov.uk/id/local-authority/00HY,Wiltshire Council,13/10/2010,1900423421,12439.84,Amesbury Taxi Associates Ltd ,101054,SP4 ,Neighbourhood & Planning,SEN Secondary,Transport Contracts,Third Party Payments,REVENUE
http://statistics.data.gov.uk/id/local-authority/00HY,Wiltshire Council,13/10/2010,1900423421,15550.54,Amesbury Taxi Associates Ltd ,101054,SP4 ,Neighbourhood & Planning,SEN Primary,Transport Contracts,Third Party Payments,REVENUE
http://statistics.data.gov.uk/id/local-authority/00HY,Wiltshire Council,13/10/2010,1900423422,3975.70,Amesbury Taxi Associates Ltd ,101054,SP4 ,Neighbourhood & Planning,SEN Secondary,Transport Contracts,Third Party Payments,REVENUE
http://statistics.data.gov.uk/id/local-authority/00HY,Wiltshire Council,13/10/2010,1900423422,4969.85,Amesbury Taxi Associates Ltd ,101054,SP4 ,Neighbourhood & Planning,SEN Primary,Transport Contracts,Third Party Payments,REVENUE
http://statistics.data.gov.uk/id/local-authority/00HY,Wiltshire Council,13/10/2010,1900423423,1333.36,Andy Taxis Limited ,100874,SP2 ,Neighbourhood & Planning,Mainstream Primary,Transport Contracts,Third Party Payments,REVENUE
http://statistics.data.gov.uk/id/local-authority/00HY,Wiltshire Council,13/10/2010,1900423424,771.75,Abbey Taxis ,101333,SN16,Neighbourhood & Planning,Mainstream Primary,Transport Contracts,Third Party Payments,REVENUE
http://statistics.data.gov.uk/id/local-authority/00HY,Wiltshire Council,13/10/2010,1900423425,703.00,Abbey Taxis ,101333,SN16,Neighbourhood & Planning,Mainstream Primary,Transport Contracts,Third Party Payments,REVENUE
http://statistics.data.gov.uk/id/local-authority/00HY,Wiltshire Council,13/10/2010,1900423427,630.00,Arrow Private Hire ,100574,SN8 ,Neighbourhood & Planning,SEN Primary,Transport Contracts,Third Party Payments,REVENUE
http://statistics.data.gov.uk/id/local-authority/00HY,Wiltshire Council,13/10/2010,1900423430,574.26,Amesbury Taxi Associates Ltd ,101054,SP4 ,Neighbourhood & Planning,DCS South CTPLD U65,Transport Contracts,Third Party Payments,REVENUE
http://statistics.data.gov.uk/id/local-authority/00HY,Wiltshire Council,13/10/2010,1900423433,925.00,Andy Taxis Limited ,100874,SP2 ,Neighbourhood & Planning,LAC&16+ South&West,Transport Contracts,Third Party Payments,REVENUE
http://statistics.data.gov.uk/id/local-authority/00HY,Wiltshire Council,13/10/2010,1900423434,684.00,Andy Taxis Limited ,100874,SP2 ,Neighbourhood & Planning,SEN 16+ Secondary,Transport Contracts,Third Party Payments,REVENUE
http://statistics.data.gov.uk/id/local-authority/00HY,Wiltshire Council,13/10/2010,1900423440,786.53,Airtech Environmental System ,101700,TA7 ,Neighbourhood & Planning,Housing Rprs Simdell,Premises Related Other Maintenance Costs,Premises Related,REVENUE
http://statistics.data.gov.uk/id/local-authority/00HY,Wiltshire Council,13/10/2010,1900423446,610.65,Airtech Environmental System ,101700,TA7 ,Neighbourhood & Planning,Housing Rprs Simdell,Premises Related Other Maintenance Costs,Premises Related,REVENUE
http://statistics.data.gov.uk/id/local-authority/00HY,Wiltshire Council,20/10/2010,1900429634,982.67,British Gas Business ,114213,GU15,Neighbourhood & Planning,Off Street Parking,Electricity,Premises Related,REVENUE
http://statistics.data.gov.uk/id/local-authority/00HY,Wiltshire Council,20/10/2010,1900429645,756.00,British Gas Business ,114213,GU15,Resources,Commercial Props,Electricity,Premises Related,REVENUE
http://statistics.data.gov.uk/id/local-authority/00HY,Wiltshire Council,13/10/2010,1900429671,929.60,Ford Fuel Oils Hungerford ,124027,RG17,Children & Education,UrchfontManor,Fuel Oil,Premises Related,REVENUE
http://statistics.data.gov.uk/id/local-authority/00HY,Wiltshire Council,14/10/2010,1900429682,664.88,Wessex Water ,100164,BS48,Resources,WTP Leisure Centres,Water - sewerage,Premises Related,REVENUE
http://statistics.data.gov.uk/id/local-authority/00HY,Wiltshire Council,14/10/2010,1900429682,740.49,Wessex Water ,100164,BS48,Resources,WTP Leisure Centres,Water - metered,Premises Related,REVENUE
http://statistics.data.gov.uk/id/local-authority/00HY,Wiltshire Council,14/10/2010,1900429917,11687.50,Mace Ltd ,101482,NW1 ,Wiltshire Council,Wiltshire Council,Buildings Minor Alterations,Premises Related,CAPITAL
http://statistics.data.gov.uk/id/local-authority/00HY,Wiltshire Council,14/10/2010,1900429922,546.03,BUPA - Westbury Nursing Home ,110403,LS16,Community Services,OP West Locality,Adult Care Nursing Placements - Void Payments,Third Party Payments,REVENUE
http://statistics.data.gov.uk/id/local-authority/00HY,Wiltshire Council,20/10/2010,1900429923,1265.67,Vodafone Business Solutions Ltd ,112867,NG24,Resources,Main xchg phon lines,Telephones - Landlines (incl fax),Supplies and Services,REVENUE
http://statistics.data.gov.uk/id/local-authority/00HY,Wiltshire Council,14/10/2010,1900429928,652.45,John Sandford Medical Ltd ,125345,NP15,Children & Education,HQ Social Care,Legal Fees,Supplies and Services,REVENUE
http://statistics.data.gov.uk/id/local-authority/00HY,Wiltshire Council,14/10/2010,1900429936,600.00,Tribal Resourcing Ltd ,112792,SE1 ,Children & Education,EYChildCentreTm,Statutory Notices,Supplies and Services,REVENUE
http://statistics.data.gov.uk/id/local-authority/00HY,Wiltshire Council,14/10/2010,1900429936,667.50,Tribal Resourcing Ltd ,112792,SE1 ,Neighbourhood & Planning,ActionforWiltshire,Job Advertising,Employee Related,REVENUE
http://statistics.data.gov.uk/id/local-authority/00HY,Wiltshire Council,14/10/2010,1900429936,734.74,Tribal Resourcing Ltd ,112792,SE1 ,Neighbourhood & Planning,Public Path Orders,Statutory Notices,Supplies and Services,REVENUE
http://statistics.data.gov.uk/id/local-authority/00HY,Wiltshire Council,14/10/2010,1900429936,814.94,Tribal Resourcing Ltd ,112792,SE1 ,Neighbourhood & Planning,DTEL Dept Balance Sh,Statutory Notices,Supplies and Services,REVENUE
http://statistics.data.gov.uk/id/local-authority/00HY,Wiltshire Council,14/10/2010,1900429936,988.71,Tribal Resourcing Ltd ,112792,SE1 ,Neighbourhood & Planning,DevControlNorth,Section 106 Deposits,Balance Sheet Accounts,REVENUE
http://statistics.data.gov.uk/id/local-authority/00HY,Wiltshire Council,14/10/2010,1900429936,1200.00,Tribal Resourcing Ltd ,112792,SE1 ,Resources,SharedServHRother,Job Advertising,Employee Related,REVENUE
http://statistics.data.gov.uk/id/local-authority/00HY,Wiltshire Council,14/10/2010,1900429936,2276.70,Tribal Resourcing Ltd ,112792,SE1 ,Neighbourhood & Planning,DevControlEast,Statutory Notices,Supplies and Services,REVENUE
http://statistics.data.gov.uk/id/local-authority/00HY,Wiltshire Council,14/10/2010,1900429936,2344.46,Tribal Resourcing Ltd ,112792,SE1 ,Neighbourhood & Planning,DevControlSouth,Statutory Notices,Supplies and Services,REVENUE
http://statistics.data.gov.uk/id/local-authority/00HY,Wiltshire Council,14/10/2010,1900429936,2544.28,Tribal Resourcing Ltd ,112792,SE1 ,Neighbourhood & Planning,DevControlWest,Statutory Notices,Supplies and Services,REVENUE
http://statistics.data.gov.uk/id/local-authority/00HY,Wiltshire Council,14/10/2010,1900429936,2587.45,Tribal Resourcing Ltd ,112792,SE1 ,Community Services,Adult Care Strat,Statutory Notices,Supplies and Services,REVENUE
http://statistics.data.gov.uk/id/local-authority/00HY,Wiltshire Council,14/10/2010,1900429936,2937.00,Tribal Resourcing Ltd ,112792,SE1 ,Community Services,RSC LD Commissioning,Statutory Notices,Supplies and Services,REVENUE
http://statistics.data.gov.uk/id/local-authority/00HY,Wiltshire Council,14/10/2010,1900429936,3269.37,Tribal Resourcing Ltd ,112792,SE1 ,Neighbourhood & Planning,DevControlNorth,Statutory Notices,Supplies and Services,REVENUE
http://statistics.data.gov.uk/id/local-authority/00HY,Wiltshire Council,14/10/2010,1900429936,5229.87,Tribal Resourcing Ltd ,112792,SE1 ,Children & Education,SchBuildPlaces,Statutory Notices,Supplies and Services,REVENUE
http://statistics.data.gov.uk/id/local-authority/00HY,Wiltshire Council,14/10/2010,1900429936,8421.51,Tribal Resourcing Ltd ,112792,SE1 ,Neighbourhood & Planning,Streetworks,Statutory Notices,Supplies and Services,REVENUE
http://statistics.data.gov.uk/id/local-authority/00HY,Wiltshire Council,28/10/2010,1900429971,589.94,Ulverscroft Large Print Books Ltd ,100233,LE7 ,Community Services,Lib Book Fund,Library Service,Supplies and Services,REVENUE
http://statistics.data.gov.uk/id/local-authority/00HY,Wiltshire Council,14/10/2010,1900429979,3557.82,Kinch Coaches Ltd ,100969,SN16,Neighbourhood & Planning,Mainstream Secondary,Transport Contracts,Third Party Payments,REVENUE
http://statistics.data.gov.uk/id/local-authority/00HY,Wiltshire Council,14/10/2010,1900429980,2464.89,Real Coach Hire ,100967,BA12,Neighbourhood & Planning,Mainstream Primary,Transport Contracts,Third Party Payments,REVENUE
http://statistics.data.gov.uk/id/local-authority/00HY,Wiltshire Council,14/10/2010,1900429981,1979.17,Real Coach Hire ,100967,BA12,Neighbourhood & Planning,Mainstream Primary,Transport Contracts,Third Party Payments,REVENUE
http://statistics.data.gov.uk/id/local-authority/00HY,Wiltshire Council,14/10/2010,1900429982,3001.84,Kinch Coaches Ltd ,100969,SN16,Neighbourhood & Planning,Mainstream Secondary,Transport Contracts,Third Party Payments,REVENUE
http://statistics.data.gov.uk/id/local-authority/00HY,Wiltshire Council,14/10/2010,1900429983,692.85,Real Coach Hire ,100967,BA12,Neighbourhood & Planning,Mainstream Secondary,Transport Contracts,Third Party Payments,REVENUE
http://statistics.data.gov.uk/id/local-authority/00HY,Wiltshire Council,14/10/2010,1900429983,1616.60,Real Coach Hire ,100967,BA12,Neighbourhood & Planning,Mainstream Primary,Transport Contracts,Third Party Payments,REVENUE
http://statistics.data.gov.uk/id/local-authority/00HY,Wiltshire Council,14/10/2010,1900429984,2669.96,Kinch Coaches Ltd ,100969,SN16,Neighbourhood & Planning,Mainstream Secondary,Transport Contracts,Third Party Payments,REVENUE
http://statistics.data.gov.uk/id/local-authority/00HY,Wiltshire Council,14/10/2010,1900429985,2721.42,Kinch Coaches Ltd ,100969,SN16,Neighbourhood & Planning,Mainstream Secondary,Transport Contracts,Third Party Payments,REVENUE
http://statistics.data.gov.uk/id/local-authority/00HY,Wiltshire Council,14/10/2010,1900429987,2562.72,Real Coach Hire ,100967,BA12,Neighbourhood & Planning,Mainstream Secondary,Transport Contracts,Third Party Payments,REVENUE
http://statistics.data.gov.uk/id/local-authority/00HY,Wiltshire Council,14/10/2010,1900429988,2242.38,Real Coach Hire ,100967,BA12,Neighbourhood & Planning,Mainstream Secondary,Transport Contracts,Third Party Payments,REVENUE
http://statistics.data.gov.uk/id/local-authority/00HY,Wiltshire Council,14/10/2010,1900429989,673.08,REDACTED PERSONAL DATA,101242,REDACTED PERSONAL DATA,Neighbourhood & Planning,Mainstream 16+ FE,Transport Contracts,Third Party Payments,REVENUE
http://statistics.data.gov.uk/id/local-authority/00HY,Wiltshire Council,14/10/2010,1900429993,1400.29,Hatts Travel ,100252,SN15,Neighbourhood & Planning,Public Transport,Transport Contracts,Third Party Payments,REVENUE
http://statistics.data.gov.uk/id/local-authority/00HY,Wiltshire Council,14/10/2010,1900429994,5632.16,Frome Minibuses ,100601,BA11,Neighbourhood & Planning,Public Transport,Transport Contracts,Third Party Payments,REVENUE
http://statistics.data.gov.uk/id/local-authority/00HY,Wiltshire Council,14/10/2010,1900429995,500.00,Hatts Travel ,100252,SN15,Neighbourhood & Planning,Mainstream Secondary,Transport Contracts,Third Party Payments,REVENUE
http://statistics.data.gov.uk/id/local-authority/00HY,Wiltshire Council,14/10/2010,1900429995,1228.39,Hatts Travel ,100252,SN15,Neighbourhood & Planning,Public Transport,Transport Contracts,Third Party Payments,REVENUE
http://statistics.data.gov.uk/id/local-authority/00HY,Wiltshire Council,14/10/2010,1900429995,1500.00,Hatts Travel ,100252,SN15,Neighbourhood & Planning,Mainstream 16+ FE,Transport Contracts,Third Party Payments,REVENUE
http://statistics.data.gov.uk/id/local-authority/00HY,Wiltshire Council,14/10/2010,1900429996,2845.14,Hatts Travel ,100252,SN15,Neighbourhood & Planning,Mainstream Secondary,Transport Contracts,Third Party Payments,REVENUE
http://statistics.data.gov.uk/id/local-authority/00HY,Wiltshire Council,14/10/2010,1900429997,2451.99,Hatts Travel ,100252,SN15,Neighbourhood & Planning,Mainstream 16+ Sec,Transport Contracts,Third Party Payments,REVENUE
http://statistics.data.gov.uk/id/local-authority/00HY,Wiltshire Council,14/10/2010,1900429997,2552.07,Hatts Travel ,100252,SN15,Neighbourhood & Planning,Mainstream 16+ FE,Transport Contracts,Third Party Payments,REVENUE
http://statistics.data.gov.uk/id/local-authority/00HY,Wiltshire Council,14/10/2010,1900429998,2416.61,Hatts Travel ,100252,SN15,Neighbourhood & Planning,Mainstream Primary,Transport Contracts,Third Party Payments,REVENUE
http://statistics.data.gov.uk/id/local-authority/00HY,Wiltshire Council,14/10/2010,1900429999,2647.91,Hatts Travel ,100252,SN15,Neighbourhood & Planning,Mainstream Secondary,Transport Contracts,Third Party Payments,REVENUE
http://statistics.data.gov.uk/id/local-authority/00HY,Wiltshire Council,14/10/2010,1900430000,843.18,Hatts Travel ,100252,SN15,Neighbourhood & Planning,Mainstream Primary,Transport Contracts,Third Party Payments,REVENUE
http://statistics.data.gov.uk/id/local-authority/00HY,Wiltshire Council,14/10/2010,1900430000,1751.57,Hatts Travel ,100252,SN15,Neighbourhood & Planning,Mainstream Secondary,Transport Contracts,Third Party Payments,REVENUE
http://statistics.data.gov.uk/id/local-authority/00HY,Wiltshire Council,14/10/2010,1900430001,1266.66,Frome Minibuses ,100601,BA11,Neighbourhood & Planning,Public Transport,Transport Contracts,Third Party Payments,REVENUE
http://statistics.data.gov.uk/id/local-authority/00HY,Wiltshire Council,14/10/2010,1900430001,2406.83,Frome Minibuses ,100601,BA11,Neighbourhood & Planning,Mainstream Primary,Transport Contracts,Third Party Payments,REVENUE
http://statistics.data.gov.uk/id/local-authority/00HY,Wiltshire Council,14/10/2010,1900430003,512.50,Janes Taxi ,101356,SP4 ,Neighbourhood & Planning,DCS South CTPLD U65,Transport Contracts,Third Party Payments,REVENUE
http://statistics.data.gov.uk/id/local-authority/00HY,Wiltshire Council,14/10/2010,1900430004,3562.00,Hatts Travel ,100252,SN15,Neighbourhood & Planning,Mainstream Secondary,Transport Contracts,Third Party Payments,REVENUE
http://statistics.data.gov.uk/id/local-authority/00HY,Wiltshire Council,14/10/2010,1900430005,504.00,Janes Taxi ,101356,SP4 ,Neighbourhood & Planning,Mainstream Primary,Transport Contracts,Third Party Payments,REVENUE
http://statistics.data.gov.uk/id/local-authority/00HY,Wiltshire Council,14/10/2010,1900430006,684.00,Kaytom Cabs ,100925,SP4 ,Neighbourhood & Planning,Mainstream Secondary,Transport Contracts,Third Party Payments,REVENUE
http://statistics.data.gov.uk/id/local-authority/00HY,Wiltshire Council,14/10/2010,1900430007,649.98,Deandrive ,100861,SP3 ,Neighbourhood & Planning,DCS Salis MenHth U65,Transport Contracts,Third Party Payments,REVENUE
http://statistics.data.gov.uk/id/local-authority/00HY,Wiltshire Council,14/10/2010,1900430008,2310.00,Dawson Rentals Bus  and  Coach Ltd ,101159,MK15,Neighbourhood & Planning,SEN 16+ Secondary,Transport Contracts,Third Party Payments,REVENUE
http://statistics.data.gov.uk/id/local-authority/00HY,Wiltshire Council,14/10/2010,1900430008,6600.00,Dawson Rentals Bus  and  Coach Ltd ,101159,MK15,Neighbourhood & Planning,SEN Primary,Transport Contracts,Third Party Payments,REVENUE
http://statistics.data.gov.uk/id/local-authority/00HY,Wiltshire Council,14/10/2010,1900430008,7590.00,Dawson Rentals Bus  and  Coach Ltd ,101159,MK15,Neighbourhood & Planning,SEN Secondary,Transport Contracts,Third Party Payments,REVENUE
http://statistics.data.gov.uk/id/local-authority/00HY,Wiltshire Council,14/10/2010,1900430009,2310.00,Dawson Rentals Bus  and  Coach Ltd ,101159,MK15,Neighbourhood & Planning,SEN 16+ Secondary,Transport Contracts,Third Party Payments,REVENUE
http://statistics.data.gov.uk/id/local-authority/00HY,Wiltshire Council,14/10/2010,1900430009,6600.00,Dawson Rentals Bus  and  Coach Ltd ,101159,MK15,Neighbourhood & Planning,SEN Primary,Transport Contracts,Third Party Payments,REVENUE
http://statistics.data.gov.uk/id/local-authority/00HY,Wiltshire Council,14/10/2010,1900430009,7590.00,Dawson Rentals Bus  and  Coach Ltd ,101159,MK15,Neighbourhood & Planning,SEN Secondary,Transport Contracts,Third Party Payments,REVENUE
http://statistics.data.gov.uk/id/local-authority/00HY,Wiltshire Council,14/10/2010,1900430010,2310.00,Dawson Rentals Bus  and  Coach Ltd ,101159,MK15,Neighbourhood & Planning,SEN 16+ Secondary,Transport Contracts,Third Party Payments,REVENUE
http://statistics.data.gov.uk/id/local-authority/00HY,Wiltshire Council,14/10/2010,1900430010,6600.00,Dawson Rentals Bus  and  Coach Ltd ,101159,MK15,Neighbourhood & Planning,SEN Primary,Transport Contracts,Third Party Payments,REVENUE
http://statistics.data.gov.uk/id/local-authority/00HY,Wiltshire Council,14/10/2010,1900430010,7590.00,Dawson Rentals Bus  and  Coach Ltd ,101159,MK15,Neighbourhood & Planning,SEN Secondary,Transport Contracts,Third Party Payments,REVENUE
http://statistics.data.gov.uk/id/local-authority/00HY,Wiltshire Council,14/10/2010,1900430011,2310.00,Dawson Rentals Bus  and  Coach Ltd ,101159,MK15,Neighbourhood & Planning,SEN 16+ Secondary,Transport Contracts,Third Party Payments,REVENUE
http://statistics.data.gov.uk/id/local-authority/00HY,Wiltshire Council,14/10/2010,1900430011,6600.00,Dawson Rentals Bus  and  Coach Ltd ,101159,MK15,Neighbourhood & Planning,SEN Primary,Transport Contracts,Third Party Payments,REVENUE
http://statistics.data.gov.uk/id/local-authority/00HY,Wiltshire Council,14/10/2010,1900430011,7590.00,Dawson Rentals Bus  and  Coach Ltd ,101159,MK15,Neighbourhood & Planning,SEN Secondary,Transport Contracts,Third Party Payments,REVENUE
http://statistics.data.gov.uk/id/local-authority/00HY,Wiltshire Council,14/10/2010,1900430012,2191.70,Classic Cabs ,101610,SP1 ,Neighbourhood & Planning,DCS South CTPLD U65,Transport Contracts,Third Party Payments,REVENUE
http://statistics.data.gov.uk/id/local-authority/00HY,Wiltshire Council,14/10/2010,1900430013,2084.83,Frome Minibuses ,100601,BA11,Neighbourhood & Planning,Public Transport,Transport Contracts,Third Party Payments,REVENUE
http://statistics.data.gov.uk/id/local-authority/00HY,Wiltshire Council,14/10/2010,1900430014,7118.59,Frome Minibuses ,100601,BA11,Neighbourhood & Planning,Public Transport,Transport Contracts,Third Party Payments,REVENUE
http://statistics.data.gov.uk/id/local-authority/00HY,Wiltshire Council,14/10/2010,1900430015,2817.57,Frome Minibuses ,100601,BA11,Neighbourhood & Planning,Mainstream Secondary,Transport Contracts,Third Party Payments,REVENUE
http://statistics.data.gov.uk/id/local-authority/00HY,Wiltshire Council,14/10/2010,1900430017,2402.55,Downton Minibus Hire ,101038,SP5 ,Neighbourhood & Planning,Mainstream Secondary,Transport Contracts,Third Party Payments,REVENUE
http://statistics.data.gov.uk/id/local-authority/00HY,Wiltshire Council,14/10/2010,1900430018,630.00,Deandrive ,100861,SP3 ,Neighbourhood & Planning,Mainstream Primary,Transport Contracts,Third Party Payments,REVENUE
http://statistics.data.gov.uk/id/local-authority/00HY,Wiltshire Council,14/10/2010,1900430019,743.28,Deandrive ,100861,SP3 ,Neighbourhood & Planning,Mainstream Primary,Transport Contracts,Third Party Payments,REVENUE
http://statistics.data.gov.uk/id/local-authority/00HY,Wiltshire Council,14/10/2010,1900430022,1736.00,Quay Healthcare Ltd ,101707,DT4 ,Neighbourhood & Planning,Housing Rprs Simdell,Premises Related Other Maintenance Costs,Premises Related,REVENUE
http://statistics.data.gov.uk/id/local-authority/00HY,Wiltshire Council,14/10/2010,1900430027,663.18,Donhead Felt Roofing Ltd ,101720,SP7 ,Neighbourhood & Planning,Housing Rprs Simdell,Premises Related Other Maintenance Costs,Premises Related,REVENUE
http://statistics.data.gov.uk/id/local-authority/00HY,Wiltshire Council,14/10/2010,1900430038,774.75,Wessex Electricals (Shaftsbury) Ltd ,101690,SP7 ,Neighbourhood & Planning,Housing Rprs Simdell,Premises Related Other Maintenance Costs,Premises Related,REVENUE
http://statistics.data.gov.uk/id/local-authority/00HY,Wiltshire Council,14/10/2010,1900430040,1597.42,N P Burke Ltd ,101713,SP3 ,Neighbourhood & Planning,Housing Rprs Simdell,Premises Related Other Maintenance Costs,Premises Related,REVENUE
http://statistics.data.gov.uk/id/local-authority/00HY,Wiltshire Council,14/10/2010,1900430050,1055.78,N P Burke Ltd ,101713,SP3 ,Neighbourhood & Planning,Housing Rprs Simdell,Premises Related Other Maintenance Costs,Premises Related,REVENUE
http://statistics.data.gov.uk/id/local-authority/00HY,Wiltshire Council,14/10/2010,1900430054,920.00,REDACTED PERSONAL DATA,128947,REDACTED PERSONAL DATA,Neighbourhood & Planning,Housing Rprs Simdell,Premises Related Other Maintenance Costs,Premises Related,REVENUE
http://statistics.data.gov.uk/id/local-authority/00HY,Wiltshire Council,14/10/2010,1900430059,2452.68,BUPA - Avon Court Care Centre ,110218,LS16,Community Services,OP North Locality,Adult Care Nursing Placements- Spot Purchase,Third Party Payments,REVENUE
http://statistics.data.gov.uk/id/local-authority/00HY,Wiltshire Council,27/10/2010,1900430065,960.00,Triangle Lift Services Ltd ,101036,BS21,Neighbourhood & Planning,County Hall  Complex,Preventative Property Maintenance,Premises Related,REVENUE
http://statistics.data.gov.uk/id/local-authority/00HY,Wiltshire Council,29/10/2010,1900430068,3900.00,Clarke Webb Ecology Ltd ,101193,BS3 ,Wiltshire Council,Wiltshire Council,Buildings Minor Alterations,Premises Related,CAPITAL
http://statistics.data.gov.uk/id/local-authority/00HY,Wiltshire Council,28/10/2010,1900430070,4606.50,Keystone Projects Ltd ,111337,BS7 ,Neighbourhood & Planning,Property Consultants,Preventative Property Maintenance,Premises Related,REVENUE
http://statistics.data.gov.uk/id/local-authority/00HY,Wiltshire Council,18/10/2010,1900430079,524.83,RMJ & AL Robinson ,126494,SN15,Resources,Farms,Preventative Property Maintenance,Premises Related,REVENUE
http://statistics.data.gov.uk/id/local-authority/00HY,Wiltshire Council,27/10/2010,1900430081,1675.00,CIPFA Business Limited ,116688,CR90,Neighbourhood & Planning,Other Rechable Works,Preventative Property Maintenance,Premises Related,REVENUE
http://statistics.data.gov.uk/id/local-authority/00HY,Wiltshire Council,28/10/2010,1900430083,1270.00,Safe Estates Services Ltd ,101460,WD6 ,Neighbourhood & Planning,Other Rechable Works,Preventative Property Maintenance,Premises Related,REVENUE
http://statistics.data.gov.uk/id/local-authority/00HY,Wiltshire Council,28/10/2010,1900430084,1470.00,Safe Estates Services Ltd ,101460,WD6 ,Neighbourhood & Planning,Other Rechable Works,Preventative Property Maintenance,Premises Related,REVENUE
http://statistics.data.gov.uk/id/local-authority/00HY,Wiltshire Council,28/10/2010,1900430087,3500.00,Smiths Gore-bath ,101552,PE1 ,Resources,Farms,Preventative Property Maintenance,Premises Related,REVENUE
http://statistics.data.gov.uk/id/local-authority/00HY,Wiltshire Council,14/10/2010,1900430091,9707.50,Wessex Lift Co Ltd. ,129649,SO51,Wiltshire Council,Wiltshire Council,Payments to Contractors - Other,Third Party Payments,CAPITAL
http://statistics.data.gov.uk/id/local-authority/00HY,Wiltshire Council,15/10/2010,1900430097,4000.00,Steele Davis (Swindon) Ltd ,100419,SN2 ,Neighbourhood & Planning,Primary Sch Pooling,Preventative Property Maintenance,Premises Related,REVENUE
http://statistics.data.gov.uk/id/local-authority/00HY,Wiltshire Council,15/10/2010,1900430098,12500.00,Steele Davis (Swindon) Ltd ,100419,SN2 ,Neighbourhood & Planning,Primary Sch Pooling,Preventative Property Maintenance,Premises Related,REVENUE
http://statistics.data.gov.uk/id/local-authority/00HY,Wiltshire Council,15/10/2010,1900430099,1627.37,HG & AP  Vaughan Ltd - DFG Only ,116244,BA11,Wiltshire Council,Wiltshire Council,Payments to Contractors - Other,Third Party Payments,CAPITAL
http://statistics.data.gov.uk/id/local-authority/00HY,Wiltshire Council,25/10/2010,1900430100,3850.00,Wilkins Builders Ltd ,100189,SN11,Resources,Farms,Preventative Property Maintenance,Premises Related,REVENUE
http://statistics.data.gov.uk/id/local-authority/00HY,Wiltshire Council,28/10/2010,1900430101,4580.00,Wilkins Builders Ltd ,100189,SN11,Resources,Farms,Preventative Property Maintenance,Premises Related,REVENUE
http://statistics.data.gov.uk/id/local-authority/00HY,Wiltshire Council,15/10/2010,1900430105,2555.63,Howard Roofing Ltd ,111155,SP4 ,Wiltshire Council,Wiltshire Council,Payments to Contractors - Other,Third Party Payments,CAPITAL
http://statistics.data.gov.uk/id/local-authority/00HY,Wiltshire Council,27/10/2010,1900430106,3147.22,Wessex Care ltd (Castle View) ,112913,SP1 ,Community Services,OP South Locality,Adult Care Nursing Placements- Spot Purchase,Third Party Payments,REVENUE
http://statistics.data.gov.uk/id/local-authority/00HY,Wiltshire Council,15/10/2010,1900430113,3500.00,Handicare (Freelift) ,129737,DY6 ,Wiltshire Council,Wiltshire Council,Payments to Contractors - Other,Third Party Payments,CAPITAL
http://statistics.data.gov.uk/id/local-authority/00HY,Wiltshire Council,15/10/2010,1900430117,3370.00,Handicare (Freelift) ,129737,DY6 ,Wiltshire Council,Wiltshire Council,Payments to Contractors - Other,Third Party Payments,CAPITAL
http://statistics.data.gov.uk/id/local-authority/00HY,Wiltshire Council,20/10/2010,1900430119,859.85,British Gas Business ,114213,GU15,Resources,WTP Urchfont Manor,Electricity,Premises Related,REVENUE
http://statistics.data.gov.uk/id/local-authority/00HY,Wiltshire Council,28/10/2010,1900430121,806.00,Wilkins Builders Ltd ,100189,SN11,Resources,Leisure Centres,Preventative Property Maintenance,Premises Related,REVENUE
http://statistics.data.gov.uk/id/local-authority/00HY,Wiltshire Council,26/10/2010,1900430127,673.38,Norland ,101082,SE1 ,Resources,Wkplc Trnsfrm Prprty,Preventative Property Maintenance,Premises Related,REVENUE
http://statistics.data.gov.uk/id/local-authority/00HY,Wiltshire Council,26/10/2010,1900430131,531.72,Norland ,101082,SE1 ,Resources,Hostels/Housing,Preventative Property Maintenance,Premises Related,REVENUE
http://statistics.data.gov.uk/id/local-authority/00HY,Wiltshire Council,15/10/2010,1900430133,1229.00,Handicare (Freelift) ,129737,DY6 ,Wiltshire Council,Wiltshire Council,Payments to Contractors - Other,Third Party Payments,CAPITAL
http://statistics.data.gov.uk/id/local-authority/00HY,Wiltshire Council,15/10/2010,1900430136,3810.00,Handicare (Freelift) ,129737,DY6 ,Wiltshire Council,Wiltshire Council,Payments to Contractors - Other,Third Party Payments,CAPITAL
http://statistics.data.gov.uk/id/local-authority/00HY,Wiltshire Council,15/10/2010,1900430139,2178.09,Wessex Water ,100164,BS48,Resources,Farms,Water - metered,Premises Related,REVENUE
http://statistics.data.gov.uk/id/local-authority/00HY,Wiltshire Council,15/10/2010,1900430140,2740.00,Handicare (Freelift) ,129737,DY6 ,Wiltshire Council,Wiltshire Council,Payments to Contractors - Other,Third Party Payments,CAPITAL
http://statistics.data.gov.uk/id/local-authority/00HY,Wiltshire Council,21/10/2010,1900430149,739.78,British Gas Business ,114213,GU15,Neighbourhood & Planning,Park & Ride Sites,Electricity,Premises Related,REVENUE
http://statistics.data.gov.uk/id/local-authority/00HY,Wiltshire Council,21/10/2010,1900430149,2048.15,British Gas Business ,114213,GU15,Neighbourhood & Planning,Off Street Parking,Electricity,Premises Related,REVENUE
http://statistics.data.gov.uk/id/local-authority/00HY,Wiltshire Council,15/10/2010,1900430154,3690.00,Handicare (Freelift) ,129737,DY6 ,Wiltshire Council,Wiltshire Council,Payments to Contractors - Other,Third Party Payments,CAPITAL
http://statistics.data.gov.uk/id/local-authority/00HY,Wiltshire Council,20/10/2010,1900430155,524.46,British Gas Business ,114213,GU15,Resources,WTP Libraries,Electricity,Premises Related,REVENUE
http://statistics.data.gov.uk/id/local-authority/00HY,Wiltshire Council,15/10/2010,1900430160,1170.00,Handicare (Freelift) ,129737,DY6 ,Wiltshire Council,Wiltshire Council,Payments to Contractors - Other,Third Party Payments,CAPITAL
http://statistics.data.gov.uk/id/local-authority/00HY,Wiltshire Council,15/10/2010,1900430166,3382.00,ADT Fire & Security Plc ,101042,M16 ,Resources,Wkplc Trnsfrm Prprty,Preventative Property Maintenance,Premises Related,REVENUE
http://statistics.data.gov.uk/id/local-authority/00HY,Wiltshire Council,15/10/2010,1900430167,5070.00,HG & AP  Vaughan Ltd - DFG Only ,116244,BA11,Wiltshire Council,Wiltshire Council,Payments to Contractors - Other,Third Party Payments,CAPITAL
http://statistics.data.gov.uk/id/local-authority/00HY,Wiltshire Council,15/10/2010,1900430171,1438.79,ADT Fire & Security Plc ,101042,M16 ,Resources,Wkplc Trnsfrm Prprty,Preventative Property Maintenance,Premises Related,REVENUE
http://statistics.data.gov.uk/id/local-authority/00HY,Wiltshire Council,21/10/2010,1900430173,5298.07,Ridgeway Community Housing Associat ,112275,SN10,Wiltshire Council,Wiltshire Council,Other Professional Fees,Supplies and Services,CAPITAL
http://statistics.data.gov.uk/id/local-authority/00HY,Wiltshire Council,15/10/2010,1900430181,1036.85,Anthea J Jenkins ,124122,SN15,Resources,Farms,Preventative Property Maintenance,Premises Related,REVENUE
http://statistics.data.gov.uk/id/local-authority/00HY,Wiltshire Council,29/10/2010,1900430182,4157.00,JC Applications Development ,111258,GU33,Resources,InsuranceFund,Software Maintenance,Supplies and Services,REVENUE
http://statistics.data.gov.uk/id/local-authority/00HY,Wiltshire Council,28/10/2010,1900430183,1069.78,Norland ,101082,SE1 ,Resources,WTP Libraries,Preventative Property Maintenance,Premises Related,REVENUE
http://statistics.data.gov.uk/id/local-authority/00HY,Wiltshire Council,15/10/2010,1900430189,1860.00,Medequip Assistive Technology Ltd ,111569,UB7 ,Community Services,ICES North HC,Client Aids and Adaptations,Third Party Payments,REVENUE
http://statistics.data.gov.uk/id/local-authority/00HY,Wiltshire Council,28/10/2010,1900430191,642.32,Norland ,101082,SE1 ,Resources,WTP Urchfont Manor,Preventative Property Maintenance,Premises Related,REVENUE
http://statistics.data.gov.uk/id/local-authority/00HY,Wiltshire Council,15/10/2010,1900430194,2500.00,AMTEC Consulting PLC ,129078,GU9 ,Community Services,One Off Resources,Miscellaneous Costs,Supplies and Services,REVENUE
http://statistics.data.gov.uk/id/local-authority/00HY,Wiltshire Council,25/10/2010,1900430197,1310.33,Royal Mail Group ,120705,PE4 ,Resources,RegistrationofElectr,Postage,Supplies and Services,REVENUE
http://statistics.data.gov.uk/id/local-authority/00HY,Wiltshire Council,28/10/2010,1900430201,1499.52,Wheelers  Westbury  Ltd ,112955,BA13,Resources,WTP Leisure Centres,Preventative Property Maintenance,Premises Related,REVENUE
http://statistics.data.gov.uk/id/local-authority/00HY,Wiltshire Council,28/10/2010,1900430208,724.93,Wheelers  Westbury  Ltd ,112955,BA13,Resources,Adult Care,Preventative Property Maintenance,Premises Related,REVENUE
http://statistics.data.gov.uk/id/local-authority/00HY,Wiltshire Council,28/10/2010,1900430215,1062.39,Wheelers  Westbury  Ltd ,112955,BA13,Resources,WTP Youth Centres,Preventative Property Maintenance,Premises Related,REVENUE
http://statistics.data.gov.uk/id/local-authority/00HY,Wiltshire Council,15/10/2010,1900430216,556.53,Prudential Pension Fund Sces Westbury Infants,124470,RG1 ,Wiltshire Council,Wiltshire Council,Superannuations and AVC�s,Balance Sheet Accounts,REVENUE
